{"text_format":"1","workbook":"xlsx","n_sheets":15,"sheets":["Cover","Intro","TSR","1. PDV","1. TD","2. DIRV","2. TD","3. PRV","3. TD","4. HRO","4. TD","5. MOV","6. HCSV","7. OV","References"],"not_rendered":{"charts":0,"images":11,"macros":1,"external_links":2,"defined_names":4,"comments":0,"pivot_tables":0},"unopened":[],"bounds":{"document_bytes":16777216,"sheet_cells":100000,"rows_first":2000,"rows_last":500,"rows_between":2000,"halvings":0,"cell_chars":16384,"cell_head_chars":4096},"cells_cut":0,"cells_raw":0,"read":"whole","date_system":"1900"}

{"sheet":"Cover","index":0,"n_rows":55,"n_cols":11,"rows_kept":55,"cut":false,"hidden":false,"merged":[[48,2,48,4],[50,2,50,4],[51,2,51,4],[52,2,52,4],[54,2,54,4],[40,2,40,4],[41,2,41,4],[44,2,44,4],[45,2,45,4],[47,2,47,4],[37,2,37,4],[38,2,38,4],[5,2,5,5],[34,2,34,4],[35,2,35,4],[32,2,32,4],[31,2,31,4],[15,2,15,4]]}
[]
[]
[]
[]
[]
[null,null,"Conformance Test Specification"]
[null,null,"for PCEHR Views"]
[]
[null,null,"Version 1.0"]
[null,null,"2015-12-03"]
[]
[null,null,"Approved for external use"]
[null,null,"Document ID: NEHTA-2189:2015"]
[]
[]
[]
[null,null,"Product version history"]
[null,null,"Version","Date","Comments"]
[null,null,1,"2015-12-03","Initial release"]
[null,null,1,"2025-05-14","The document presentation has been enhanced to align with current branding guidelines, however the content has not been changed."]
[]
[]
[null,null,"Transition of terms "]
[null,null,"Certain terms used within the context of this document have changed.  The table provides a clear comparison of the historical terms used in text and their current equivalents for your reference."]
[null,null,"Historical term","Current Term"]
[null,null,"National eHealth Transition Authority (NEHTA)","The Australian Digital Health Agency (ADHA)"]
[null,null,"Personally controlled electronic health record (PCEHR)","My Health Record (MHR)"]
[null,null,"Australian Childhood Immunisation Register","Australian Immunisation Register"]
[]
[]
[]
[null,null,"Acknowledgements "]
[null,null,"The Australian Digital Health Agency is jointly funded by the Australian Government and all state and territory governments."]
[]
[]
[null,null,null,null,null,null,null,null,null,null," "]
[]
[]
[]
[]
[]
[]
[]
[]
[null,null,"Disclaimer"]
[null,null,"The Australian Digital Health Agency (“the Agency”) makes the information and other material (“Information”) in this document available in good faith but without any representation or warranty as to its accuracy or completeness. The Agency cannot accept any responsibility for the consequences of any use of the Information. As the Information is of a general nature only, it is up to any person using or relying on the Information to ensure that it is accurate, complete and suitable for the circumstances of its use."]
[]
[null,null,"Document control"]
[null,null,"This document is maintained in electronic form and is uncontrolled in printed form. It is the responsibility of the user to verify that this copy is the latest revision."]
[]
[null,null,"Copyright © 2025 Australian Digital Health Agency"]
[null,null,"This document contains information which is protected by copyright. All Rights Reserved. No part of this work may be reproduced or used in any form or by any means – graphic, electronic, or mechanical, including photocopying, recording, taping, or information storage and retrieval systems – without the permission of the Australian Digital Health Agency. All copies of this document must include the copyright and other information contained on this page."]
[]
[]
[null,null,"Australian Digital Health Agency ABN 84 425 496 912, Level 25, 175 Liverpool Street, Sydney, NSW 2000\nTelephone 1300 901 001 or email help@digitalhealth.gov.au\nwww.digitalhealth.gov.au"]

{"sheet":"Intro","index":1,"n_rows":138,"n_cols":5,"rows_kept":138,"cut":false,"hidden":false,"merged":[[5,1,5,2],[16,1,16,2],[33,1,33,2],[51,1,51,2]]}
[]
[]
[]
[null,null,null,"Document information"]
[null,"Introduction",null,"Owner:","Director, Conformance and Assurance"]
[null,"This section describes the names and contents of the worksheets in this specification.  It also contains a list of abbreviations.",null,"Contact for enquiries:","Australian Digital Health Agency Help Centre\nt:  1300 901 001"]
[null,null,null,null,"e:  help@digitalhealth.gov.au"]
[null,"Table of contents"]
[1,"Worksheet Structure……………………","click here to go to section."]
[2,"Worksheet Names……………………....","click here to go to section."]
[3,"Abbreviations………………………………","click here to go to section."]
[]
[]
[]
[]
[1,"Worksheet Structure"]
[null,"Table 1 describes the column names which head the test sets in each worksheet."]
[null,"Table 1: Worksheet Structure"]
[null,"COLUMN NAME","DESCRIPTION"]
[null,"TEST CASE ID","Unique identifier which distinguishes each test case from within the entire set of test specifications.\n"]
[null,"CONFORMANCE REQUIREMENT","Displays the requirement to be met by the software being tested.\n"]
[null,"PRIORITY","Specifies whether a test is mandatory, conditional or optional.  This is done with the abbreviation:\nM for Mandatory \nC for Conditional\nO for Optional\n"]
[null,"STEP NO.","The individual test step number within a test case which has multiple steps.\n"]
[null,"TEST STEP","The evaluation required for applying the test case.\n"]
[null,"EXPECTED RESULT","The expected outcome of the Test Step.\n"]
[null,"TEST RESULT","Result of the test (Pass, Fail, N/A or TBD). \n\nPass:  The software passed the test.\nFail:    The software failed the test.\nN/A:   Not applicable - the test is not applicable for the software being tested \ni.e. the test may be for an optional requirement that is not implemented in the software, or \nthe test is conditional and the condition is not present.\nTBD:   To be determined - the test result is still to be determined.\n"]
[null,"TESTER COMMENTS","Comments in support of the test result.\n"]
[]
[null,"Notes:","Test cases may not be defined for optional requirements with the keyword 'MAY'. \n"]
[]
[null,"Return to top"]
[]
[2,"Worksheet Names"]
[null,"Table 2 describes the name and purpose of each worksheet. "]
[null,"Table 2: Worksheet Names","`"]
[null,"WORKSHEET NAME","PURPOSE"]
[null,"1. PDV","Prescription and Dispense View\nTest Set Objective: To verify the correct downloading and rendering of Prescription and Dispense Views from the PCEHR system.\n"]
[null,"1. TD","Prescription and Dispense View - Required Test Data\nIf NEHTA Test Data cannot be used, the software developer can create their own.  This worksheet describes the conditions and elements that need to be present for full test coverage.\n"]
[null,"2. DIRV","Diagnostic Imaging Report View\nTest Set Objective: To verify the correct downloading and rendering of Diagnostic Imaging Report Views from the PCEHR system.\n"]
[null,"2. TD","Diagnostic Imaging Report View - Required Test Data\nIf NEHTA Test Data cannot be used, the software developer can create their own.  This worksheet describes the conditions and elements that need to be present for full test coverage.\n"]
[null,"3. PRV","Pathology Report View\nTest Set Objective: To verify the correct downloading and rendering of Pathology Report Views from the PCEHR system.\n"]
[null,"3. TD","Pathology Report View - Required Test Data\nIf NEHTA Test Data cannot be used, the software developer can create their own.  This worksheet describes the conditions and elements that need to be present for full test coverage.\n"]
[null,"4. HRO","Health Record Overview\nTest Set Objective: To verify the correct downloading and rendering of Health Record Overviews from the PCEHR system.\n"]
[null,"4. TD","Health Record Overview - Required Test Data\nIf NEHTA Test Data cannot be used, the software developer can create their own.  This worksheet describes the conditions and elements that need to be present for full test coverage.\n"]
[null,"5. MOV","Medicare Overview\nTest Set Objective: To verify the correct downloading and rendering of Medicare Overviews from the PCEHR system.\n"]
[null,"6. HCSV","Health Check Summary View\nTest Set Objective: To verify the correct downloading and rendering of Health Check Schedule Views from the PCEHR system.  \n"]
[null,"7. OV","Observation View\nTest Set Objective: To verify the correct downloading and rendering of Observation Views from the PCEHR system. \n"]
[]
[null,"Return to top"]
[]
[3,"Abbreviations"]
[null,"Table 3 describes the abbreviations used throughout the Conformance Test Specification. "]
[null,"Table 3: Abbreviations","`"]
[null,"ABBREVIATION","FULL NAME"]
[null,"ACIR","Australian Childhood Immunisation Register"]
[null,"AODR","Australian Organ Donor Register"]
[null,"CDAR","Clinical Document Architecture Rendering"]
[null,"CIS","Clinical Information System"]
[null,"CSP","Contracted Service Provider"]
[null,"DIRV","Diagnostic Imaging Report View"]
[null,"HCSV","Health Check Schedule View"]
[null,"HRO","Health Record Overview"]
[null,"MBR","Medicare/DVA Benefits Report"]
[null,"MOV","Medicare Overview"]
[null,"OV","Observation View"]
[null,"PBR","Pharmaceutical Benefits Report"]
[null,"PCEHR","Personally Controlled Electronic Health Record"]
[null,"PDV","Prescription and Dispense View"]
[null,"PRV","Pathology Report View"]
[null,"SCS","Structured Content Specification"]
[null,"SHS","Shared Health Summary"]
[]
[null,"Return to top"]
[]
[]
[]
[]
[]
[]
[]
[]
[]
[]
[]
[]
[]
[]
[]
[]
[]
[]
[]
[]
[]
[]
[]
[]
[]
[]
[]
[]
[]
[]
[]
[]
[]
[]
[]
[]
[]
[]
[]
[]
[]
[]
[]
[]
[]
[]
[]
[]
[]
[]
[]
[]
[]
[]
[]
[]
[]
[]
[]
[]
[]
[null,"Pass"]
[null,"Fail"]
[null,"N/A"]
[null,"TBD"]

{"sheet":"TSR","index":2,"n_rows":26,"n_cols":5,"rows_kept":26,"cut":false,"hidden":false,"merged":[[25,1,26,3],[15,1,15,4],[2,2,2,3],[4,1,4,2],[5,1,5,2],[6,1,6,2],[7,1,7,2],[8,1,8,2],[9,1,9,2],[10,1,10,2],[11,1,11,2],[12,1,12,2]]}
[]
[]
[null,null,"TEST SUMMARY REPORT\n"]
[]
[null,"Software developer organisation:",null,"Please complete"]
[null,"Software name:",null,"Please complete"]
[null,"Software version:",null,"Please complete"]
[null,"Software description:",null,"Please complete"]
[null,"Testing location address:",null,"Please complete"]
[null,"Date(s) of testing:",null,"Please complete"]
[null,"Name of person(s) conducting tests:",null,"Please complete"]
[null,"Operating System/Environment Configuration (name and version)",null,"Optional."]
[null,"Additional software tools and versions not subject to testing used \n(e.g. web browser)",null,"Optional."]
[]
[]
[null,"THIS SECTION DOES NOT NEED TO BE FILLED IN - IT WILL BE AUTOMATICALLY CALCULATED USING A MACRO. PRESS <F9> IF YOU HAVE MACROS DISABLED."]
[null,null,"Type of PCEHR View","Success Rate","Number of \"N/A\" test results for mandatory tests"]
[null,1," Prescription and Dispense View",{"$f":"'1. PDV'!I$264","v":0},{"$f":"SUM('1. PDV'!K:K)","v":{"$error":"#NAME?"}}]
[null,2," eHealth Diagnostic Imaging Report View",{"$f":"'2. DIRV'!I$92","v":0},{"$f":"SUM('2. DIRV'!K:K)","v":{"$error":"#NAME?"}}]
[null,3," eHealth Pathology Report View",{"$f":"'3. PRV'!I$81","v":0},{"$f":"SUM('3. PRV'!K:K)","v":{"$error":"#NAME?"}}]
[null,4," Health Record Overview",{"$f":"'4. HRO'!I$202","v":0},{"$f":"SUM('4. HRO'!K:K)","v":{"$error":"#NAME?"}}]
[null,5," Medicare Overview",{"$f":"'5. MOV'!I$23","v":0},{"$f":"SUM('5. MOV'!K:K)","v":{"$error":"#NAME?"}}]
[null,6," Health Check Schedule View",{"$f":"'6. HCSV'!I$23","v":0},{"$f":"SUM('6. HCSV'!K:K)","v":{"$error":"#NAME?"}}]
[null,7," Observation View",{"$f":"'7. OV'!I$23","v":0},{"$f":"SUM('7. OV'!K:K)","v":{"$error":"#NAME?"}}]
[]
[null,{"$f":"IF(OR(ISERROR(E18),ISERROR(E19),ISERROR(E20),ISERROR(E21),ISERROR(E22),ISERROR(E23),ISERROR(E24)),\"WARNING: You must enable macros for this workbook.\",IF(SUM(E18:E24)>0,\"WARNING: A test result of N/A (not applicable) has been selected for one or more mandatory test cases. The only appropriate test results for a mandatory test are Pass or Fail. Please review and update the test results.\",\"\"))","v":"WARNING: You must enable macros for this workbook."}]

{"sheet":"1. PDV","index":3,"n_rows":265,"n_cols":11,"rows_kept":265,"cut":false,"hidden":false,"merged":[[22,0,25,0],[22,1,25,1],[53,0,55,0],[53,1,55,1],[230,1,232,1],[172,1,174,1],[72,0,73,0],[72,1,73,1],[82,1,83,1],[140,1,143,1],[1,3,3,5],[0,3,0,5],[241,1,243,1],[183,1,185,1],[201,1,203,1],[212,1,214,1],[92,1,93,1],[127,1,128,1],[134,1,135,1],[153,1,155,1],[58,1,59,1]]}
["Test Set:","Prescription and Dispense View",null,"TEST DATA INFORMATION",null,null,"Software name: version:\n","Please complete"]
["Derivation:","1. NEHTA-1359:2013 PCEHR Prescription and Dispense View - Presentation Guide v1.0\n2. NEHTA-1725:2014 eHealth Prescription and Dispense View - Conformance Profile v1.3\n3. NEHTA-1850:2015 Clinical Documents - Common Conformance Profile v1.6\n4. NEHTA-1788:2014 Clinical Terminology - Use of Medical Nomenclatures in Information Exchange v1.0\n",null,"To apply these test cases the tester needs to obtain the View CDA document for PDV.  \nIf the tester does not have this ability, a copy may be requested by contacting the NEHTA help desk.\n\nTO ACCESS NEHTA TEST DATA, USE:\n● Patient 1 - Mary MANNERING  IHI: 8003608000024000   Medicare Card: 4950323151   IRN: 1   Sex: Female  DOB: 17/07/1969  Address: 86 Pamphlet Lane, COOMERA, QLD, 4209\n(filter the View from 1 January 2013 to 31 March 2013)\n● Patient 2 - Angelina CLEMENTS  IHI: 8003606789133695  Medicare Card: 4950315341  IRN: Not given  Sex: Female  DOB: 24/02/1968  Address: 23 Picadilly Street, MILTON, QLD, 4064\n\nIF NEHTA TEST DATA CANNOT BE USED TO TEST, PLEASE CREATE YOUR OWN WITH THE FOLLOWING CONDITIONS:  \n   Refer to the PDV TD worksheet.\n",null,null,"Software supplier:","Please complete"]
["Test Set Objective:","To verify the correct downloading and rendering of Prescription and Dispense Views from the PCEHR system.\n",null,null,null,null,"Tester:","Please complete"]
["Pre-requisite:","1. Access to the PCEHR SVT (System Vendor Test) environment.\n2. Either:\n    a. Access to NEHTA's test data in the SVT that supports the Prescription and Dispense View test cases; or\n    b. Access to test data that meets the test data prerequisites.\n",null,null,null,null,"Date:","Please complete"]
[]
["THIS HEADER CAN BE COLLAPSED BY CLICKING THE '-' SYMBOL ON THE LEFT."]
["Test Case ID","Conformance Requirement","PRIORITY\n(Mandatory, Optional, Conditional)","STEP NO.","TEST STEP","EXPECTED RESULT","TEST RESULT","TESTER COMMENTS","CALC.",null,"MANDATORY AND N/A"]
["eHealth Prescription and Dispense View PCEHR Conformance Profile"]
["START: Conformance requirements for consumers"]
["PDV-CP-242","2.4.2 \nClinical document rendering requirements\n\nWhen an eHealth Prescription and Dispense View clinical document is rendered, the rendering system SHALL conform to the mandatory requirements in the PCEHR Prescription and Dispense View Presentation Guide.\n\n","M",1,"When the success rate of the Prescription and Dispense View Presentation Guide test case is 100%, then this test case can be passed.","'The test cases for the Prescription and Dispense View Presentation Guide are passed.",null,null,{"$f":"IF(G10=\"\",\"0\",IF(G10=\"Pass\",1,IF(G10=\"Fail\",0,IF(G10=\"TBD\",0,IF(G10=\"N/A\",1)))))","v":"0"},1,{"$f":"IF(AND(BGCol(C10)=48,G10=\"N/A\"),1,0)","v":{"$error":"#NAME?"}}]
["END: Conformance requirements for consumers"]
[]
["Clinical Documents - Common Conformance Profile"]
["START: Common PCEHR conformance requirements - Conformance requirements for consumers"]
["PDV-CCP-023745","023745\nSoftware consuming a clinical document is a clinical information system\n\nIf the software consuming a clinical document is a clinical information system, the software SHALL conform to the mandatory requirements for the role of a CIS consumer.\n\n023746\nSoftware consuming a clinical document is a CSP system\n\nIf the software consuming a clinical document is a CSP system, the software SHALL conform to the mandatory requirements for the role of a CIS consumer that are relevant for the scope of the CSP system.\n\nNOTE: the role of CIS Consumer is defined in NEHTA-1294:2012 PCEHR Connecting Systems - Conformance Assessment Scheme v1.1. Requirements for a CIS Consumer are described in NEHTA-1297:2012 PCEHR Connecting Systems - Conformance Requirements v1.5.","C",1,"NOTE TO TESTER: IF THIS TEST CASE HAS PASSED WHILE TESTING CONFORMANCE TO THE RENDERING REQUIREMENTS FOR ANOTHER VIEW IN THE SAME VERSION OF THE SOFTWARE THEN IT DOES NOT NEED TO BE PERFORMED AGAIN.\n\nThis test references the NEHTA-1299:2012 PCEHR Connecting Systems - Conformance Test Specification v1.6.\ni.e. The CIS Consumer software passes all mandatory and relevant conditional tests in worksheets:\na)  UC.CIS.001  Check if an advertised PCEHR exists.\nb)  UC.CIS.002.1  Gain access to PCEHR (with Access Code).\nc)  UC.CIS.002.2  Gain access to PCEHR (without Access Code).\nd)  UC.CIS.002.3  Gain access to PCEHR (Emergency Access).\ne)  UC.CIS.301 Access a View Service\n","The CIS Consumer software passes all mandatory and relevant conditional tests in worksheets:\na)  UC.CIS.001  Check if an advertised PCEHR exists.\nb)  UC.CIS.002.1  Gain access to PCEHR (with Access Code).\nc)  UC.CIS.002.2  Gain access to PCEHR (without Access Code).\nd)  UC.CIS.002.3  Gain access to PCEHR (Emergency Access).\ne)  UC.CIS.301 Access a View Service\n\nfrom the NEHTA-1299:2012 PCEHR Connecting Systems - Conformance Test Specification v1.6 are passed.",null,null,{"$f":"IF(G15=\"\",\"0\",IF(G15=\"Pass\",1,IF(G15=\"Fail\",0,IF(G15=\"TBD\",0,IF(G15=\"N/A\",1)))))","v":"0"},2,{"$f":"IF(AND(BGCol(C15)=48,G15=\"N/A\"),1,0)","v":{"$error":"#NAME?"}}]
["END: Common PCEHR conformance requirements - Conformance requirements for consumers"]
[]
["PCEHR Prescription and Dispense View Presentation Guide"]
["START:   No Information is available"]
[null,"Pre-requisite",null,null,"Request a Prescription and Dispense View from the PCEHR for Patient 1.\n","The requested View is displayed."]
["PDV-RS-001","View-PD1\nThe PD View should have a prominent title.\n","O",1,"Verify the View has a prominent title.\n","Prominent title has been displayed in the View. ",null,null,{"$f":"IF(G21=\"\",\"0\",IF(G21=\"Pass\",1,IF(G21=\"Fail\",0,IF(G21=\"TBD\",0,IF(G21=\"N/A\",1)))))","v":"0"},3,{"$f":"IF(AND(BGCol(C21)=48,G21=\"N/A\"),1,0)","v":{"$error":"#NAME?"}}]
["PDV-RS-002","View-PD2\nThe PD View shall display the title 'Prescription and Dispense View'.\n","M",1,"Verify the title is: 'Prescription and Dispense View'.","Prescription and Dispense View' title is displayed in the View.",null,null,"0",4,{"$f":"IF(AND(BGCol(C22)=48,G22=\"N/A\"),1,0)","v":{"$error":"#NAME?"}}]
["PDV-RS-003","View-PD3\nThe PD View should have a Print button integrated into the Header. \nThe print function should also be supported by the browser/system's print function.\n\nFollowing selection of the print function, the printed document should contain all of the information rendered in The PD View.\n\n\n\n","O",1,"Verify the View has a Print button integrated into the Header.\n\n","PD View has a Print button integrated into the Header.",null,null,"0",5,{"$error":"#NAME?"}]
[null,null,null,2,"a) Select the Print function in the Header.\nb) Verify the printed document contains all of the information rendered in the View.\n\n","The printed document contains all of the information rendered in the View.",null,null,"0",6,{"$error":"#NAME?"}]
[null,null,null,3,"Verify the print function is also supported by the browser/system's print functionality.\n","PD View has the browser/system's standard print functionality.",null,null,"0",7,{"$error":"#NAME?"}]
[null,null,null,4,"a) Select the Print function supported by the browser/system.\nb) Verify the printed document contains all of the information rendered in the View.\n\n","The printed document contains all of the information rendered in the View.",null,null,"0",8,{"$error":"#NAME?"}]
["PDV-RS-007","View-PD7\nThe PD View shall contain the following components as default labels:\n    • Prescribed\n    • Medicine Details\n    • First Dispense\n    • Last Dispense\n    • Dispensed (Please refer to View-PD46 for guidance on displaying data in the Dispensed column).\n","M",1,"Verify the View contains the following column labels as default:\n    • 'Prescribed'\n    • 'Medicine Details'\n    • 'First Dispense'\n    • 'Last Dispense'\n    • 'Dispensed'"," The View contains the following labels by default:\n    • 'Prescribed'\n    • 'Medicine Details'\n    • 'First Dispense'\n    • 'Last Dispense'\n    • 'Dispensed'\n",null,null,"0",9,{"$error":"#NAME?"}]
["PDV-RS-070","View-PD70\nThe PD View should display the following labels when Group by 'Prescription'. \n(Please refer to View-PD7 for the list of default labels).","O",1,"a) Group by  'Prescription'.\nb)  Verify that the View contains the following labels:\n    • 'Prescribed'\n    • 'Medicine Details'\n    • 'First Dispense'\n    • 'Last Dispense'\n    • 'Dispensed'\n\n"," The View contains the following labels:\n    • 'Prescribed'\n    • 'Medicine Details'\n    • 'First Dispense'\n    • 'Last Dispense'\n    • 'Dispensed'\n",null,null,"0",10,{"$error":"#NAME?"}]
["PDV-RS-064","View-PD64\nThe PD View shall contain the following components: \n    • Filter by Date Range \n","M",1,"Verify the presence of a filter with a date range in the View. ","Date range filter is displayed in the View.",null,null,"0",11,{"$error":"#NAME?"}]
["PDV-RS-065","View-PD65\nThe PD View shall contain the following components: \n    • Group by filter: \n            • Prescription \n            • Generic Name \n            • PBS Item Code \n            • Brand Name \n","M",1,"Verify the presence of a Group by with the following components: \n    • 'Prescription' \n    • 'Generic Name' \n    • 'PBS Item Code' \n    • 'Brand Name' \n","PD View contains the 'Group by' filter with all the components mentioned in the test step.",null,null,"0",12,{"$error":"#NAME?"}]
["PDV-RS-004-01","View-PD4\nWhere Prescription (refers to PCEHR Prescription Record) and Dispense (refers to PCEHR Dispense Record) have been uploaded to the NPDR:\n\n• The PD View shall display the following message for providers:\n‘This view is not a complete record of the individual’s medicines information.’\n","C",1,"CONDITION:  IF the software being tested is a CIS or CSP or registered provider portal \n(i.e.  the user is a healthcare provider), THEN: \n\nVerify a message is displayed with the following text:\n'This view is not a complete record of the individual's medicines information.'\n","The text: 'This view is not a complete record of the individual's medicines information.' is displayed.\n",null,null,"0",13,{"$error":"#NAME?"}]
["PDV-RS-004-02","View-PD4\nWhere Prescription (refers to PCEHR Prescription Record) and Dispense (refers to PCEHR Dispense Record) have been uploaded to the NPDR:\n\n• And for consumers The PD View should display the following message:\n‘This view is not a complete record of your medicines information.’\n","O",1,"CONDITION: IF the software being tested is a registered consumer portal \n(i.e. the user is a healthcare consumer), THEN:\n\nVerify a message is displayed with the following text:\n'This view is not a complete record of your medicines information.' \n","The text: 'This view is not a complete record of your medicines information.' is displayed.",null,null,"0",14,{"$error":"#NAME?"}]
["PDV-RS-004-03","View-PD4\n• Where there are no Prescription and Dispense Records available, The PD View shall display the following message:\n‘No information is available’.\n","M",1,"Apply a date range that does not contain Prescription or Dispense records OR use a patient with no Prescription or Dispense records, and:\n\nVerify this message is displayed:\n'No information is available'.\n","When no Prescription and Dispense Items are available in the PDV CDA document 'No information is available' text displayed.",null,null,"0",15,{"$error":"#NAME?"}]
["PDV-RS-005","View-PD5\nWhere there are no Prescription Records uploaded but a Dispense Record exists, The PD View shall display 'unavailable' in the Prescribed column.","M",1,"a) Locate a Dispense Item(s) with no corresponding Prescription Item(s). \n\nb) Verify that the Summary Line contains the text 'unavailable' under the Prescription column - indicating that no Prescription Item exists.   \n","The text 'unavailable' is displayed under the Prescription column.",null,null,"0",16,{"$error":"#NAME?"}]
["PDV-RS-006","View-PD6\nWhere there is no Dispense Record uploaded, but a Prescription record exists, the PD View shall display 'unavailable' in the First Dispense and Last Dispense columns.","M",1,"a) Locate a Prescription Item(s) with no corresponding Dispense Item(s). \n\nb) Verify the Summary Line contains the text \"unavailable\" under the First Dispense and Last Dispense columns - indicating that no Dispense items exist.  \n","The text \"unavailable\" displayed under the First Dispense and Last Dispense columns",null,null,"0",17,{"$error":"#NAME?"}]
["END:   No Information is available"]
[]
["START:  Date Filter"]
[null,"Pre-requisite",null,null,"Group by 'Prescription'.\n","Items are grouped by 'Prescription'."]
["PDV-RS-008","View-PD8\nAll fully specified dates should be displayed in the format DD-Mmm-YYYY \ne.g. 14-Aug-2011. \n\nDate fields include the From date and To date of the date filter, and the date fields the filter is based on for DateTime Prescription Written and DateTime Dispense Event.\n","O",1,"Verify all the dates are displayed in the format of DD-Mmm-YYYY:\n\n    • day is one-digit or two-digit numbers (e.g. 1, 01, 15)\n    • month is the first three characters of the month name, the first letter capitalised and other lettes in lowercase (e.g.   Jan)\n    • year is four digits (e.g. 2011)\n    • day, month and year have a single dash separator (e.g. \"1-Jan-2011\").\n","All dates are displayed with the format DD-Mmm-YYYY\n    \n",null,null,"0",18,{"$f":"IF(AND(BGCol(C40)=48,G40=\"N/A\"),1,0)","v":{"$error":"#NAME?"}}]
["PDV-RS-073","View-PD73\nThe 'From' and 'To' dates entered in the request shall be displayed together with the records returned and rendered to indicate the date range applied in the retrieval request.","M",1,"Verify the date filter displays the ‘From date’ and ‘To date’ as selected before the request was sent. ","Date filter displays the ‘From date’ and ‘To date’ as selected before the request was sent. \n\n",null,null,"0",19,{"$error":"#NAME?"}]
[null,null,null,2,"Verify that Prescription and Dispense items in the View are within the date range supplied in the date filter. \n\nNOTE TO TESTER: \nVerify with multiple date ranges to check the view is in supplied date range.\n","Prescription and Dispense items in the View are within the date range supplied in the date filter. ",null,null,"0",20,{"$error":"#NAME?"}]
["PDV-RS-009","View-PD9\nUnless specifically stated, times and time zones should not be displayed in the PD View.\n","O",1,"Verify times and time zones are NOT displayed in the View, unless specifically stated.","Times and time zones are NOT displayed in the View, unless specifically stated.",null,null,"0",21,{"$error":"#NAME?"}]
["PDV-RS-010","View-PD10\nUnless specifically stated, dates displayed in a column should be right aligned.\n\nRationale\nThis provides a tidy list of dates in this format, if displayed using a non-monospaced font.\n\n","O",1,"Verify DateTime values displayed in a column are right aligned in the View, unless specifically stated.","The DateTime values displayed in a column are right aligned in the View, unless specifically stated.",null,null,"0",22,{"$error":"#NAME?"}]
["PDV-RS-011","View-PD11\nWhere items are sorted by date, the sorting should be done using dates in a common time zone e.g. UTC. \n\nRationale\nAll the date sorting specified in this guide uses time zone aware dates.\n","O",1,"Verify that all items displayed in the View are displayed and ordered using dates which are common to the time zone that has been chosen for displaying the View.\n\nFor example, if Australian Eastern Standard Time (AEST) has been chosen to display dates in the View, then all dates should be in AEST.\n","Results are ordered by a common time zone.",null,null,"0",23,{"$error":"#NAME?"}]
["PDV-RS-012","View-PD12\nThe Date filter shall retrieve and display search items. The items shall be ordered in reverse DateTime order by Prescription. ","M",1,"Click on each Summary Line item, and\n\nVerify that all Prescription and Dispense items under each Summary Line are displayed in reverse DateTime order by Prescription i.e. most recent at the top.\n\n","Items are displayed in reverse DateTime order by Prescription.",null,null,"0",24,{"$error":"#NAME?"}]
["PDV-RS-012-02","View-PD12\nIf no prescription item exists, then first dispense created DateTime shall be used to order the search results. \n","M",1,"Verify, where no Prescription item exists, first dispense created DateTime shall be used to order the search results. \n","First dispense created DateTime is used to order the search results. ",null,null,"0",25,{"$error":"#NAME?"}]
["END:   Date Filter"]
[]
["START:   Group By Prescription"]
["PDV-RS-013","View-PD13\nThe summary line items displayed in The PD View shall be listed in reverse DateTime order (most recent documents will be at the top of the list).\n ","M","N/A","The software will meet this requirement if it passes test case PDV-RS-012. \nNo separate test case is needed.\n","N/A"]
["PDV-RS-014","View-PD14\nThe PD View shall display the following labels (from left to right):\n    • Prescribed \n    • Medicine Details \n    • First Dispense \n    • Last Dispense \n    • Dispensed (Please refer to View-PD46 for guidance on displaying data in the Dispensed column).\n","M",1,"Verify the View displays the labels:\n    • 'Prescribed'\n    • 'Medicine Details'\n    • 'First Dispense'\n    • 'Last Dispense'\n    • 'Dispensed'","The View displays the correct labels.",null,null,{"$f":"IF(G52=\"\",\"0\",IF(G52=\"Pass\",1,IF(G52=\"Fail\",0,IF(G52=\"TBD\",0,IF(G52=\"N/A\",1)))))","v":"0"},26,{"$f":"IF(AND(BGCol(C52)=48,G52=\"N/A\"),1,0)","v":{"$error":"#NAME?"}}]
["PDV-RS-015-01","View-PD15\nUnder the 'Prescribed' label, the summary line shall display (if available) the date a prescription was written. \n\n","M",1,"For each Summary Line of the View content,\n\nUnder the 'Prescribed' label, verify the date  matches the 'DateTime Prescription Written' in the PDV CDA document. \n\nNOTE TO TESTER:\n The 'DateTime Prescription Written' element is located under the 'Medication Entries with Summary' section as well as the Prescription item.\n","Prescribed date value matches the:\n'DateTime Prescription Written' in the PDV CDA document.\n",null,null,"0",27,{"$error":"#NAME?"}]
["PDV-RS-015-02","View-PD15\nIf no prescription item is available but contains a dispense item, then date under 'Prescribed' label in the summary line shall be displayed as 'unavailable'. \n\n","M",1,"For each Summary Line item with no corresponding Prescription item, verify the text 'unavailable' is displayed under the 'Prescribed' column. \n","The text 'unavailable' is displayed under the 'Prescribed' column. ",null,null,"0",28,{"$error":"#NAME?"}]
[null,null,null,2,"For the Summary Lines with the text 'unavailable' under the 'Prescribed' column, verify that no 'DateTime Prescription Written' value exists in the PDV CDA document. \n\nNOTE TO TESTER: \nThe 'DateTime Prescription Written' element is located under the 'Medication Entries with Summary' section as well as the Prescription item.\n","Where the Prescribed label says 'unavailable':\nNo 'DateTime Prescription Written' value exists in the PDV CDA document.\n",null,null,"0",29,{"$error":"#NAME?"}]
[null,null,null,3,"For the Summary Lines  with the text 'unavailable' under the 'Prescribed' column, verify that no Prescription items exist in the PDV CDA document.\n\n","No Prescription items exist in the PDV CDA document, for the Summary Lines  with the text 'unavailable' under the 'Prescribed' column.\n",null,null,"0",30,{"$error":"#NAME?"}]
["PDV-RS-016","View-PD16\nUnder the ‘Medicine Details’ label, the summary line shall display the Therapeutic Good Identification for the group.","M",1,"Under the 'Medicine Details' label, verify the medication displayed matches the 'Therapeutic Good Identification' in the PDV CDA document.\n\nNOTE TO TESTER: \nThe 'Therapeutic Good Identification' element is located under the 'Medication Entries with Summary' section.  \n\nWhere information is displayed from a coded data type in the PDV CDA document verify that the value of the 'originalText' is displayed, if present. If the 'originalText' is not present then verify that the value of 'displayName' is displayed, if present. If both 'originalText' and 'displayName' are displayed then verify that these are clearly distinguished.\n\nThis conforms to requirement 020652 found in NEHTA-1788:2014 Clinical Terminology - Use of Medical Nomenclatures in Information Exchange v1.0\n","Medicine Details value matches:\n'Therapeutic Good Identification' in the PDV CDA document.",null,null,"0",31,{"$error":"#NAME?"}]
["PDV-RS-017-01","View-PD17\nUnder the 'First Dispensed' label, the summary line shall display (if available) the date of the first known dispense event related to this prescription. \n","M",1,"Under the 'First Dispense' label, verify the date matches the 'DateTime of Earliest Dispense Event' element in the PDV CDA document.\n \nNOTE TO TESTER: \nThe 'DateTime of Earliest Dispense Event' element is located under the 'Medication Entries with Summary' section.\n","First Dispense date value matches the:\n'DateTime of Earliest Dispense Event' in the PDV CDA Document. ",null,null,"0",32,{"$error":"#NAME?"}]
["PDV-RS-017-02","View-PD17\nIf no dispense items have been created, then the summary line shall display the message 'unavailable'. ","M",1,"For each Summary Line without a date value under the 'First Dispense' column, verify the label 'unavailable' is displayed. \n","The label 'unavailable' is displayed for each Summary Line without a date value under the 'First Dispense' column.",null,null,"0",33,{"$error":"#NAME?"}]
[null,null,null,2,"For the Summary Lines with 'unavailable' under the 'First Dispense' column, verify that no 'DateTime of Earliest Dispense Event' value exists in the PDV CDA document.\n\nNOTE TO TESTER: \nThe 'DateTime of Earliest Dispense Event' element is located under the 'Medication Entries with Summary' section.\n","No 'DateTime of Earliest Dispense Event' value exists in the PDV CDA document, for the Summary Lines with the text 'unavailable' under the 'First Dispense' column.",null,null,"0",34,{"$error":"#NAME?"}]
["PDV-RS-018-01","View-PD18\nUnder the ‘Last Dispense’ label, the summary line shall display (if available) the date of the most recent known dispense event related to this prescription. ","M",1,"Under the 'Last Dispense' label, verify the date matches the 'DateTime of Latest Dispense Event' element in the PDV CDA document.\n\nNOTE TO TESTER: \nThe 'DateTime of Latest Dispense Event' element is located under the 'Medication Entries with Summary' section.\n","Last Dispense date value matches the:\n'DateTime of Latest Dispense Event' in the PDV CDA document. \n",null,null,"0",35,{"$error":"#NAME?"}]
["PDV-RS-018-02","View-PD18\nIf only one dispense item exists then the First Dispense and Last Dispense value in the summary line shall be equal.\n","M",1,"Verify that if only one dispense item exists then the First Dispense and Last Dispense values in the Summary Line are equal.\n","The label 'unavailable' is displayed for each Summary Line without a date value under the 'Last Dispense' column.",null,null,{"$f":"IF(G62=\"\",\"0\",IF(G62=\"Pass\",1,IF(G62=\"Fail\",0,IF(G62=\"TBD\",0,IF(G62=\"N/A\",1)))))","v":"0"},36,{"$error":"#NAME?"}]
["PDV-RS-018-03\n","View-PD18\nIf no dispense items have been created, then the summary line shall display the message ‘unavailable’.\n","M",1,"For each Summary Line missing a date value under the 'Last Dispense' column, verify the label 'unavailable' is displayed. \n","No 'DateTime of Latest Dispense Event' value exists in the PDV CDA document, For the Summary Lines with the text 'unavailable' under the 'Last Dispense' column.",null,null,{"$f":"IF(G63=\"\",\"0\",IF(G63=\"Pass\",1,IF(G63=\"Fail\",0,IF(G63=\"TBD\",0,IF(G63=\"N/A\",1)))))","v":"0"},37,{"$error":"#NAME?"}]
[null,null,null,2,"For the Summary Lines with 'unavailable' displayed under the 'Last Dispense' column, verify that no 'DateTime of Latest Dispense Event' value exists within the PDV CDA document.\n\nNOTE TO TESTER:\n The 'DateTime of Latest Dispense Event' element is located under the 'Medication Entries with Summary' section.\n","The First Dispense and Last Dispense values in the summary line are equal, if only one dispense item exists.\n",null,null,"0",38,{"$error":"#NAME?"}]
["END:   Group By Prescription"]
[]
["START:   Group By Generic Name"]
[null,"Pre-requisite",null,null,"Group by 'Generic Name'.\n","The requested View is displayed."]
["PDV-RS-020","View-PD20\nThe generic name summary line items displayed in The PD View shall be listed in alphabetical order and sorted A to Z. \n","M",1,"For all Summary Line items, verify that the values listed under 'Generic Name' are in alphabetical order and sorted A to Z.  \n","Values listed under 'Generic Name' are in alphabetical order and sorted A to Z.",null,null,"0",39,{"$f":"IF(AND(BGCol(C69)=48,G69=\"N/A\"),1,0)","v":{"$error":"#NAME?"}}]
["PDV-RS-021-01","View-PD21\nThe PD View shall display a label Generic Name. \n","M",1,"Verify the View displays the label 'Generic Name'.\n","PD View displays the label 'Generic Name'.\n",null,null,"0",40,{"$error":"#NAME?"}]
["PDV-RS-021-02","View-PD21\nThe Group By menu shall display 'Generic Name' to signify group by type has been applied. \n","M",1,"Verify that the 'Group by' menu displays 'Generic Name' as selected. ","The 'Group by' menu displays 'Generic Name' as selected.",null,null,"0",41,{"$error":"#NAME?"}]
["PDV-RS-022","View-PD22\nUnder the label Generic Name, the generic name of the prescription items and/or dispense items should be displayed.","O",1,"For the Summary Line containing a generic name value under the 'Generic Name' column, verify that it matches the 'Therapeutic Good Generic Name' element of either the Prescription item and/or  Dispense item, in the CDA document.  \n\nNOTE TO TESTER: this is the XPATH for the Prescription 'Therapeutic Good Generic Name' element:\nentry[sbadm]/substanceAdministration/consumable/manufacturedProduct/manufacturedMaterial/name\n\nthis is the XPATH for Dispense 'Therapeutic Good Generic Name' element:\nentry[sbadm]/substanceAdministration/entryRelationship[sply]/supply/product/manufacturedProduct/manufacturedMaterial/name\n","The generic name of the prescription items and/or dispense item are displayed view. \nThe values under 'Generic Name' column match with 'Therapeutic Good Generic Name' element in the CDA document.\n",null,null,"0",42,{"$error":"#NAME?"}]
["PDV-RS-023","View-PD23\nIf no Generic Name is available (as it is an optional field), The PD View should display Generic Name Title as 'Generic Name unavailable'. ","O",1,"For each Summary Line without a Generic Name under the 'Generic Name' column, verify the title 'Generic Name unavailable' is displayed. \n\n"," When no Generic Name is available, PD View displays Generic Name Title as 'Generic Name unavailable'. ",null,null,"0",43,{"$error":"#NAME?"}]
[null,null,null,2,"For the Summary Lines with the title 'Generic Name unavailable' under the 'Generic Name' column, verify that 'Therapeutic Good Generic Name' elements in the CDA document do not contain values.\n"," 'Therapeutic Good Generic Name' elements in the CDA document do not contain values for the  title 'Generic Name unavailable'.",null,null,"0",44,{"$error":"#NAME?"}]
["END:   Group By Generic Name"]
[]
["START:   Group By PBS Item Code"]
[null,"Pre-requisite",null,null,"Group by 'PBS Item Code'.\n","The requested View is displayed."]
["PDV-RS-024","View-PD24\nThe PBS Item Codes summary line items displayed in The PD View shall be listed in ascending alphanumeric order. \n","M",1,"For all Summary Line items, verify the PBS Item Code values are listed in ascending alphanumeric order.  ","Values listed under  'PBS Item Code' are in alphanumeric order.",null,null,"0",45,{"$f":"IF(AND(BGCol(C79)=48,G79=\"N/A\"),1,0)","v":{"$error":"#NAME?"}}]
["PDV-RS-025-01","View-PD25\nThe PD View shall display a label PBS Item Code. \n","M",1,"Verify the View displays the label 'PBS Item Code'.","PD View displays the label 'PBS Item Code'.\n",null,null,"0",46,{"$error":"#NAME?"}]
["PDV-RS-025-02","View-PD25\nThe Group By menu shall display 'PBS Item Code' to signify group by type has been applied. \n","M",1,"Verify that the \"Group by\" menu displays 'PBS Item Code' as selected. ","The \"Group by\" menu displays 'PBS Item Code'. ",null,null,{"$f":"IF(G81=\"\",\"0\",IF(G81=\"Pass\",1,IF(G81=\"Fail\",0,IF(G81=\"TBD\",0,IF(G81=\"N/A\",1)))))","v":"0"},47,{"$error":"#NAME?"}]
["PDV-RS-026","View-PD26\nThe PBS Item Code of the Prescription Items or Dispense Items shall be displayed under the label ‘PBS Item Code’.","M",1,"For those Summary Lines containing PBS Item Codes, verify the 'PBS Item Code' of the Prescription and/or Dispense is displayed. \n\nNOTE TO TESTER: The PBS Item Code of the Medicine can be found under the Prescription and Dispense items, corresponding to the 'Therapeutic Good Identification' element in the CDA document. Where information is displayed from a coded data type in the PDV CDA document verify that the value of the 'originalText' is displayed, if present. If the 'originalText' is not present then verify that the value of 'displayName' is displayed, if present. If both 'originalText' and 'displayName' are displayed then verify that these are clearly distinguished.\n\nThis conforms to requirement 020652 found in NEHTA-1788:2014 Clinical Terminology - Use of Medical Nomenclatures in Information Exchange v1.0.\n","The 'PBS Item Code' of the Prescription and/or Dispense is displayed. ",null,null,"0",48,{"$error":"#NAME?"}]
["PDV-RS-027","View-PD27\nIf no PBS Item Code is available as the Therapeutic Good Identification may potentially not contain a PBS Item Code, The PD View should display PBS Item Code Title as 'PBS Item Code unavailable'.","O",1,"For those Summary Lines without PBS Item Codes, verify that the text 'PBS Item Code unavailable' is displayed.  \n"," 'PBS Item Code unavailable' is displayed, for the Summary lines without PBS Item codes.\n",null,null,"0",49,{"$error":"#NAME?"}]
[null,null,null,2,"For those Summary Lines with 'PBS Item Code unavailable', verify that the Prescription and Dispense items in the CDA document do not contain PBS Item Codes in the 'Therapeutic Good Identification' elements.\n \nNOTE TO TESTER: \nThe 'Therapeutic Good Identification' elements can be found under the Prescription and Dispense items in the CDA document. \n","CDA document do not contain PBS Item Codes for Summary lines with 'PBS Item Code unavailable'.",null,null,"0",50,{"$error":"#NAME?"}]
["END:   Group By PBS Item Code"]
[]
["START:   Group By Brand Name"]
[null,"Pre-requisite",null,null,"Group by 'Brand Name'.\n","The requested View is displayed."]
["PDV-RS-028","View-PD28\nThe Brand Name summary line items displayed in The PD View shall be listed in alphabetical order and sorted A to Z. \n","M",1,"For all Summary Line items, verify the values are listed in alphabetical order and sorted A to Z.  \n","For all Summary Line items, values are listed in alphabetical order and sorted A to Z.  \n",null,null,"0",51,{"$f":"IF(AND(BGCol(C89)=48,G89=\"N/A\"),1,0)","v":{"$error":"#NAME?"}}]
["PDV-RS-029-01","View-PD29\nThe PD View shall display a label 'Brand Name'. \n","M",1,"Verify the View displays the label 'Brand Name'.","the View displays the label 'Brand Name'.\n",null,null,"0",52,{"$error":"#NAME?"}]
["PDV-RS-029-02","View-PD29\nThe Group By menu shall display “Brand Name” to signify group by type has been applied. \n","M",1,"Verify that the \"Group by\" menu displays 'Brand Name' as selected. ","The \"Group by\" menu displays 'Brand Name' as selected. ",null,null,"0",53,{"$error":"#NAME?"}]
["PDV-RS-030","View-PD30\nUnder the label Brand Name, the Brand Name of the Prescription Items should be displayed.\n\nNote: Brand Name may potentially be a Generic Name for Prescriptions.","O",1,"For each Summary Line with a value under the label \"Brand Name\", verify the Brand Name of the Prescription item is displayed. \n\nNOTE TO TESTER: The Brand Name of the Prescription item corresponds to the 'Therapeutic Good Identification'  element under the MEDICATION ENTRY section in the PDV CDA document. Where information is displayed from a coded data type in the PDV CDA document verify that the value of the 'originalText' is displayed, if present. If the 'originalText' is not present then verify that the value of 'displayName' is displayed, if present. If both 'originalText' and 'displayName' are displayed then verify that these are clearly distinguished.\n\nThis conforms to requirement 020652 found in NEHTA-1788:2014 Clinical Terminology - Use of Medical Nomenclatures in Information Exchange v1.0.\n","The Brand Name of the Prescription item is displayed under the label \"Brand Name\".",null,null,"0",54,{"$error":"#NAME?"}]
["PDV-RS-031","View-PD31\nIf the therapeutic good identification is a generic name (i.e. where the therapeutic good identification is the same as therapeutic good generic name) then The PD View should display Brand Name summary line item as 'unavailable'.","O",1,"For those Summary Lines where the 'Therapeutic Good Identification' is a  Generic Name, verify the text 'unavailable' is displayed.  \n\nNOTE TO TESTER:  there is a known issue with the style sheet v1.1.0 where this does not display.\n","The text 'unavailable' is displayed, when the 'Therapeutic Good Identification' is a  Generic Name .  \n",null,null,"0",55,{"$error":"#NAME?"}]
[" ",null,null,2,"For those Summary Lines where Brand Name is 'unavailable', verify the 'Therapeutic Good Identification' elements in Prescription and/or Dispense items in the CDA document contains the same medication as 'Therapeutic Good Generic Name' .\n\nNOTE TO TESTER:\n Therapeutic Good Identification contains a Generic Name medication if it is the same as the 'Therapeutic Good Generic Name' element in the CDA document. \n ","The 'Therapeutic Good Identification' elements in Prescription and/or Dispense items in the CDA document contain Generic Name medications where Brand name is 'Unavailable'.\n\n ",null,null,"0",56,{"$error":"#NAME?"}]
["PDV-RS-072","View-PD72\nThe PD View should display an additional message: 'The Brand Name of medicine will usually be displayed. The Generic Name will be shown if available.'","O",1,"Verify the View shows the message:\n\"The Brand Name of medicine will usually be displayed. The Generic Name will be shown if available.\"","The View shows the message:\n\"The Brand Name of medicine will usually be displayed. The Generic Name will be shown if available.\"\n",null,null,"0",57,{"$error":"#NAME?"}]
["END:   Group By Brand Name"]
[]
["START:   Collapsed View"]
[null,"Pre-requisite",null,null,"Resize the window/framework containing the View to a size that will prevent all Prescription and Dispense Items being visible. \n\nNOTE TO TESTER: If the system restricts the resizing of the window/framework, this test can be performed using a PD View containing a large number of Prescription and/or Dispense items.\n","The requested View is displayed."]
["PDV-RS-032","View-PD32\nThe whole view should scroll vertically.","O",1,"Verify the View can scroll vertically. \nVerify all Prescription and/or Dispense items are visible using the vertical scroll bars. \n\n","The View can scroll vertically. \nAll Prescription and/or Dispense items are visible using the vertical scroll bars. ",null,null,"0",58,{"$f":"IF(AND(BGCol(C100)=48,G100=\"N/A\"),1,0)","v":{"$error":"#NAME?"}}]
["PDV-RS-033","View-PD33\nThe PD View should vertically scroll independently of the Framework (i.e. CIS system header, navigation pane, menu bar, ribbons and footer).\n\nRationale\nThis allows the consumer identifiers and remainder of the framework navigation to be continually displayed while using The PD View.\n","O",1,"Verify the View can scroll vertically independently of the Framework \ni.e. the software system header, navigation pane, menu bar, ribbons and footer. \n","The View can scroll vertically independently of the Framework \ni.e. the software system header, navigation pane, menu bar, ribbons and footer. \n",null,null,"0",59,{"$f":"IF(AND(BGCol(C101)=48,G101=\"N/A\"),1,0)","v":{"$error":"#NAME?"}}]
["PDV-RS-034","View-PD34\nThe PD View shall not horizontally scroll in the Framework (e.g. CIS system header, navigation pane, menu bar, ribbons and footer).\n\nRationale\n(i) A combination of vertical and horizontal scrolling makes it difficult for users to view all the data in The PD View quickly.\n(ii) As horizontal scrolling is fairly unconventional on web pages, users may not expect it and therefore miss information.\n(iii) Horizontal scrolling is often not supported by scroll wheels on mice.\n\n","M",1,"Verify the View does not scroll horizontally in the Framework. \ni.e. the software system header, navigation pane, menu bar, ribbons and footer.","The View does not scroll horizontally in the Framework. \ni.e. the software system header, navigation pane, menu bar, ribbons and footer. \n",null,null,"0",60,{"$error":"#NAME?"}]
["PDV-RS-035","View-PD35\nThe prescription components in The PD View area shall be displayed as collapsed rows as default. \n\nRationale\nMultiple prescriptions in The PD View allow the user to more easily search the medicines prescribed.\n","M",1,"Group by Prescription.\nVerify that the prescription components are displayed in a collapsed state by default \ni.e. only Summary Line items are displayed with no Prescription and Dispense items.","The prescription components are displayed in a collapsed state by default \n\n",null,null,"0",61,{"$error":"#NAME?"}]
["PDV-RS-067","View-PD67\nThe Generic Name components in The PD View area shall be displayed as collapsed rows as default. ","M",1,"Group by Generic Name.\nVerify that the Generic Name components are displayed in a collapsed state by default \ni.e. only Summary Line items are displayed with no Prescription and Dispense items.\n","The Generic Name components are displayed in a collapsed state by default ",null,null,"0",62,{"$error":"#NAME?"}]
["PDV-RS-068","View-PD68\nThe PBS item code components in The PD View area shall be displayed as collapsed rows as default. ","M",1,"Group by PBS Item Code.\nVerify that the PBS Item Code components are displayed in a collapsed state by default \ni.e. only Summary Line items are displayed with no Prescription and Dispense items.\n","The PBS Item Code components are displayed in a collapsed state by default .\n",null,null,"0",63,{"$error":"#NAME?"}]
["PDV-RS-069","View-PD69\nThe Brand Name components in The PD View area shall be displayed as collapsed rows as default. ","M",1,"Group by Brand Name.\nVerify that the Brand Name components are displayed in a collapsed state by default \ni.e. only Summary Line items are displayed with no Prescription and Dispense items.\n","The Brand Name components are displayed in a collapsed state by default. \n",null,null,"0",64,{"$error":"#NAME?"}]
["PDV-RS-036","View-PD36\nWhen the mouse cursor is held over the summary line, then the summary line shall be displayed in red text or a text colour that provides colour differentiation according to the implementer’s accessibility standards. \n\nNote, this conformance point applies to the summary line for each of the Group by options.\n","M",1,"Group by Prescription.\na) Hold the mouse cursor over each Summary Line.\nb) Verify that it is displayed in red text or a text colour that provides colour differentiation according to the implementer's accessibility standards.\n\nNOTE TO TESTER:\nAn example of an accessibility standard is the one published by W3C: http://www.w3.org/TR/WCAG20/.  \n","Summary Line is displayed in red text or a text colour that provides colour differentiation according to the implementer's accessibility standards.",null,null,"0",65,{"$error":"#NAME?"}]
[null,null,null,2,"Group by Brand Name.\na) Hold the mouse cursor over each Summary Line.\nb) Verify that it is displayed in red text or a text colour that provides colour differentiation according to the implementer's accessibility standards.\n","Summary Line is displayed in red text or a text colour that provides colour differentiation according to the implementer's accessibility standards.",null,null,"0",66,{"$error":"#NAME?"}]
[null,null,null,3,"Group by PBS Item Code.\na) Hold the mouse cursor over each Summary Line.\nb) Verify that it is displayed in red text or a text colour that provides colour differentiation according to the implementer's accessibility standards.\n","Summary Line is displayed in red text or a text colour that provides colour differentiation according to the implementer's accessibility standards.",null,null,"0",67,{"$error":"#NAME?"}]
[null,null,null,4,"Group by Generic Name.\na) Hold the mouse cursor over each Summary Line.\nb) Verify that it is displayed in red text or a text colour that provides colour differentiation according to the implementer's accessibility standards.\n","Summary Line is displayed in red text or a text colour that provides colour differentiation according to the implementer's accessibility standards.",null,null,"0",68,{"$error":"#NAME?"}]
["PDV-RS-074","View-PD74\nWhen the  mouse cursor is held over the summary line, then the background of the summary line should be highlighted.\nNote, this conformance point applies to the summary line for each of the Group by options.","O",1,"Group by Prescription.\na) Hold the mouse cursor over each Summary Line.\nb) Verify that the background of the Summary Line is highlighted.","The background of the Summary Line is highlighted.",null,null,"0",69,{"$error":"#NAME?"}]
[null,null,null,2,"Group by Brand Name.\na) Hold the mouse cursor over each Summary Line.\nb) Verify that the background of the Summary Line is highlighted.\n","The background of the Summary Line is highlighted.",null,null,"0",70,{"$error":"#NAME?"}]
[null,null,null,3,"Group by PBS Item Code.\na) Hold the mouse cursor over each Summary Line.\nb) Verify that the background of the Summary Line is highlighted.\n","The background of the Summary Line is highlighted.",null,null,"0",71,{"$error":"#NAME?"}]
[null,null,null,4,"Group by Generic Name.\na) Hold the mouse cursor over each Summary Line.\nb) Verify that the background of the Summary Line is highlighted.\n","The background of the Summary Line is highlighted.",null,null,"0",72,{"$error":"#NAME?"}]
["PDV-RS-037","View-PD37\nEach prescription and dispense record summary line shall be visually separated using either alternate shading or a line to separate each record. ","M",1,"Verify that all Summary Lines are visually separated by either:\n                a) alternate shading or\n                b) a line to separate each record. \n","All Summary Lines are visually separated by either:\na) alternate shading or\nb) a line to separate each record. \n",null,null,"0",73,{"$error":"#NAME?"}]
["PDV-RS-038","View-PD38\nEach summary line displayed in The PD View shall be constructed from the Summary of Medication data group in the PCEHR Prescription and Dispense View Structured Content Specification.","M",1,"Verify that each Summary Line is constructed from and is consistent with the details in 'Summary of Medications Entries' section in the CDA document - see below for details.\n","See below for expected result."]
[null,null,null,2,"NOTE: This test is deemed to be the same as PDV-RS-015-01 and does not need to be repeated. \n\nUnder the Prescribed label, verify the date matches the 'DateTime Prescription Written' in the CDA document.\n","Prescribed date value matches the:\n'DateTime Prescription Written' in the CDA document.\n",null,"NOTE: This test is deemed to be the same as PDV-RS-015-01 and does not need to be repeated. \n"]
[null,null,null,3,"NOTE: This test is deemed to be the same as PDV-RS-016 and does not need to be repeated. \n\nUnder the Medicine Details label, verify the medication matches the 'Therapeutic Good Identification' in the CDA document. \n\nNOTE TO TESTER:  Where information is displayed from a coded data type in the PDV CDA document verify that the value of the 'originalText' is displayed, if present. \nIf the 'originalText' is not present then verify that the value of 'displayName' is displayed, if present. If both 'originalText' and 'displayName' are displayed then verify that these are clearly distinguished.\n\nThis conforms to requirement 020652 found in NEHTA-1788:2014 Clinical Terminology - Use of Medical Nomenclatures in Information Exchange v1.0.\n","Medicine Details value matches the:\n'Therapeutic Good Identification' in the PDV CDA document. \n",null,"NOTE: This test is deemed to be the same as PDV-RS-016 and does not need to be repeated. \n"]
[null,null,null,4,"NOTE: This test is deemed to be the same as PDV-RS-017-01 and does not need to be repeated. \n\nUnder the First Dispense label, verify the date matches the 'DateTime of Earliest Dispense Event' in the CDA document. \n","First Dispense date value matches the:\n'DateTime of Earliest Dispense Event' in the CDA document. \n",null,"NOTE: This test is deemed to be the same as PDV-RS-017-01 and does not need to be repeated. \n"]
[null,null,null,5,"NOTE: This test is deemed to be the same as PDV-RS-018-01 and does not need to be repeated. \n\nUnder the Last Dispense label, verify the date matches the 'DateTime of Latest Dispense Event' in the CDA document. \n","Last Dispense date value matches the:\n'DateTime of Latest Dispense Event' in the CDA document. \n",null,"NOTE: This test is deemed to be the same as PDV-RS-018-01 and does not need to be repeated. \n"]
[null,null,null,6,"NOTE: This test is deemed to be the same as PDV-RS-046-01 & PDV-RS-046-02 and does not need to be repeated. \n\nUnder the Dispensed label, verify the number of dispenses matches the 'Total Number of Known Supplies' of 'Maximum Number of Permitted Supplies' in the CDA document. \n\nNOTE TO TESTER:\nFor example, ‘1 of 3’ or ‘0 of 4’\nIf the Maximum Number of Permitted Supplies is absent and/or Total Number of Known Supplies is absent, The PD View will display ‘unavailable’.\n","Dispensed value matches the:\n'Total Number of Known Supplies' of '\nMaximum Number of Permitted Supplies' in the CDA document. \n",null,"NOTE: This test is deemed to be the same as PDV-RS-046-01 & PDV-RS-046-02 and does not need to be repeated. \n"]
["PDV-RS-039","View-PD39\nThe whole document line item shall act as a link to the source CDA document. \n\nRationale\nHaving a whole document line item as a link is a common convention in many systems, and provides a larger ‘hit’ area for users to select.\n","M",1,"Render the View in an expanded state.\n\nClick each Prescription document line and verify that the whole document line links to the source Prescription CDA document. \n\nNOTE TO TESTER: the Presentation Guide defines the whole document line to include the DateTime and the text \"Prescribed\" or \"Dispensed\", however there is a known issue with the NEHTA style sheet which only recognises the clinical content as the document line that is clickable.\n","The whole document lines link to the source CDA document in the PCEHR. \n",null,null,"0",74,{"$f":"IF(AND(BGCol(C122)=48,G122=\"N/A\"),1,0)","v":{"$error":"#NAME?"}}]
[null,null,null,2,"Click each  Dispense document line and verify that the whole document line links to the source Dispense  CDA document in the PCEHR. \n","The whole document lines link to the source CDA document in the PCEHR. \n",null,null,"0",75,{"$error":"#NAME?"}]
["PDV-RS-040","View-PD40\nThe whole document line item should have a 'roll-over' state, indicating that is it clickable.","O",1,"a) Hold the mouse cursor over each document line.\nb) Verify that the whole document line item has a 'roll-over' state, indicating that is it clickable.\n","All areas of the text consisting of a Prescription or Dispense document line exhibit a 'roll-over' state. \n",null,null,"0",76,{"$error":"#NAME?"}]
["PDV-RS-041","View-PD41\nDates should be displayed right-aligned in a column on the left of the component.\n","O","N/A","NOTE: The software will meet this requirement if it passes test case PDV-RS-010. \nNo separate test case is needed.","N/A",null,"NOTE: The software will meet this requirement if it passes test case PDV-RS-010. \n"]
["PDV-RS-042","View-PD42\nPrescription events shall be listed in reverse DateTime order (newest first). \nWhen displaying Prescription items in the collapsed summary format, the prescription items shall be listed in reverse DateTime order. \n\n","M","N/A","NOTE: The software will meet this requirement if it passes test case PDV-RS-012. \nNo separate test case is needed.","N/A",null,"NOTE: The software will meet this requirement if it passes test case PDV-RS-012. \n"]
["PDV-RS-045","View-PD45\nThe Last Dispense column shall present the most recent date when the therapeutic good was dispensed for the related prescription.\n ","M","N/A","NOTE: The software will meet this requirement if it passes test case PDV-RS-018-01. \nNo separate test case is needed.\n","N/A",null,"NOTE: The software will meet this requirement if it passes test case PDV-RS-018-01. \n"]
["PDV-RS-046-01","View-PD45\nThe Dispensed column in the summary line shall present the Total Number of Known Supplies of the Maximum Number of Permitted Supplies.\n\nFor example, “1 of 3” or “0 of 4”\n","M",1,"Group by Prescription.\nIn the Summary Line, under the 'Dispensed' column, verify the 'Total Number of Known Supplies' of 'Maximum Number of Permitted Supplies' is present. \n\nNOTE TO TESTER:\n '1 of 3' or '0 of 4'. \n","The 'Total Number of Known Supplies' of 'Maximum Number of Permitted Supplies' is present.\n\n",null,null,"0",77,{"$f":"IF(AND(BGCol(C128)=48,G128=\"N/A\"),1,0)","v":{"$error":"#NAME?"}}]
[null,null,null,2,"Verify the numbers displayed in the View matches the 'Total Number of Known Supplies' of 'Maximum Number of Permitted Supplies' in the PDV CDA document. \n\nNOTE TO TESTER:\n 'Total Number of Known Supplies' and 'Maximum Number of Permitted Supplies' is under the \"Summary of Medication Entries\" section in the CDA document. \n","Dispensed value matches the:\n'Total Number of Known Supplies' of 'Maximum Number of Permitted Supplies' in the PDV CDA document.\n\n",null,null,"0",78,{"$error":"#NAME?"}]
["PDV-RS-046-02\n","View-PD45\nIf the Maximum Number of Permitted Supplies is absent and/or Total Number of Know Supplies is absent, The PD View shall display 'unavailable'.\n","M",1,"Where the Maximum Number of Permitted Supplies is absent and/or Total Number of Known Supplies is absent in the PDV CDA document:\nGroup by Prescription.\nUnder the 'Dispensed' column, verify 'unavailable' is displayed . \n","Where the Maximum Number of Permitted Supplies is absent and/or Total Number of Known Supplies is absent in the PDV CDA document:\nThe 'Dispensed' column displays 'unavailable'. \n",null,null,"0",79,{"$error":"#NAME?"}]
["END:   Collapsed View"]
[]
["START:   Expanded (Single) Prescription"]
[null,"Pre-requisite",null,null,"Group by Prescription in a collapsed state.\n","The requested View is displayed."]
["PDV-RS-047","View-PD47\nWhen the prescription summary line is selected, The PD View should display all available prescription and dispense  document lines associated with the prescription in the summary line.","O",1,"a) Click on each Summary Line. \nb) Verify that prescription and/or dispense items associated with the Summary Line are displayed.  \n","Prescription and/or dispense items associated with the Summary Line are displayed. \n",null,null,"0",80,{"$f":"IF(AND(BGCol(C135)=48,G135=\"N/A\"),1,0)","v":{"$error":"#NAME?"}}]
[null,null,null,2,"Verify that all Prescription and Dispense items in the PDV CDA document are displayed.\n","All Prescription and Dispense items in the CDA document which are associated with the Summary Line are displayed in the View.\n",null,null,"0",81,{"$error":"#NAME?"}]
["PDV-RS-048","View-PD48\nThe components of the expanded summary line item should be presented when the user clicks on the collapsed prescription summary line.\n","O",1,"With the Summary Line is selected: \nVerify that the components of the expanded Summary Line are presented.","The components of the expanded summary line are presented.",null,null,"0",82,{"$error":"#NAME?"}]
[null,"The resulting view should display the dispensed items first, followed by prescribed record information in reverse DateTime order.\n",null,2,"Verify that the dispensed items are displayed first (i.e. on top), followed by the prescription item in reverse DateTime order. \n","The Dispense items are displayed first (i.e. on top), followed by the Prescription item in reverse DateTime order. \n",null,null,"0",83,{"$error":"#NAME?"}]
[null,"If no dispense records have been published, then the prescription record should only be displayed.",null,3,"Where no dispense records have been published, verify that only the prescription record is displayed.\n","Only prescription record is displayed when no dispense records have been published.\n",null,null,"0",84,{"$error":"#NAME?"}]
["PDV-RS-051","View-PD51\nThe PD View should render and display the Summary and Document Line items using a colour palette with a colour contrast that meets accessibility standards such as WCAG 2.0: Guideline 1.4 (http://www.w3.org/TR/WCAG20/).\n","O",1,"a) Set to an expanded state.\nb) Verify that the Summary and Document Line items use a colour palette with colour contrast that meet accessibility standards such as:\nWCAG 2.0: Section 1.4 Distinguishable: Use of Color and Contrast.\n","The Summary and Document Line items use a colour palette with colour contrast that meet accessibility standards.",null,null,"0",85,{"$error":"#NAME?"}]
["PDV-RS-049-01","View-PD49\nThe expanded Dispensed document line item shall display: \n    • DateTime of Dispense Event \n    • Transaction Type = Dispensed \n    • Generic Name \n    • Brand Name \n    • Strength \n    • Label Instruction \n    • Medicine Form \n    • Quantity = Supply (label in italics) <Quantity> e.g. 'Supply 2'.\n    • Dispensed = Number of this dispense.\n","M",0,"For each Dispense document line, verify the following are displayed (where available):\n","See below for expected result."]
[null,null,null,1,"DateTime of Dispense Event\nPDV SCS component: Dispense Item > DateTime of Dispense Event (1..1)\nCDA element: entry[sbadm]/substanceAdministration/entryRelationship[sply]/supply/effectiveTime\n","The expanded Dispensed document line item displays: \n    • DateTime of Dispense Event \n",null,null,{"$f":"IF(G142=\"\",\"0\",IF(G142=\"Pass\",1,IF(G142=\"Fail\",0,IF(G142=\"TBD\",0,IF(G142=\"N/A\",1)))))","v":"0"},86,{"$error":"#NAME?"}]
[null,null,null,2,"Transaction Type\ni.e. 'Dispensed' (exact text).\n\nNOTE TO TESTER: this does not have a PDV CDA component.\n","The expanded Dispensed document line item displays: \n    • Transaction Type = Dispensed \n",null,null,"0",87,{"$error":"#NAME?"}]
[null,null,null,3,"Generic Name \nPDV CDA component: Dispense Item > Therapeutic Good Generic Name (0..1)\nCDA element: entry[sbadm]/substanceAdministration/entryRelationship[sply]/supply/product/manufacturedProduct/manufacturedMaterial/name\n","The expanded Dispensed document line item displays: \n    • Generic Name \n",null,null,"0",88,{"$error":"#NAME?"}]
[null,null,null,4,"Brand Name\nPDV CDA component: Dispense Item > Therapeutic Good Identification (1..1)\nCDA element: entry[sbadm]/substanceAdministration/entryRelationship[sply]/supply/product/manufacturedProduct/manufacturedMaterial/code\n\nNOTE TO TESTER:  Where information is displayed from a coded data type in the PDV CDA document verify that the value of the 'originalText' is displayed, if present. \nIf the 'originalText' is not present then verify that the value of 'displayName' is displayed, if present. If both 'originalText' and 'displayName' are displayed then verify that these are clearly distinguished.\n\nThis conforms to requirement 020652 found in NEHTA-1788:2014 Clinical Terminology - Use of Medical Nomenclatures in Information Exchange v1.0\n","The expanded Dispensed document line item displays: \n    • Brand Name \n",null,null,"0",89,{"$error":"#NAME?"}]
[null,null,null,5,"Strength \nPDV CDA component: Dispense Item > Therapeutic Good Strength (0..1)\nCDA element: entry[sbadm]/substanceAdministration/entryRelationship[strength]/act/text\n","The expanded Dispensed document line item displays: \n    • Strength \n",null,null,"0",90,{"$error":"#NAME?"}]
[null,null,null,6,"Label Instruction \nPDV CDA component: Dispense Item > Label Instruction (0..1) \nCDA element: entry[sbadm]/substanceAdministration/entryRelationship[sply]/supply/entryRelationship[label]/act/text:ST\n","The expanded Dispensed document line item displays: \n    • Label Instruction \n",null,null,"0",91,{"$error":"#NAME?"}]
[null,null,null,7,"Medicine Form\nPDV CDA component: Dispense Item > Ingredients and Form > Form \n(1..1 but only if 'Ingredients and Form' is present)\nCDA element: entry[sbadm]/substanceAdministration/entryRelationship[sply]/supply/product/manufacturedProduct/manufacturedMaterial/ext:formCode\n\nNOTE TO TESTER:  Where information is displayed from a coded data type in the PDV CDA document verify that the value of the 'originalText' is displayed, if present. \nIf the 'originalText' is not present then verify that the value of 'displayName' is displayed, if present. If both 'originalText' and 'displayName' are displayed then verify that these are clearly distinguished.\n\nThis conforms to requirement 020652 found in NEHTA-1788:2014 Clinical Terminology - Use of Medical Nomenclatures in Information Exchange v1.0.\n","The expanded Dispensed document line item displays: \n    • Medicine Form \n",null,null,"0",92,{"$error":"#NAME?"}]
[null,null,null,8,"Quantity\n'Supply' (label in italics) followed by the Quantity value. \n\nPDV CDA component: Dispense Item > Quantity Dispensed > Quantity Description \n(1..1 but only if 'Quantity Dispensed' is present)\nCDA element: entry[sbadm]/substanceAdministration/entryRelationship[sply]/supply/entryRelationship[qty_desc]/act/text\n","The expanded Dispensed document line item displays: \n    • Quantity  E.g. 'Supply 2'.\n",null,null,"0",93,{"$error":"#NAME?"}]
[null,null,null,9,"Dispensed\nPDV CDA component: Dispense Item > Number of this Dispense (0..1)\nCDA element: \nentry[sbadm]/substanceAdministration/entryRelationship[sply]/sequenceNumber/@value\n","The expanded Dispensed document line item displays: \n    • Dispensed = Number of this dispense.\n",null,null,"0",94,{"$error":"#NAME?"}]
["PDV-RS-049-02\n","View-PD49\nIf number of this dispense = 1, then The PD View shall display ‘Original Dispense’ in the Dispense Document Line.\n","M",1,"For the Dispense Item with the 'Number of this Dispense' set to 1 in the PDV CDA document:\nGo to the Dispense Document Line and verify that the View displays:\n'Original Dispense'  under the Dispensed column.  \n","PD View displays 'Original Dispense'  under the Dispensed column.  ",null,null,"0",95,{"$error":"#NAME?"}]
["PDV-RS-049-03\n","View-PD49\nIf number of this dispense is >1, then The PD View shall display ‘Repeat “value”’ as number of this dispense -1 in the Dispense Document Line e.g. ‘Repeat 1’\n","M",1,"For the Dispense Item with the 'Number of this Dispense' set to greater than 1 in the PDV CDA document:\nGo to the Dispense Document Line and verify that the View displays:\n'Repeat \"value\"' as number of this dispense -1 under the Dispensed column. \nE.g. 'Repeat 4' \n\nNOTE TO TESTER:\nFor example, if the number of this dispense is 5, then the View shall display ‘Repeat 4'.\n","The PD View displays 'Repeat \"value\"' as number of this dispense -1 under the Dispensed column. ",null,null,"0",96,{"$error":"#NAME?"}]
["PDV-RS-049-04\n","View-PD49\nWhere there is no data provided for a data element (listed above), then the data element shall be excluded from the document line.\n","M",1,"For the Dispense item(s) with no data in the CDA document (i.e. optional element(s) absent): \nVerify that no data is displayed in the Document Line on the View. \n\nNOTE TO TESTER:  According to the CDA IG, the optional Dispense elements are: \nGeneric Name - PDV CDA component: Dispense Item > Therapeutic Good Generic Name (0..1)\nStrength - PDV CDA component: Dispense Item > Therapeutic Good Strength (0..1)\nLabel Instruction - PDV CDA component: Dispense Item > Label Instruction (0..1) \nMedicine Form - PDV CDA component: Dispense Item > Ingredients and Form > Form  \n(1..1 but only if 'Ingredients and Form' is present)\nQuantity - PDV CDA component: Dispense Item > Quantity Dispensed > Quantity Description \n(1..1 but only if 'Quantity Dispensed' is present)\nDispensed -PDV CDA component: Dispense Item > Number of this Dispense (0..1)\n","NO data is displayed in the Document Line on the PD View, for the Dispense item(s) with NO data in the CDA document.\n",null,null,"0",97,{"$error":"#NAME?"}]
["PDV-RS-050-01","View-PD50\nThe expanded Prescribed document line item shall display: \n    • DateTime Prescription Written \n    • Transaction Type = Prescribed \n    • Generic Name \n    • Brand Name \n    • Strength \n    • Direction \n    • Medicine Form \n    • Quantity = Supply (label in italics) <Quantity> e.g. 'Supply 2'.\n    • Dispensed = The PD View shall display ‘Dispense original’ followed by <Maximum number of repeats> in the Prescription Document Line e.g. ‘ Dispense original and 1 repeats’.\n","M",0,"For each expanded Prescribed document line, verify the following are displayed (where available):\n","See below for expected result."]
[null,null,null,1,"DateTime Prescription Written \nPDV SCS component: Prescription Item > DateTime Prescription Written (1..1)\nCDA element: ClinicalDocument/component/structuredBody/component[pdv_pres_and_disp_reports]/section/component[sme_med_ent_with_summary]/section/component[pres_item]/section/author/time/@valueauthor/time/@value\n","The expanded Prescribed document line item displays: \n    • DateTime Prescription Written \n",null,null,{"$f":"IF(G155=\"\",\"0\",IF(G155=\"Pass\",1,IF(G155=\"Fail\",0,IF(G155=\"TBD\",0,IF(G155=\"N/A\",1)))))","v":"0"},98,{"$error":"#NAME?"}]
[null,null,null,2,"Transaction Type\ni.e. 'Prescribed' (exact text).\n\nNOTE TO TESTER: this does not have a PDV CDA component.\n","The expanded Prescribed document line item displays: \n    • Transaction Type = Prescribed\n",null,null,"0",99,{"$error":"#NAME?"}]
[null,null,null,3,"Generic Name \nPDV CDA component: Prescription Item > Therapeutic Good Generic Name (0..1)\nCDA element: entry[sbadm]/substanceAdministration/consumable/manufacturedProduct/manufacturedMaterial/name\n","The expanded Prescribed document line item displays: \n    • Generic Name \n",null,null,"0",100,{"$error":"#NAME?"}]
[null,null,null,4,"Brand Name\nPDV CDA component: Prescription Item > Therapeutic Good Identification (1..1)\nCDA element: entry[sbadm]/substanceAdministration/consumable/manufacturedProduct/manufacturedMaterial/\ncode\n\nNOTE TO TESTER:  Where information is displayed from a coded data type in the PDV CDA document verify that the value of the 'originalText' is displayed, if present. \nIf the 'originalText' is not present then verify that the value of 'displayName' is displayed, if present. \nIf both 'originalText' and 'displayName' are displayed then verify that these are clearly distinguished.\n\nThis conforms to requirement 020652 found in NEHTA-1788:2014 Clinical Terminology - Use of Medical Nomenclatures in Information Exchange v1.0.\n","The expanded Prescribed document line item displays: \n    • Brand Name \n",null,null,"0",101,{"$error":"#NAME?"}]
[null,null,null,5,"Strength \nPDV CDA component: Prescription Item > Therapeutic Good Strength (0..1)\nCDA element: entry[sbadm]/substanceAdministration/entryRelationship[strength]/act/@code=\"103.16769.170.1.1\"\n","The expanded Prescribed document line item displays: \n    • Strength \n",null,null,"0",102,{"$error":"#NAME?"}]
[null,null,null,6,"Direction\nPDV CDA component: Prescription Item > Directions (0..1) \nCDA element: ClinicalDocument/component/structuredBody/component[pdv_pres_and_disp_reports]/section/component[sme_med_ent_with_summary]/section/component[pres_item]/section/entry[sbadm]/substanceAdministration/text\n","The expanded Prescribed document line item displays: \n    • Label Instruction \n",null,null,"0",103,{"$error":"#NAME?"}]
[null,null,null,7,"Medicine Form\nPDV CDA component: Prescription Item > Ingredients and Form > Form \n(1..1 but only if 'Ingredients and Form' is present)\nCDA element: entry[sbadm]/substanceAdministration/consumable/manufacturedProduct/\nmanufacturedMaterial/ext:formCode\n\nNOTE TO TESTER:  Where information is displayed from a coded data type in the PDV CDA document verify that the value of the 'originalText' is displayed, if present. If the 'originalText' is not present then verify that the value of 'displayName' is displayed, if present. If both 'originalText' and 'displayName' are displayed then verify that these are clearly distinguished.\n\nThis conforms to requirement 020652 found in NEHTA-1788:2014 Clinical Terminology - Use of Medical Nomenclatures in Information Exchange v1.0.\n","The expanded Prescribed document line item displays: \n    • Medicine Form \n",null,null,"0",104,{"$error":"#NAME?"}]
[null,null,null,8,"Quantity\n'Supply' (label in italics) followed by the Quantity value. \nPDV CDA component: Prescription Item > Dispensing > Quantity to Dispense > Quantity Description \n(1..1 but only if 'Quantity to Dispense' is present)\nCDA element: entry[sbadm]/substanceAdministration/entryRelationship[sply]/supply/entryRelationship[qty_desc]/act/text","The expanded Prescribed document line item displays: \n    • Quantity  E.g. 'Supply 2'.\n",null,null,"0",105,{"$error":"#NAME?"}]
[null,null,null,9,"Dispensed\nPDV CDA component: Prescription Item > Dispensing > Maximum Number of Repeats (0..1)\nCDA element:  entry[sbadm]/substanceAdministration/repeatNumber/high/@value\n\nIn the Prescription Document Line, verify the View displays:\n‘Dispense original’ followed by ‘Maximum number of repeats’ \nE.g. ‘ Dispense original and 1 repeats’. \n","The expanded Prescribed document line item displays: \n    • Dispensed\n\nThe PD View displays ‘Dispense original’ followed by <Maximum number of repeats>.",null,null,"0",106,{"$error":"#NAME?"}]
["PDV-RS-050-02","View-PD50\nWhere there is no data provided for a data element (listed above), then the data element shall be excluded from the document line.","M",1,"For the Prescription item(s) with no data in the CDA document (i.e. optional element(s) absent): \nVerify that no data is displayed in the Document Line on the View.\n\nNOTE TO TESTER:  According to the CDA IG, the optional Prescription elements are: \nGeneric Name - PDV CDA component: Prescription Item > Therapeutic Good Generic Name (0..1)\nStrength - PDV CDA component: Prescription Item > Therapeutic Good Strength (0..1)\nDirection - PDV CDA component: Prescription Item > Directions (0..1) \nMedicine Form - PDV CDA component: Prescription Item > Ingredients and Form > Form \n(1..1 but only if 'Ingredients and Form' is present)\nDispensed - PDV CDA component: Prescription Item > Dispensing > Maximum Number of Repeats (0..1)\n","NO data is displayed in the Document Line on the PD View, For Prescription item(s) with no data in the CDA document.",null,null,{"$f":"IF(G164=\"\",\"0\",IF(G164=\"Pass\",1,IF(G164=\"Fail\",0,IF(G164=\"TBD\",0,IF(G164=\"N/A\",1)))))","v":"0"},107,{"$error":"#NAME?"}]
["END:   Expanded (Single) Prescription"]
[]
["START:   Expanded (Multiple) Prescriptions"]
["PDV-RS-052","View-PD52\nThe user should be able to expand multiple prescription components using the mouse click function. The expanded summary blocks will be displayed in The PD View.\n","O","N/A","The software will meet this requirement if it passes test cases PDV-RS-047 and PDV-RS-048. \nNo separate test case is needed.","N/A"]
["END:   Expanded (Multiple) Prescriptions"]
[]
["START:   Expanded Group by Generic Name"]
[null,"Pre-requisite",null,null,"Group by Generic Name.\nSet to an expanded state.\n","The requested View is displayed."]
["PDV-RS-053-01","View-PD53\nThe expanded Prescribed document line item shall display: \n    • DateTime Prescription Written \n    • Transaction Type = Prescribed \n    • Generic Name \n    • Brand Name \n    • Strength \n    • Direction \n    • Medicine Form \n    • Quantity = Supply (label in italics) <Quantity> e.g. 'Supply 2'\n    • Dispensed = The PD View shall display ‘Dispense original’ followed by <Maximum number of repeats> in the Prescription Document Line e.g. ‘ Dispense original and 1 repeats’. \n","M",0,"For each expanded Prescribed document line, verify the following are displayed (where available):\n","See below for expected result."]
[null,null,null,1,"NOTE: This test is deemed to be the same as PDV-RS-050-01 Step 1 and does not need to be repeated. \n\nDateTime Prescription Written \nPDV SCS component: Prescription Item > DateTime Prescription Written (1..1)\nCDA element: author/time/@value\n","The expanded Prescribed document line item displays: \n    • DateTime Prescription Written \n",null,"NOTE: This test is deemed to be the same as PDV-RS-050-01 Step 1 and does not need to be repeated. "]
[null,null,null,2,"NOTE: This test is deemed to be the same as PDV-RS-050-01 Step 2 and does not need to be repeated. \n\nTransaction Type\ni.e. 'Prescribed' (exact text).\n\nNOTE TO TESTER: this does not have a PDV CDA component.\n","The expanded Prescribed document line item displays: \n    • Transaction Type = Prescribed\n",null,"NOTE: This test is deemed to be the same as PDV-RS-050-01 Step 2 and does not need to be repeated. "]
[null,null,null,3,"NOTE: This test is deemed to be the same as PDV-RS-050-01 Step 3 and does not need to be repeated. \n\nGeneric Name \nPDV CDA component: Prescription Item > Therapeutic Good Generic Name (0..1)\nCDA element: entry[sbadm]/substanceAdministration/consumable/manufacturedProduct/manufacturedMaterial/name\n","The expanded Prescribed document line item displays: \n    • Generic Name \n",null,"NOTE: This test is deemed to be the same as PDV-RS-050-01 Step 3 and does not need to be repeated. "]
[null,null,null,4,"NOTE: This test is deemed to be the same as PDV-RS-050-01 Step 4 and does not need to be repeated. \n\nBrand Name\nPDV CDA component: Prescription Item > Therapeutic Good Identification (1..1)\nCDA element: entry[sbadm]/substanceAdministration/consumable/manufacturedProduct/manufacturedMaterial/\ncode\n\nNOTE TO TESTER:  Where information is displayed from a coded data type in the PDV CDA document verify that the value of the 'originalText' is displayed, if present. \nIf the 'originalText' is not present then verify that the value of 'displayName' is displayed, if present. \nIf both 'originalText' and 'displayName' are displayed then verify that these are clearly distinguished.\n\nThis conforms to requirement 020652 found in NEHTA-1788:2014 Clinical Terminology - Use of Medical Nomenclatures in Information Exchange v1.0.\n","The expanded Prescribed document line item displays: \n    • Brand Name \n",null,"NOTE: This test is deemed to be the same as PDV-RS-050-01 Step 4 and does not need to be repeated. "]
[null,null,null,5,"NOTE: This test is deemed to be the same as PDV-RS-050-01 Step 5 and does not need to be repeated. \n\nStrength \nPDV CDA component: Prescription Item > Therapeutic Good Strength (0..1)\nCDA element: entry[sbadm]/substanceAdministration/entryRelationship[strength]/act/@code=\"103.16769.170.1.1\"\n","The expanded Prescribed document line item displays: \n    • Strength \n",null,"NOTE: This test is deemed to be the same as PDV-RS-050-01 Step 5 and does not need to be repeated. "]
[null,null,null,6,"NOTE: This test is deemed to be the same as PDV-RS-050-01 Step 6 and does not need to be repeated. \n\nDirection\nPDV CDA component: Prescription Item > Directions (0..1) \nCDA element: ClinicalDocument/component/structuredBody/component[pdv_pres_and_disp_reports]/section/component[sme_med_ent_with_summary]/section/component[pres_item]/section/entry[sbadm]/substanceAdministration/text\n\n","The expanded Prescribed document line item displays: \n    • Label Instruction \n",null,"NOTE: This test is deemed to be the same as PDV-RS-050-01 Step 6 and does not need to be repeated. "]
[null,null,null,7,"NOTE: This test is deemed to be the same as PDV-RS-050-01 Step 7 and does not need to be repeated. \n\nMedicine Form\nPDV CDA component: Prescription Item > Ingredients and Form > Form \n(1..1 but only if 'Ingredients and Form' is present)\nCDA element: entry[sbadm]/substanceAdministration/consumable/manufacturedProduct/\nmanufacturedMaterial/ext:formCode\n\nNOTE TO TESTER:  Where information is displayed from a coded data type in the PDV CDA document verify that the value of the 'originalText' is displayed, if present. If the 'originalText' is not present then verify that the value of 'displayName' is displayed, if present. If both 'originalText' and 'displayName' are displayed then verify that these are clearly distinguished.\n\nThis conforms to requirement 020652 found in NEHTA-1788:2014 Clinical Terminology - Use of Medical Nomenclatures in Information Exchange v1.0.\n","The expanded Prescribed document line item displays: \n    • Medicine Form \n",null,"NOTE: This test is deemed to be the same as PDV-RS-050-01 Step 7 and does not need to be repeated. "]
[null,null,null,8,"NOTE: This test is deemed to be the same as PDV-RS-050-01 Step 8 and does not need to be repeated. \n\nQuantity\n'Supply' (label in italics) followed by the Quantity value. \n\nPDV CDA component: Prescription Item > Dispensing > Quantity to Dispense > Quantity Description \n(1..1 but only if 'Quantity to Dispense' is present)\nCDA element: entry[sbadm]/substanceAdministration/entryRelationship[sply]/supply/entryRelationship[qty_desc]/act/text\n","The expanded Prescribed document line item displays: \n    • Quantity  E.g. 'Supply 2'.\n",null,"NOTE: This test is deemed to be the same as PDV-RS-050-01 Step 8 and does not need to be repeated. "]
[null,null,null,9,"NOTE: This test is deemed to be the same as PDV-RS-050-01 Step 9 and does not need to be repeated. \n\nDispensed\nPDV CDA component: Prescription Item > Dispensing > Maximum Number of Repeats\nCDA element:  entry[sbadm]/substanceAdministration/repeatNumber/high/@value\n\nIn the Prescription Document Line, verify the View displays:\n‘Dispense original’ followed by ‘Maximum number of repeats’ \nE.g. ‘ Dispense original and 1 repeats’. \n","The expanded Prescribed document line item displays: \n    • Dispensed\n\nThe PD View displays ‘Dispense original’ followed by <Maximum number of repeats>.",null,"NOTE: This test is deemed to be the same as PDV-RS-050-01 Step 9 and does not need to be repeated. "]
["PDV-RS-053-02","View-PD53\nWhere there is no data provided for a data element (listed above), then the data element shall be excluded from the document line.","M",1,"NOTE: This test is deemed to be the same as PDV-RS-050-02 and does not need to be repeated. \n\nFor the Prescription item(s) with no data in the CDA document (i.e. optional element(s) absent): \nVerify that no data is displayed in the Document Line on the View.\n\nNOTE TO TESTER:  According to the CDA IG, the optional Prescription elements are: \nGeneric Name - PDV CDA component: Prescription Item > Therapeutic Good Generic Name (0..1)\nStrength - PDV CDA component: Prescription Item > Therapeutic Good Strength (0..1)\nDirection - PDV CDA component: Prescription Item > Directions (0..1) \nMedicine Form - PDV CDA component: Prescription Item > Ingredients and Form > Form \n(1..1 but only if 'Ingredients and Form' is present)\nDispensed - PDV CDA component: Prescription Item > Dispensing > Maximum Number of Repeats (0..1)\n","No data is displayed in the Document Line on the PD View, For Prescription item(s) with no data in the CDA document.",null,"NOTE: This test is deemed to be the same as PDV-RS-050-02 and does not need to be repeated. \n"]
["PDV-RS-054-01","View-PD54\nThe expanded Dispensed document line item shall display: \n    • DateTime of Dispense Event \n    • Transaction Type = Dispensed \n    • Generic Name \n    • Brand Name \n    • Strength \n    • Label Instruction \n    • Medicine Form \n    • Quantity = Supply (label in italics) <Quantity> e.g. 'Supply 2'\n    • Dispensed = Number of this dispense.\n\n","M",0,"For each Dispense document line, verify the following are displayed (where available):\n","See below for expected result."]
[null,null,null,1,"NOTE: This test is deemed to be the same as PDV-RS-049-01 Step 1 and does not need to be repeated. \n\nDateTime of Dispense Event\nPDV SCS component: Dispense Item > DateTime of Dispense Event (1..1)\nCDA element: entry[sbadm]/substanceAdministration/entryRelationship[sply]/supply/effectiveTime\n","The expanded Dispensed document line item displays: \n    • DateTime of Dispense Event \n",null,"NOTE: This test is deemed to be the same as PDV-RS-049-01 Step 1 and does not need to be repeated. "]
[null,null,null,2,"NOTE: This test is deemed to be the same as PDV-RS-049-01 Step 2 and does not need to be repeated. \n\nTransaction Type\ni.e. 'Dispensed' (exact text).\n\nNOTE TO TESTER: this does not have a PDV CDA component.\n","The expanded Dispensed document line item displays: \n    • Transaction Type = Dispensed \n",null,"NOTE: This test is deemed to be the same as PDV-RS-049-01 Step 2 and does not need to be repeated. "]
[null,null,null,3,"NOTE: This test is deemed to be the same as PDV-RS-049-01 Step 3 and does not need to be repeated. \n\nGeneric Name \nPDV CDA component: Dispense Item > Therapeutic Good Generic Name (0..1)\nCDA element: entry[sbadm]/substanceAdministration/entryRelationship[sply]/supply/product/manufacturedProduct/manufacturedMaterial/name\n","The expanded Dispensed document line item displays: \n    • Generic Name \n",null,"NOTE: This test is deemed to be the same as PDV-RS-049-01 Step 3 and does not need to be repeated. "]
[null,null,null,4,"NOTE: This test is deemed to be the same as PDV-RS-049-01 Step 4 and does not need to be repeated. \n\nBrand Name\nPDV CDA component: Dispense Item > Therapeutic Good Identification (1..1)\nCDA element: entry[sbadm]/substanceAdministration/entryRelationship[sply]/supply/product/manufacturedProduct/manufacturedMaterial/code\n\nNOTE TO TESTER:  Where information is displayed from a coded data type in the PDV CDA document verify that the value of the 'originalText' is displayed, if present. \nIf the 'originalText' is not present then verify that the value of 'displayName' is displayed, if present. \nIf both 'originalText' and 'displayName' are displayed then verify that these are clearly distinguished.\n\nThis conforms to requirement 020652 found in NEHTA-1788:2014 Clinical Terminology - Use of Medical Nomenclatures in Information Exchange v1.0.\n","The expanded Dispensed document line item displays: \n    • Brand Name \n",null,"NOTE: This test is deemed to be the same as PDV-RS-049-01 Step 4 and does not need to be repeated. "]
[null,null,null,5,"NOTE: This test is deemed to be the same as PDV-RS-049-01 Step 5 and does not need to be repeated. \n\nStrength \nPDV CDA component: Dispense Item > Therapeutic Good Strength (0..1)\nCDA element: entry[sbadm]/substanceAdministration/entryRelationship[strength]/act/text\n","The expanded Dispensed document line item displays: \n    • Strength \n",null,"NOTE: This test is deemed to be the same as PDV-RS-049-01 Step 5 and does not need to be repeated. "]
[null,null,null,6,"NOTE: This test is deemed to be the same as PDV-RS-049-01 Step 6 and does not need to be repeated. \n\nLabel Instruction \nPDV CDA component: Dispense Item > Label Instruction (0..1) \nCDA element: entry[sbadm]/substanceAdministration/entryRelationship[sply]/supply/entryRelationship[label]/act/text:ST\n","The expanded Dispensed document line item displays: \n    • Label Instruction \n",null,"NOTE: This test is deemed to be the same as PDV-RS-049-01 Step 6 and does not need to be repeated. "]
[null,null,null,7,"NOTE: This test is deemed to be the same as PDV-RS-049-01 Step 7 and does not need to be repeated. \n\nMedicine Form\nPDV CDA component: Dispense Item > Ingredients and Form > Form \n(1..1 but only if 'Ingredients and Form' is present)\nCDA element: entry[sbadm]/substanceAdministration/entryRelationship[sply]/supply/product/manufacturedProduct/manufacturedMaterial/ext:formCode\n\nNOTE TO TESTER:  Where information is displayed from a coded data type in the PDV CDA document verify that the value of the 'originalText' is displayed, if present. If the 'originalText' is not present then verify that the value of 'displayName' is displayed, if present. If both 'originalText' and 'displayName' are displayed then verify that these are clearly distinguished.\n\nThis conforms to requirement 020652 found in NEHTA-1788:2014 Clinical Terminology - Use of Medical Nomenclatures in Information Exchange v1.0.\n","The expanded Dispensed document line item displays: \n    • Medicine Form \n",null,"NOTE: This test is deemed to be the same as PDV-RS-049-01 Step 7 and does not need to be repeated. "]
[null,null,null,8,"NOTE: This test is deemed to be the same as PDV-RS-049-01 Step 8 and does not need to be repeated. \n\nQuantity\n'Supply' (label in italics) followed by the Quantity value. \n\nPDV CDA component: Dispense Item > Quantity Dispensed > Quantity Description \n(1..1 but only if 'Quantity Dispensed' is present)\nCDA element: entry[sbadm]/substanceAdministration/entryRelationship[sply]/supply/entryRelationship[qty_desc]/act/text\n","The expanded Dispensed document line item displays: \n    • Quantity  E.g. 'Supply 2'.\n",null,"NOTE: This test is deemed to be the same as PDV-RS-049-01 Step 8 and does not need to be repeated. "]
[null,null,null,9,"NOTE: This test is deemed to be the same as PDV-RS-049-01 Step 9 and does not need to be repeated. \n\nDispensed\nPDV CDA component: Dispense Item > Number of this Dispense (0..1)\nCDA element: \nentry[sbadm]/substanceAdministration/entryRelationship[sply]/sequenceNumber/@value\n","The expanded Dispensed document line item displays: \n    • Dispensed = Number of this dispense.\n",null,"NOTE: This test is deemed to be the same as PDV-RS-049-01 Step 9 and does not need to be repeated. "]
["PDV-RS-054-02\n","View-PD54\nIf number of this dispense = 1, then The PD View shall display ‘Original Dispense’ in the Dispense Document Line. ","M",1,"NOTE: This test is deemed to be the same as PDV-RS-049-02 and does not need to be repeated. \n\nFor the Dispense Item with the 'Number of this Dispense' set to 1 in the PDV CDA document:\nGo to the Dispense Document Line and verify that the View displays:\n'Original Dispense'  under the Dispensed column.  ","PD View displays 'Original Dispense' under the Dispensed column.  ",null,"NOTE: This test is deemed to be the same as PDV-RS-049-02 and does not need to be repeated. "]
["PDV-RS-054-03\n","View-PD54\nIf number of this dispense is >1, then The PD View shall display ‘Repeat value’ as number of this dispense -1 in the Dispense Document Line e.g. ‘Repeat 1’","M",1,"NOTE: This test is deemed to be the same as PDV-RS-049-03 and does not need to be repeated. \n\nFor the Dispense Item with the 'Number of this Dispense' set to greater than 1 in the PDV CDA document:\nGo to the Dispense Document Line and verify that the View displays:\n'Repeat \"value\"' as number of this dispense -1 under the Dispensed column. \nE.g. 'Repeat 4' \n\nNOTE TO TESTER:\nFor example, if the number of this dispense is 5, then the View shall display ‘Repeat 4'.\n","In the Dispense Document Line, verify that the PD View displays 'Repeat \"value\"' as number of this dispense -1 under the Dispensed column. \n",null,"NOTE: This test is deemed to be the same as PDV-RS-049-03 and does not need to be repeated. "]
["PDV-RS-054-04\n","View-PD54\nWhere there is no data provided for a data element (listed above), then the data element shall be excluded from the document line.","M",1,"NOTE: This test is deemed to be the same as PDV-RS-049-04 and does not need to be repeated. \n\nFor the Dispense item(s) with no data in the CDA document (i.e. optional element(s) absent): \nVerify that no data is displayed in the Document Line on the View. \n\nNOTE TO TESTER:  According to the CDA IG, the optional Dispense elements are: \nGeneric Name - PDV CDA component: Dispense Item > Therapeutic Good Generic Name (0..1)\nStrength - PDV CDA component: Dispense Item > Therapeutic Good Strength (0..1)\nLabel Instruction - PDV CDA component: Dispense Item > Label Instruction (0..1) \nMedicine Form - PDV CDA component: Dispense Item > Ingredients and Form > Form \n(1..1 but only if 'Ingredients and Form' is present)\nQuantity - PDV CDA component: Dispense Item > Quantity Dispensed > Quantity Description \n(1..1 but only if 'Quantity Dispensed' is present)\nDispensed - PDV CDA component: Dispense Item > Number of this Dispense (0..1)\n","No data is displayed in the Document Line on the PD View, For the Dispense item(s) with no data in the CDA document.",null,"NOTE: This test is deemed to be the same as PDV-RS-049-04 and does not need to be repeated. "]
["PDV-RS-055","View-PD55\nThe PD View should render and display the Summary and Document Line items using a colour palette with a colour contrast that meets accessibility standards such as WCAG 2.0: Guideline 1.4 (http://www.w3.org/TR/WCAG20/).\n","O",1,"NOTE: This test is deemed to be the same as PDV-RS-051 and does not need to be repeated. \n\nVerify that the Summary and Document Line items use a colour palette with colour contrast that meet accessibility standards such as:\nWCAG 2.0: Section 1.4 Distinguishable: Use of Color and Contrast.\n","The Summary and Document Line items use a colour palette with colour contrast that meet accessibility standards.",null,"NOTE: This test is deemed to be the same as PDV-RS-051 and does not need to be repeated. "]
["END:   Expanded Group by Generic Name"]
[]
["START:   Expanded Group by PBS Item Code"]
[null,"Pre-requisite",null,null,"Group by PBS Item Code.\nSet to an expanded state.\n","The requested View is displayed."]
["PDV-RS-056-01","View-PD56\nThe expanded Prescribed document line item shall display: \n    • DateTime Prescription Written \n    • Transaction Type = Prescribed \n    • Generic Name \n    • Brand Name \n    • Strength \n    • Direction \n    • Medicine Form \n    • Quantity = Supply (label in italics) <Quantity>, e.g. 'Supply 2'\n    • Dispensed = The PD View shall display ‘Dispense original’ followed by <Maximum number of repeats> in the Prescription Document Line e.g. ‘Dispense original and 1 repeats’.\n","M",0,"For each expanded Prescribed document line, verify the following are displayed (where available):\n","See below for expected result."]
[null,null,null,1,"NOTE: This test is deemed to be the same as PDV-RS-050-01 Step 1 and does not need to be repeated. \n\nDateTime Prescription Written \nPDV SCS component: Prescription Item > DateTime Prescription Written (1..1)\nCDA element: author/time/@value\n","The expanded Prescribed document line item displays: \n    • DateTime Prescription Written \n",null,"NOTE: This test is deemed to be the same as PDV-RS-050-01 Step 1 and does not need to be repeated. "]
[null,null,null,2,"NOTE: This test is deemed to be the same as PDV-RS-050-01 Step 2 and does not need to be repeated. \n\nTransaction Type\ni.e. 'Prescribed' (exact text).\n\nNOTE TO TESTER: this does not have a PDV CDA component.\n","The expanded Prescribed document line item displays: \n    • Transaction Type = Prescribed\n",null,"NOTE: This test is deemed to be the same as PDV-RS-050-01 Step 2 and does not need to be repeated. "]
[null,null,null,3,"NOTE: This test is deemed to be the same as PDV-RS-050-01 Step 3 and does not need to be repeated. \n\nGeneric Name \nPDV CDA component: Prescription Item > Therapeutic Good Generic Name (0..1)\nCDA element: entry[sbadm]/substanceAdministration/consumable/manufacturedProduct/manufacturedMaterial/name\n","The expanded Prescribed document line item displays: \n    • Generic Name \n",null,"NOTE: This test is deemed to be the same as PDV-RS-050-01 Step 3 and does not need to be repeated. "]
[null,null,null,4,"NOTE: This test is deemed to be the same as PDV-RS-050-01 Step 4 and does not need to be repeated. \n\nBrand Name\nPDV CDA component: Prescription Item > Therapeutic Good Identification (1..1)\nCDA element: entry[sbadm]/substanceAdministration/consumable/manufacturedProduct/manufacturedMaterial/\ncode\n\nNOTE TO TESTER:  Where information is displayed from a coded data type in the PDV CDA document verify that the value of the 'originalText' is displayed, if present. \nIf the 'originalText' is not present then verify that the value of 'displayName' is displayed, if present. \nIf both 'originalText' and 'displayName' are displayed then verify that these are clearly distinguished.\n\nThis conforms to requirement 020652 found in NEHTA-1788:2014 Clinical Terminology - Use of Medical Nomenclatures in Information Exchange v1.0.\n","The expanded Prescribed document line item displays: \n    • Brand Name \n",null,"NOTE: This test is deemed to be the same as PDV-RS-050-01 Step 4 and does not need to be repeated. "]
[null,null,null,5,"NOTE: This test is deemed to be the same as PDV-RS-050-01 Step 5 and does not need to be repeated. \n\nStrength \nPDV CDA component: Prescription Item > Therapeutic Good Strength (0..1)\nCDA element: entry[sbadm]/substanceAdministration/entryRelationship[strength]/act/@code=\"103.16769.170.1.1\"\n","The expanded Prescribed document line item displays: \n    • Strength \n",null,"NOTE: This test is deemed to be the same as PDV-RS-050-01 Step 5 and does not need to be repeated. "]
[null,null,null,6,"NOTE: This test is deemed to be the same as PDV-RS-050-01 Step 6 and does not need to be repeated. \n\nDirection\nPDV CDA component: Prescription Item > Directions (0..1) \nCDA element: ClinicalDocument/component/structuredBody/component[pdv_pres_and_disp_reports]/section/component[sme_med_ent_with_summary]/section/component[pres_item]/section/entry[sbadm]/substanceAdministration/text\n\n","The expanded Prescribed document line item displays: \n    • Label Instruction \n",null,"NOTE: This test is deemed to be the same as PDV-RS-050-01 Step 6 and does not need to be repeated. "]
[null,null,null,7,"NOTE: This test is deemed to be the same as PDV-RS-050-01 Step 7 and does not need to be repeated. \n\nMedicine Form\nPDV CDA component: Prescription Item > Ingredients and Form > Form \n(1..1 but only if 'Ingredients and Form' is present)\nCDA element: entry[sbadm]/substanceAdministration/consumable/manufacturedProduct/\nmanufacturedMaterial/ext:formCode\n\nNOTE TO TESTER:  Where information is displayed from a coded data type in the PDV CDA document verify that the value of the 'originalText' is displayed, if present. If the 'originalText' is not present then verify that the value of 'displayName' is displayed, if present. If both 'originalText' and 'displayName' are displayed then verify that these are clearly distinguished.\n\nThis conforms to requirement 020652 found in NEHTA-1788:2014 Clinical Terminology - Use of Medical Nomenclatures in Information Exchange v1.0.\n","The expanded Prescribed document line item displays: \n    • Medicine Form \n",null,"NOTE: This test is deemed to be the same as PDV-RS-050-01 Step 7 and does not need to be repeated. "]
[null,null,null,8,"NOTE: This test is deemed to be the same as PDV-RS-050-01 Step 8 and does not need to be repeated. \n\nQuantity\n'Supply' (label in italics) followed by the Quantity value. \n\nPDV CDA component: Prescription Item > Dispensing > Quantity to Dispense > Quantity Description \n(1..1 but only if 'Quantity to Dispense' is present)\nCDA element: entry[sbadm]/substanceAdministration/entryRelationship[sply]/supply/entryRelationship[qty_desc]/act/text\n","The expanded Prescribed document line item displays: \n    • Quantity  E.g. 'Supply 2'.\n",null,"NOTE: This test is deemed to be the same as PDV-RS-050-01 Step 8 and does not need to be repeated. "]
[null,null,null,9,"NOTE: This test is deemed to be the same as PDV-RS-050-01 Step 9 and does not need to be repeated. \n\nDispensed\nPDV CDA component: Prescription Item > Dispensing > Maximum Number of Repeats\nCDA element:  entry[sbadm]/substanceAdministration/repeatNumber/high/@value\n\nIn the Prescription Document Line, verify the View displays:\n‘Dispense original’ followed by ‘Maximum number of repeats’ \nE.g. ‘ Dispense original and 1 repeats’. \n","The expanded Prescribed document line item displays: \n    • Dispensed\n\nThe PD View displays ‘Dispense original’ followed by <Maximum number of repeats>.",null,"NOTE: This test is deemed to be the same as PDV-RS-050-01 Step 9 and does not need to be repeated. "]
["PDV-RS-056-02","View-PD56\nWhere there is no data provided for a data element (listed above), then the data element shall be excluded from the document line.\n","M",1,"NOTE: This test is deemed to be the same as PDV-RS-050-02 and does not need to be repeated. \n\nFor the Prescription item(s) with no data in the CDA document (i.e. optional element(s) absent): \nVerify that no data is displayed in the Document Line on the View.\n\nNOTE TO TESTER:  According to the CDA IG, the optional Prescription elements are: \nGeneric Name - PDV CDA component: Prescription Item > Therapeutic Good Generic Name (0..1)\nStrength - PDV CDA component: Prescription Item > Therapeutic Good Strength (0..1)\nDirection - PDV CDA component: Prescription Item > Directions (0..1) \nMedicine Form - PDV CDA component: Prescription Item > Ingredients and Form > Form \n(1..1 but only if 'Ingredients and Form' is present)\nDispensed - PDV CDA component: Prescription Item > Dispensing > Maximum Number of Repeats (0..1)\n","Where no data exists in the CDA document, no data is displayed in the Document Line in the View.",null,"NOTE: This test is deemed to be the same as PDV-RS-050-02 and does not need to be repeated. "]
["PDV-RS-057-01","View-PD57\nThe expanded Dispensed document line item shall display: \n    • DateTime of Dispense Event \n    • Transaction Type = Dispensed \n    • Generic Name \n    • Brand Name \n    • Strength \n    • Label Instruction \n    • Medicine Form \n    • Quantity = Supply (label in italics) <Quantity> e.g. 'Supply 2'\n   • Dispensed = Number of this dispense.\n","M ",0,"For each Dispense document line, verify the following are displayed (where available):\n","See below for expected result."]
[null,null,null,1,"NOTE: This test is deemed to be the same as PDV-RS-049-01 Step 1 and does not need to be repeated. \n\nDateTime of Dispense Event\nPDV SCS component: Dispense Item > DateTime of Dispense Event (1..1)\nCDA element: entry[sbadm]/substanceAdministration/entryRelationship[sply]/supply/effectiveTime\n","The expanded Dispensed document line item displays: \n    • DateTime of Dispense Event \n",null,"NOTE: This test is deemed to be the same as PDV-RS-049-01 Step 1 and does not need to be repeated. "]
[null,null,null,2,"NOTE: This test is deemed to be the same as PDV-RS-049-01 Step 2 and does not need to be repeated. \n\nTransaction Type\ni.e. 'Dispensed' (exact text).\n\nNOTE TO TESTER: this does not have a PDV CDA component.\n","The expanded Dispensed document line item displays: \n    • Transaction Type = Dispensed \n",null,"NOTE: This test is deemed to be the same as PDV-RS-049-01 Step 2 and does not need to be repeated. "]
[null,null,null,3,"NOTE: This test is deemed to be the same as PDV-RS-049-01 Step 3 and does not need to be repeated. \n\nGeneric Name \nPDV CDA component: Dispense Item > Therapeutic Good Generic Name (0..1)\nCDA element: entry[sbadm]/substanceAdministration/entryRelationship[sply]/supply/product/manufacturedProduct/manufacturedMaterial/name\n","The expanded Dispensed document line item displays: \n    • Generic Name \n",null,"NOTE: This test is deemed to be the same as PDV-RS-049-01 Step 3 and does not need to be repeated. "]
[null,null,null,4,"NOTE: This test is deemed to be the same as PDV-RS-049-01 Step 4 and does not need to be repeated. \n\nBrand Name\nPDV CDA component: Dispense Item > Therapeutic Good Identification (1..1)\nCDA element: entry[sbadm]/substanceAdministration/entryRelationship[sply]/supply/product/manufacturedProduct/manufacturedMaterial/code\n\nNOTE TO TESTER:  Where information is displayed from a coded data type in the PDV CDA document verify that the value of the 'originalText' is displayed, if present. \nIf the 'originalText' is not present then verify that the value of 'displayName' is displayed, if present. \nIf both 'originalText' and 'displayName' are displayed then verify that these are clearly distinguished.\n\nThis conforms to requirement 020652 found in NEHTA-1788:2014 Clinical Terminology - Use of Medical Nomenclatures in Information Exchange v1.0.\n","The expanded Dispensed document line item displays: \n    • Brand Name \n",null,"NOTE: This test is deemed to be the same as PDV-RS-049-01 Step 4 and does not need to be repeated. "]
[null,null,null,5,"NOTE: This test is deemed to be the same as PDV-RS-049-01 Step 5 and does not need to be repeated. \n\nStrength \nPDV CDA component: Dispense Item > Therapeutic Good Strength (0..1)\nCDA element: entry[sbadm]/substanceAdministration/entryRelationship[strength]/act/text\n","The expanded Dispensed document line item displays: \n    • Strength \n",null,"NOTE: This test is deemed to be the same as PDV-RS-049-01 Step 5 and does not need to be repeated. "]
[null,null,null,6,"NOTE: This test is deemed to be the same as PDV-RS-049-01 Step 6 and does not need to be repeated. \n\nLabel Instruction \nPDV CDA component: Dispense Item > Label Instruction (0..1) \nCDA element: entry[sbadm]/substanceAdministration/entryRelationship[sply]/supply/entryRelationship[label]/act/text:ST\n","The expanded Dispensed document line item displays: \n    • Label Instruction \n",null,"NOTE: This test is deemed to be the same as PDV-RS-049-01 Step 6 and does not need to be repeated. "]
[null,null,null,7,"NOTE: This test is deemed to be the same as PDV-RS-049-01 Step 7 and does not need to be repeated. \n\nMedicine Form\nPDV CDA component: Dispense Item > Ingredients and Form > Form \n(1..1 but only if 'Ingredients and Form' is present)\nCDA element: entry[sbadm]/substanceAdministration/entryRelationship[sply]/supply/product/manufacturedProduct/manufacturedMaterial/ext:formCode\n\nNOTE TO TESTER:  Where information is displayed from a coded data type in the PDV CDA document verify that the value of the 'originalText' is displayed, if present. If the 'originalText' is not present then verify that the value of 'displayName' is displayed, if present. If both 'originalText' and 'displayName' are displayed then verify that these are clearly distinguished.\n\nThis conforms to requirement 020652 found in NEHTA-1788:2014 Clinical Terminology - Use of Medical Nomenclatures in Information Exchange v1.0.\n","The expanded Dispensed document line item displays: \n    • Medicine Form \n",null,"NOTE: This test is deemed to be the same as PDV-RS-049-01 Step 7 and does not need to be repeated. "]
[null,null,null,8,"NOTE: This test is deemed to be the same as PDV-RS-049-01 Step 8 and does not need to be repeated. \n\nQuantity\n'Supply' (label in italics) followed by the Quantity value. \n\nPDV CDA component: Dispense Item > Quantity Dispensed > Quantity Description \n(1..1 but only if 'Quantity Dispensed' is present)\nCDA element: entry[sbadm]/substanceAdministration/entryRelationship[sply]/supply/entryRelationship[qty_desc]/act/text\n","The expanded Dispensed document line item displays: \n    • Quantity  E.g. 'Supply 2'.\n",null,"NOTE: This test is deemed to be the same as PDV-RS-049-01 Step 8 and does not need to be repeated. "]
[null,null,null,9,"NOTE: This test is deemed to be the same as PDV-RS-049-01 Step 9 and does not need to be repeated. \n\nDispensed\nPDV CDA component: Dispense Item > Number of this Dispense (0..1)\nCDA element: \nentry[sbadm]/substanceAdministration/entryRelationship[sply]/sequenceNumber/@value\n","The expanded Dispensed document line item displays: \n    • Dispensed = Number of this dispense.\n",null,"NOTE: This test is deemed to be the same as PDV-RS-049-01 Step 9 and does not need to be repeated. "]
["PDV-RS-057-02\n","View-PD57\nIf number of this dispense = 1, then The PD View shall display ‘Original Dispense’ in the Dispense Document Line. ","M",1,"NOTE: This test is deemed to be the same as PDV-RS-049-02 and does not need to be repeated. \n\nFor the Dispense Item with the 'Number of this Dispense' set to 1 in the PDV CDA document:\nGo to the Dispense Document Line and verify that the View displays:\n'Original Dispense'  under the Dispensed column.  ","PD View displays 'Original Dispense' under the Dispensed column.  ",null,"NOTE: This test is deemed to be the same as PDV-RS-049-02 and does not need to be repeated. "]
["PDV-RS-057-03\n","View-PD57\nIf number of this dispense is >1, then The PD View shall display ‘Repeat <value>’ as number of this dispense -1 in the Dispense Document Line, e.g. ‘Repeat 1’.","M",1,"NOTE: This test is deemed to be the same as PDV-RS-049-03 and does not need to be repeated. \n\nFor the Dispense Item with the 'Number of this Dispense' set to greater than 1 in the PDV CDA document:\nGo to the Dispense Document Line and verify that the View displays:\n'Repeat \"value\"' as number of this dispense -1 under the Dispensed column. \nE.g. 'Repeat 4' \n\nNOTE TO TESTER:\nFor example, if the number of this dispense is 5, then the View shall display ‘Repeat 4'.\n","In the Dispense Document Line, verify that the PD View displays 'Repeat \"value\"' as number of this dispense -1 under the Dispensed column. \n",null,"NOTE: This test is deemed to be the same as PDV-RS-049-03 and does not need to be repeated. "]
["PDV-RS-057-04\n","View-PD57\nWhere there is no data provided for a data element (listed above), then the data element shall be excluded from the document line.","M",1,"NOTE: This test is deemed to be the same as PDV-RS-049-04 and does not need to be repeated. \n\nFor the Dispense item(s) with no data in the CDA document (i.e. optional element(s) absent): \nVerify that no data is displayed in the Document Line on the View. \n\nNOTE TO TESTER:  According to the CDA IG, the optional Dispense elements are: \nGeneric Name - PDV CDA component: Dispense Item > Therapeutic Good Generic Name (0..1)\nStrength - PDV CDA component: Dispense Item > Therapeutic Good Strength (0..1)\nLabel Instruction - PDV CDA component: Dispense Item > Label Instruction (0..1) \nMedicine Form - PDV CDA component: Dispense Item > Ingredients and Form > Form \n(1..1 but only if 'Ingredients and Form' is present)\nQuantity - PDV CDA component: Dispense Item > Quantity Dispensed > Quantity Description \n(1..1 but only if 'Quantity Dispensed' is present)\nDispensed - PDV CDA component: Dispense Item > Number of this Dispense (0..1)\n","No data is displayed in the Document Line on the PD View, For the Dispense item(s) with no data in the CDA document.",null,"NOTE: This test is deemed to be the same as PDV-RS-049-04 and does not need to be repeated. "]
["PDV-RS-058","View-PD58\nThe PD View should render and display the Summary and Document Line items using a colour palette with a colour contrast that meets accessibility standards such as WCAG 2.0: Guideline 1.4 (http://www.w3.org/TR/WCAG20/).\n","O",1,"NOTE: This test is deemed to be the same as PDV-RS-051 and does not need to be repeated. \n\nVerify that the Summary and Document Line items use a colour palette with colour contrast that meet accessibility standards such as:\nWCAG 2.0: Section 1.4 Distinguishable: Use of Color and Contrast.\n","The Summary and Document Line items use a colour palette with colour contrast that meet accessibility standards.",null,"NOTE: This test is deemed to be the same as PDV-RS-051 and does not need to be repeated. "]
["END:   Expanded Group by PBS Item Code"]
[]
["START:   Expanded Group by Brand Name"]
[null,"Pre-requisite",null,null,"Group by Brand Name.\nSet to an expanded state.\n","The requested View is displayed."]
["PDV-RS-059-01","View-PD59\nThe expanded Prescribed document line item shall display: \n    • DateTime Prescription Written \n    • Transaction Type = Prescribed \n    • Generic Name \n    • Brand Name \n    • Strength \n    • Direction \n    • Medicine Form \n    • Quantity = Supply (label in italics) <Quantity>, e.g. 'Supply 2'.\n    • Dispensed = The PD View shall display ‘Dispense original’ followed by <Maximum number of repeats> in the Prescription Document Line, e.g. ‘Dispense original and 1 repeats’ \n","M",0,"For each expanded Prescribed document line, verify the following are displayed (where available):\n","See below for expected result."]
[null,null,null,1,"NOTE: This test is deemed to be the same as PDV-RS-050-01 Step 1 and does not need to be repeated. \n\nDateTime Prescription Written \nPDV SCS component: Prescription Item > DateTime Prescription Written (1..1)\nCDA element: author/time/@value\n","The expanded Prescribed document line item displays: \n    • DateTime Prescription Written \n",null,"NOTE: This test is deemed to be the same as PDV-RS-050-01 Step 1 and does not need to be repeated. "]
[null,null,null,2,"NOTE: This test is deemed to be the same as PDV-RS-050-01 Step 2 and does not need to be repeated. \n\nTransaction Type\ni.e. 'Prescribed' (exact text).\n\nNOTE TO TESTER: this does not have a PDV CDA component.\n","The expanded Prescribed document line item displays: \n    • Transaction Type = Prescribed\n",null,"NOTE: This test is deemed to be the same as PDV-RS-050-01 Step 2 and does not need to be repeated. "]
[null,null,null,3,"NOTE: This test is deemed to be the same as PDV-RS-050-01 Step 3 and does not need to be repeated. \n\nGeneric Name \nPDV CDA component: Prescription Item > Therapeutic Good Generic Name (0..1)\nCDA element: entry[sbadm]/substanceAdministration/consumable/manufacturedProduct/manufacturedMaterial/name\n","The expanded Prescribed document line item displays: \n    • Generic Name \n",null,"NOTE: This test is deemed to be the same as PDV-RS-050-01 Step 3 and does not need to be repeated. "]
[null,null,null,4,"NOTE: This test is deemed to be the same as PDV-RS-050-01 Step 4 and does not need to be repeated. \n\nBrand Name\nPDV CDA component: Prescription Item > Therapeutic Good Identification (1..1)\nCDA element: entry[sbadm]/substanceAdministration/consumable/manufacturedProduct/manufacturedMaterial/\ncode\n\nNOTE TO TESTER:  Where information is displayed from a coded data type in the PDV CDA document verify that the value of the 'originalText' is displayed, if present. \nIf the 'originalText' is not present then verify that the value of 'displayName' is displayed, if present. \nIf both 'originalText' and 'displayName' are displayed then verify that these are clearly distinguished.\n\nThis conforms to requirement 020652 found in NEHTA-1788:2014 Clinical Terminology - Use of Medical Nomenclatures in Information Exchange v1.0.\n","The expanded Prescribed document line item displays: \n    • Brand Name \n",null,"NOTE: This test is deemed to be the same as PDV-RS-050-01 Step 4 and does not need to be repeated. "]
[null,null,null,5,"NOTE: This test is deemed to be the same as PDV-RS-050-01 Step 5 and does not need to be repeated. \n\nStrength \nPDV CDA component: Prescription Item > Therapeutic Good Strength (0..1)\nCDA element: entry[sbadm]/substanceAdministration/entryRelationship[strength]/act/@code=\"103.16769.170.1.1\"\n","The expanded Prescribed document line item displays: \n    • Strength \n",null,"NOTE: This test is deemed to be the same as PDV-RS-050-01 Step 5 and does not need to be repeated. "]
[null,null,null,6,"NOTE: This test is deemed to be the same as PDV-RS-050-01 Step 6 and does not need to be repeated. \n\nDirection\nPDV CDA component: Prescription Item > Directions (0..1) \nCDA element: ClinicalDocument/component/structuredBody/component[pdv_pres_and_disp_reports]/section/component[sme_med_ent_with_summary]/section/component[pres_item]/section/entry[sbadm]/substanceAdministration/text\n\n","The expanded Prescribed document line item displays: \n    • Label Instruction \n",null,"NOTE: This test is deemed to be the same as PDV-RS-050-01 Step 6 and does not need to be repeated. "]
[null,null,null,7,"NOTE: This test is deemed to be the same as PDV-RS-050-01 Step 7 and does not need to be repeated. \n\nMedicine Form\nPDV CDA component: Prescription Item > Ingredients and Form > Form \n(1..1 but only if 'Ingredients and Form' is present)\nCDA element: entry[sbadm]/substanceAdministration/consumable/manufacturedProduct/\nmanufacturedMaterial/ext:formCode\n\nNOTE TO TESTER:  Where information is displayed from a coded data type in the PDV CDA document verify that the value of the 'originalText' is displayed, if present. If the 'originalText' is not present then verify that the value of 'displayName' is displayed, if present. If both 'originalText' and 'displayName' are displayed then verify that these are clearly distinguished.\n\nThis conforms to requirement 020652 found in NEHTA-1788:2014 Clinical Terminology - Use of Medical Nomenclatures in Information Exchange v1.0.\n","The expanded Prescribed document line item displays: \n    • Medicine Form \n",null,"NOTE: This test is deemed to be the same as PDV-RS-050-01 Step 7 and does not need to be repeated. "]
[null,null,null,8,"NOTE: This test is deemed to be the same as PDV-RS-050-01 Step 8 and does not need to be repeated. \n\nQuantity\n'Supply' (label in italics) followed by the Quantity value. \n\nPDV CDA component: Prescription Item > Dispensing > Quantity to Dispense > Quantity Description \n(1..1 but only if 'Quantity to Dispense' is present)\nCDA element: entry[sbadm]/substanceAdministration/entryRelationship[sply]/supply/entryRelationship[qty_desc]/act/text\n","The expanded Prescribed document line item displays: \n    • Quantity  E.g. 'Supply 2'.\n",null,"NOTE: This test is deemed to be the same as PDV-RS-050-01 Step 8 and does not need to be repeated. "]
[null,null,null,9,"NOTE: This test is deemed to be the same as PDV-RS-050-01 Step 9 and does not need to be repeated. \n\nDispensed\nPDV CDA component: Prescription Item > Dispensing > Maximum Number of Repeats\nCDA element:  entry[sbadm]/substanceAdministration/repeatNumber/high/@value\n\nIn the Prescription Document Line, verify the View displays:\n‘Dispense original’ followed by ‘Maximum number of repeats’ \nE.g. ‘ Dispense original and 1 repeats’. \n","The expanded Prescribed document line item displays: \n    • Dispensed\n\nThe PD View displays ‘Dispense original’ followed by <Maximum number of repeats>.",null,"NOTE: This test is deemed to be the same as PDV-RS-050-01 Step 9 and does not need to be repeated. "]
["PDV-RS-059-02","View-PD59\nWhere there is no data provided for a data element (listed above), then the data element shall be excluded from the document line.\n","M",1,"NOTE: This test is deemed to be the same as PDV-RS-050-02 and does not need to be repeated. \n\nFor the Prescription item(s) with no data in the CDA document (i.e. optional element(s) absent): \nVerify that no data is displayed in the Document Line on the View.\n\nNOTE TO TESTER:  According to the CDA IG, the optional Prescription elements are: \nGeneric Name - PDV CDA component: Prescription Item > Therapeutic Good Generic Name (0..1)\nStrength - PDV CDA component: Prescription Item > Therapeutic Good Strength (0..1)\nDirection - PDV CDA component: Prescription Item > Directions (0..1) \nMedicine Form - PDV CDA component: Prescription Item > Ingredients and Form > Form \n(1..1 but only if 'Ingredients and Form' is present)\nDispensed - PDV CDA component: Prescription Item > Dispensing > Maximum Number of Repeats (0..1)\n","No data is displayed in the Document Line on the PD View, For Prescription item(s) with no data in the CDA document.",null,"NOTE: This test is deemed to be the same as PDV-RS-050-02 and does not need to be repeated. \n"]
["PDV-RS-060-01","View-PD60\nThe expanded Dispensed document line item shall display: \n    • DateTime of Dispense Event \n    • Transaction Type = Dispensed \n    • Generic Name \n    • Brand Name \n    • Strength \n    • Label Instruction \n    • Medicine Form \n    • Quantity = Supply (label in italics) <Quantity>, e.g. 'Supply 2'\n    • Dispensed = Number of this dispense.\n\n","M",0,"For each Dispense document line, verify the following are displayed (where available):\n","See below for expected result."]
[null,null,null,1,"NOTE: This test is deemed to be the same as PDV-RS-049-01 Step 1 and does not need to be repeated. \n\nDateTime of Dispense Event\nPDV SCS component: Dispense Item > DateTime of Dispense Event (1..1)\nCDA element: entry[sbadm]/substanceAdministration/entryRelationship[sply]/supply/effectiveTime\n","The expanded Dispensed document line item displays: \n    • DateTime of Dispense Event \n",null,"NOTE: This test is deemed to be the same as PDV-RS-049-01 Step 1 and does not need to be repeated. "]
[null,null,null,2,"NOTE: This test is deemed to be the same as PDV-RS-049-01 Step 2 and does not need to be repeated. \n\nTransaction Type\ni.e. 'Dispensed' (exact text).\n\nNOTE TO TESTER: this does not have a PDV CDA component.\n","The expanded Dispensed document line item displays: \n    • Transaction Type = Dispensed \n",null,"NOTE: This test is deemed to be the same as PDV-RS-049-01 Step 2 and does not need to be repeated. "]
[null,null,null,3,"NOTE: This test is deemed to be the same as PDV-RS-049-01 Step 3 and does not need to be repeated. \n\nGeneric Name \nPDV CDA component: Dispense Item > Therapeutic Good Generic Name (0..1)\nCDA element: entry[sbadm]/substanceAdministration/entryRelationship[sply]/supply/product/manufacturedProduct/manufacturedMaterial/name\n","The expanded Dispensed document line item displays: \n    • Generic Name \n",null,"NOTE: This test is deemed to be the same as PDV-RS-049-01 Step 3 and does not need to be repeated. "]
[null,null,null,4,"NOTE: This test is deemed to be the same as PDV-RS-049-01 Step 4 and does not need to be repeated. \n\nBrand Name\nPDV CDA component: Dispense Item > Therapeutic Good Identification (1..1)\nCDA element: entry[sbadm]/substanceAdministration/entryRelationship[sply]/supply/product/manufacturedProduct/manufacturedMaterial/code\n\nNOTE TO TESTER:  Where information is displayed from a coded data type in the PDV CDA document verify that the value of the 'originalText' is displayed, if present. \nIf the 'originalText' is not present then verify that the value of 'displayName' is displayed, if present. \nIf both 'originalText' and 'displayName' are displayed then verify that these are clearly distinguished.\n\nThis conforms to requirement 020652 found in NEHTA-1788:2014 Clinical Terminology - Use of Medical Nomenclatures in Information Exchange v1.0.\n","The expanded Dispensed document line item displays: \n    • Brand Name \n",null,"NOTE: This test is deemed to be the same as PDV-RS-049-01 Step 4 and does not need to be repeated. "]
[null,null,null,5,"NOTE: This test is deemed to be the same as PDV-RS-049-01 Step 5 and does not need to be repeated. \n\nStrength \nPDV CDA component: Dispense Item > Therapeutic Good Strength (0..1)\nCDA element: entry[sbadm]/substanceAdministration/entryRelationship[strength]/act/text\n","The expanded Dispensed document line item displays: \n    • Strength \n",null,"NOTE: This test is deemed to be the same as PDV-RS-049-01 Step 5 and does not need to be repeated. "]
[null,null,null,6,"NOTE: This test is deemed to be the same as PDV-RS-049-01 Step 6 and does not need to be repeated. \n\nLabel Instruction \nPDV CDA component: Dispense Item > Label Instruction (0..1) \nCDA element: entry[sbadm]/substanceAdministration/entryRelationship[sply]/supply/entryRelationship[label]/act/text:ST\n","The expanded Dispensed document line item displays: \n    • Label Instruction \n",null,"NOTE: This test is deemed to be the same as PDV-RS-049-01 Step 6 and does not need to be repeated. "]
[null,null,null,7,"NOTE: This test is deemed to be the same as PDV-RS-049-01 Step 7 and does not need to be repeated. \n\nMedicine Form\nPDV CDA component: Dispense Item > Ingredients and Form > Form \n(1..1 but only if 'Ingredients and Form' is present)\nCDA element: entry[sbadm]/substanceAdministration/entryRelationship[sply]/supply/product/manufacturedProduct/manufacturedMaterial/ext:formCode\n\nNOTE TO TESTER:  Where information is displayed from a coded data type in the PDV CDA document verify that the value of the 'originalText' is displayed, if present. If the 'originalText' is not present then verify that the value of 'displayName' is displayed, if present. If both 'originalText' and 'displayName' are displayed then verify that these are clearly distinguished.\n\nThis conforms to requirement 020652 found in NEHTA-1788:2014 Clinical Terminology - Use of Medical Nomenclatures in Information Exchange v1.0.\n","The expanded Dispensed document line item displays: \n    • Medicine Form \n",null,"NOTE: This test is deemed to be the same as PDV-RS-049-01 Step 7 and does not need to be repeated. "]
[null,null,null,8,"NOTE: This test is deemed to be the same as PDV-RS-049-01 Step 8 and does not need to be repeated. \n\nQuantity\n'Supply' (label in italics) followed by the Quantity value. \n\nPDV CDA component: Dispense Item > Quantity Dispensed > Quantity Description \n(1..1 but only if 'Quantity Dispensed' is present)\nCDA element: entry[sbadm]/substanceAdministration/entryRelationship[sply]/supply/entryRelationship[qty_desc]/act/text\n","The expanded Dispensed document line item displays: \n    • Quantity  E.g. 'Supply 2'.\n",null,"NOTE: This test is deemed to be the same as PDV-RS-049-01 Step 8 and does not need to be repeated. "]
[null,null,null,9,"NOTE: This test is deemed to be the same as PDV-RS-049-01 Step 9 and does not need to be repeated. \n\nDispensed\nPDV CDA component: Dispense Item > Number of this Dispense (0..1)\nCDA element: \nentry[sbadm]/substanceAdministration/entryRelationship[sply]/sequenceNumber/@value\n","The expanded Dispensed document line item displays: \n    • Dispensed = Number of this dispense.\n",null,"NOTE: This test is deemed to be the same as PDV-RS-049-01 Step 9 and does not need to be repeated. "]
["PDV-RS-060-02\n","View-PD60\nIf number of this dispense = 1, then The PD View shall display ‘Original Dispense’ in the Dispense Document Line. ","M",1,"NOTE: This test is deemed to be the same as PDV-RS-049-02 and does not need to be repeated. \n\nFor the Dispense Item with the 'Number of this Dispense' set to 1 in the PDV CDA document:\nGo to the Dispense Document Line and verify that the View displays:\n'Original Dispense'  under the Dispensed column.  ","PD View displays 'Original Dispense' under the Dispensed column.  ",null,"NOTE: This test is deemed to be the same as PDV-RS-049-02 and does not need to be repeated. "]
["PDV-RS-060-03\n","View-PD60\nIf number of this dispense is >1, then The PD View shall display ‘Repeat value’ as number of this dispense -1 in the Dispense Document Line e.g. ‘Repeat 1’.","M",1,"NOTE: This test is deemed to be the same as PDV-RS-049-03 and does not need to be repeated. \n\nFor the Dispense Item with the 'Number of this Dispense' set to greater than 1 in the PDV CDA document:\nGo to the Dispense Document Line and verify that the View displays:\n'Repeat \"value\"' as number of this dispense -1 under the Dispensed column. \nE.g. 'Repeat 4' \n\nNOTE TO TESTER:\nFor example, if the number of this dispense is 5, then the View shall display ‘Repeat 4'.\n","In the Dispense Document Line, verify that the PD View displays 'Repeat \"value\"' as number of this dispense -1 under the Dispensed column. \n",null,"NOTE: This test is deemed to be the same as PDV-RS-049-03 and does not need to be repeated. "]
["PDV-RS-060-04\n","View-PD60\nWhere there is no data provided for a data element (listed above), then the data element shall be excluded from the document line.","M",1,"NOTE: This test is deemed to be the same as PDV-RS-049-04 and does not need to be repeated. \n\nFor the Dispense item(s) with no data in the CDA document (i.e. optional element(s) absent): \nVerify that no data is displayed in the Document Line on the View. \n\nNOTE TO TESTER:  According to the CDA IG, the optional Dispense elements are: \nGeneric Name - PDV CDA component: Dispense Item > Therapeutic Good Generic Name (0..1)\nStrength - PDV CDA component: Dispense Item > Therapeutic Good Strength (0..1)\nLabel Instruction - PDV CDA component: Dispense Item > Label Instruction (0..1) \nMedicine Form - PDV CDA component: Dispense Item > Ingredients and Form > Form \n(1..1 but only if 'Ingredients and Form' is present)\nQuantity - PDV CDA component: Dispense Item > Quantity Dispensed > Quantity Description \n(1..1 but only if 'Quantity Dispensed' is present)\nDispensed - PDV CDA component: Dispense Item > Number of this Dispense (0..1)\n","No data is displayed in the Document Line on the PD View, For the Dispense item(s) with no data in the CDA document.",null,"NOTE: This test is deemed to be the same as PDV-RS-049-04 and does not need to be repeated. "]
["PDV-RS-061","View-PD61\nThe PD View should render and display the Summary and Document Line items using a colour palette with a colour contrast that meets accessibility standards such as WCAG 2.0: Guideline 1.4 (http://www.w3.org/TR/WCAG20/).\n","O",1,"NOTE: This test is deemed to be the same as PDV-RS-051 and does not need to be repeated. \n\nVerify that the Summary and Document Line items use a colour palette with colour contrast that meet accessibility standards such as:\nWCAG 2.0: Section 1.4 Distinguishable: Use of Color and Contrast.\n","The Summary and Document Line items use a colour palette with colour contrast that meet accessibility standards.",null,"NOTE: This test is deemed to be the same as PDV-RS-051 and does not need to be repeated. "]
["END:   Expanded Group by Brand Name"]
[]
["START:   Individual Clinical Documents"]
["PDV-RS-062","View-PD62\nWhen a user clicks a Prescription document line item, the Prescription CDA document shall be retrieved from the PCEHR system, rendered, and displayed in The PD View. ","M ",1,"a) Group by Prescription.\nb) Set to an expanded state.\nc) Click on each Prescription Item Document Line and verify that it retrieves and renders the corresponding CDA document from the PCEHR.\nI.e. the details in the CDA document are the same as those displayed in the View. \n\n","The details in the CDA document are the same as those displayed in the PD View. \n",null,null,{"$f":"IF(G259=\"\",\"0\",IF(G259=\"Pass\",1,IF(G259=\"Fail\",0,IF(G259=\"TBD\",0,IF(G259=\"N/A\",1)))))","v":"0"},108,{"$f":"IF(AND(BGCol(C259)=48,G259=\"N/A\"),1,0)","v":{"$error":"#NAME?"}}]
["PDV-RS-063","View-PD63\nWhen a user clicks a Dispense document line item, the Dispense CDA document shall be retrieved from the PCEHR system, rendered, and displayed in The PD View. ","M ",1,"a) Group by Prescription.\nb) Set to an expanded state.\nc) Click on each Dispense Item Document Line and verify that it retrieves and renders the corresponding CDA document from the PCEHR.\nI.e. the details in the CDA document are the same as those displayed in the View. \n","The details in the CDA document are the same as those displayed in the PD View. \n",null,null,"0",109,{"$error":"#NAME?"}]
["END:   Individual Clinical Documents"]
[null,null,null,null,null,null,"PASS","# of PDV steps N/A or Pass",{"$f":"SUM(I8:I261)","v":0}]
[null,null,null,null,null,null,"FAIL","Total # of PDV steps\n",109]
[null,null,null,null,null,null,"N/A",null,{"$f":"(I262/I263)","v":0}]
[null,null,null,null,null,null,"TBD"]

{"sheet":"1. TD","index":4,"n_rows":24,"n_cols":2,"rows_kept":24,"cut":false,"hidden":false,"merged":[[1,0,1,1]]}
["Test Set:","Prescription and Dispense View - REQUIRED TEST DATA"]
["IF NEHTA TEST DATA CANNOT BE USED TO TEST,  PLEASE CREATE YOUR OWN WITH THE FOLLOWING CONDITIONS:"]
["PATIENT","TEST DATA TO BE CREATED"]
["Patient 1","01. multiple Prescription and Dispense Items.\n"]
[null,"02. at least one Dispense Item and NO corresponding Prescription Items.\n"]
[null,"03. at least one Prescription Item and no corresponding Dispense items. \n"]
[null,"04. multiple Prescription and Dispense Items that are in a different timezone.\n"]
[null,"05. multiple Dispense items with some Prescription Items absent..\n"]
[null,"06. at least one Prescription with no 'Therapeutic Good Generic Name'.\n"]
[null,"07. at least one Dispense with no 'Therapeutic Good Generic Name'.\n"]
[null,"08. at least one Prescription without PBS Item Codes in the 'Therapeutic Good Identification'.\n"]
[null,"09. at least one Dispense without PBS Item Codes in the 'Therapeutic Good Identification'.\n"]
[null,"10. at least one Prescription with Brand Name medications in the 'Therapeutic Good Identification'.\n"]
[null,"11. at least one Dispense with Brand Name medications in the 'Therapeutic Good Identification'.\n"]
[null,"12. 'Total Number of Known Supplies' and 'Maximum Number of Permitted Supplies' values.\n"]
[null,"13. NO  'Total Number of Known Supplies' and 'Maximum Number of Permitted Supplies' values\n"]
[null,"14. at least one of the Dispenses Items has the \"Number of this Dispense\" set to 1.\n"]
[null,"15. at least one of the Dispense Items has the \"Number of this Dispense\" set to greater than 1.\n"]
[null,"16. at least one of the Prescription Items has its optional elements absent (refer to CDA implementation guide for optionality)\n"]
[null,"17. at least one of the Dispense Items has its optional elements absent (refer to CDA implementation guide for optionality)\n"]
[null,"18.  where the Therapeutic Good Identification is the same as Therapeutic Good Generic Name\n"]
[null,"19. For every data element that is a coded data type, provide coded examples where:\na) the code and displayName is provided without an originalText, and\nb) the originalText is provided without the code and displayName,  and \nc) the code, displayName and originalText are provided, and the value of the originalText differs from the value of the displayName.\n"]
[]
["Patient 2","01. with NO Prescription and Dispense Items.\n"]

{"sheet":"2. DIRV","index":5,"n_rows":93,"n_cols":11,"rows_kept":93,"cut":false,"hidden":false,"merged":[[24,1,25,1],[1,3,3,5],[0,3,0,5]]}
["Test Set:","Diagnostic Imaging Report View",null,"TEST DATA INFORMATION",null,null,"Software name: version:\n","Please complete"]
["Derivation:","1. NEHTA-2161:2015 eHealth Diagnostic Imaging Report View - PCEHR Conformance Profile v1.0.1\n2. NEHTA-2054:2015 eHealth Diagnostic Imaging Report View - Presentation and Data Usage Guide v1.1\n3. NEHTA-1299:2012 PCEHR Connecting Systems - Conformance Test Specification v1.6\n4. NEHTA-1788:2014 Clinical Terminology - Use of Medical Nomenclatures in Information Exchange v1.0\n",null,"To apply these test cases the tester needs to obtain the View XML file for DIRV.\nIf the tester does not have this ability, a copy may be requested by contacting the NEHTA help desk.\n\nTO ACCESS NEHTA TEST DATA, USE:\n● Patient A - Shaun LEE  IHI: 8003608166690511  Medicare Card: 2950355981  IRN: 1  Sex: Male  DOB: 15/03/1979  Address: 281 Dawson Street, Pyrmont, NSW, 2009\n\nIF NEHTA TEST DATA CANNOT BE USED TO TEST, PLEASE CREATE YOUR OWN WITH THE FOLLOWING CONDITIONS:  \n   Refer to the DIRV TD worksheet.\n",null,null,"Software supplier:","Please complete"]
["Test Set Objective:","To verify the correct downloading and rendering of Diagnostic Imaging Report Views from the PCEHR system.\n",null,null,null,null,"Tester:","Please complete"]
["Pre-requisite:","1. Access to the PCEHR SVT (System Vendor Test) environment.\n2. Either:\n    a. Access to NEHTA's test data in the SVT that supports the Diagnostic Imaging Report View test cases; or\n    b. Access to test data that meets the test data prerequisites.\n",null,null,null,null,"Date:","Please complete"]
[]
["THIS HEADER CAN BE COLLAPSED BY CLICKING THE '-' SYMBOL ON THE LEFT."]
["TEST CASE ID","CONFORMANCE REQUIREMENT","PRIORITY\n(Mandatory, Optional, Conditional)","STEP NO.","TEST STEP","EXPECTED RESULT","TEST RESULT","TESTER COMMENTS","CALC.",null,"MANDATORY AND N/A"]
["eHealth Diagnostic Imaging Report View - PCEHR Conformance Profile"]
["START: Conformance requirements for consumers"]
["DIRV-CP-024715","024715\nClinical information system requirements\n\nIf the software consuming an eHealth Diagnostic Imaging Report View is a clinical information system, the software SHALL conform to the mandatory requirements for the role of a CIS Consumer.\n\n024716\nContracted service provider system requirements\n\nIf the software consuming an eHealth Diagnostic Imaging Report View is a CSP system, the software SHALL conform to the mandatory requirements for the role of a CIS Consumer that are relevant for the scope of the CSP system. \n\nNOTE: the role of CIS Consumer is defined in  NEHTA-1294:2012 PCEHR Connecting Systems - Conformance Assessment Scheme v1.1. Requirements for a CIS Consumer are described in NEHTA-1297:2012 PCEHR Connecting Systems - Conformance Requirements v1.5.\n","C",1,"NOTE TO TESTER: IF THIS TEST CASE HAS PASSED WHILE TESTING CONFORMANCE TO THE RENDERING REQUIREMENTS FOR ANOTHER VIEW IN THE SAME VERSION OF THE SOFTWARE THEN IT DOES NOT NEED TO BE PERFORMED AGAIN.\n\nThis test references the NEHTA-1299:2012 PCEHR Connecting Systems - Conformance Test Specification v1.6.\ni.e. if 'CIS_CAS_343b' is passed, then this test case can be set to passed.\n\nThat is:\n1. The CIS Consumer software passes all mandatory and relevant conditional tests in worksheets:\na)  UC.CIS.001  Check if an advertised PCEHR exists.\nb)  UC.CIS.002.1  Gain access to PCEHR (with Access Code).\nc)  UC.CIS.002.2  Gain access to PCEHR (without Access Code).\nd)  UC.CIS.002.3  Gain access to PCEHR (Emergency Access).\ne)  UC.CIS.301 Access a View Service\n","Test Case CIS_CAS_343b from the NEHTA-1299:2012 PCEHR Connecting Systems - Conformance Test Specification v1.6 is passed.",null,null,{"$f":"IF(G10=\"\",\"0\",IF(G10=\"Pass\",1,IF(G10=\"Fail\",0,IF(G10=\"TBD\",0,IF(G10=\"N/A\",1)))))","v":"0"},1,{"$f":"IF(AND(BGCol(C10)=48,G10=\"N/A\"),1,0)","v":{"$error":"#NAME?"}}]
["DIRV-CP-023618","023618\neHealth Diagnostic Imaging Report View presentation requirements\n\nThe software SHALL present eHealth Diagnostic Imaging Report Views in accordance with the mandatory requirements in the eHealth Diagnostic Imaging Report View Presentation and Data Usage Guide.\n","M",1,"NOTE TO TESTER:\nThe test cases for the Diagnostic Imaging Report View Presentation and Data Usage Guide are listed below.","All MANDATORY Presentation and Data Usage Guide tests (given below) have passed.",null,null,{"$f":"IF(G11=\"\",\"0\",IF(G11=\"Pass\",1,IF(G11=\"Fail\",0,IF(G11=\"TBD\",0,IF(G11=\"N/A\",1)))))","v":"0"},2,{"$f":"IF(AND(BGCol(C11)=48,G11=\"N/A\"),1,0)","v":{"$error":"#NAME?"}}]
["END: Conformance requirements for consumers"]
[]
["eHealth Diagnostic Imaging Report View - Presentation and Data Usage Guide"]
["START:   View Content"]
[null,"Pre-requisite",null,null,"Request a Diagnostic Imaging View from the PCEHR for Patient A.\n","The requested View is displayed."]
["DIRV-PG-01","View-CM01\nThe View SHALL display a title at the top of the View.\n","M",1,"Verify a title is displayed at the top of the View.\n\n","A title is displayed at the top of the view.\n",null,null,{"$f":"IF(G17=\"\",\"0\",IF(G17=\"Pass\",1,IF(G17=\"Fail\",0,IF(G17=\"TBD\",0,IF(G17=\"N/A\",1)))))","v":"0"},3,{"$f":"IF(AND(BGCol(C17)=48,G17=\"N/A\"),1,0)","v":{"$error":"#NAME?"}}]
["DIRV-PG-02","View- DI01\nThe View title SHALL display the text \"Diagnostic Imaging Report View\".\n","M",1,"Verify the View title displays the text \"Diagnostic Imaging Report View\"","\"Diagnostic Imaging Report View\" text is displayed as View title.",null,null,"0",4,{"$f":"IF(AND(BGCol(C18)=48,G18=\"N/A\"),1,0)","v":{"$error":"#NAME?"}}]
["DIRV-PG-03","View-CM02\nThe title SHOULD have a font-size larger than the font-size used in other text components in the View.\n","O",1,"Verify the title has a font-size larger than the font-size used in other text components in the View.","Title has a font-size larger than the font-size used in other text components in the View.",null,null,"0",5,{"$f":"IF(AND(BGCol(C19)=48,G19=\"N/A\"),1,0)","v":{"$error":"#NAME?"}}]
["DIRV-PG-04","View-CM03\nThe title SHOULD have a font-weight larger than the font-weight used in other text components in the View.\n","O",1,"Verify the title has font-weight larger than the font-weight used in other text components in the View.","Title has font-weight larger than the font-weight used in other text components in the View.",null,null,"0",6,{"$f":"IF(AND(BGCol(C20)=48,G20=\"N/A\"),1,0)","v":{"$error":"#NAME?"}}]
["DIRV-PG-05","View-CM09\nThe View SHALL display the following statement to healthcare providers: \"This is not a complete view of the individual's health information.  For more information about the individual’s health record or data, please consult the individual or other healthcare professionals as needed\".\n","C",1,"Where the healthcare provider software is for a CIS, CSP system, or a Registered Provider Portal, verify the View displays the following statement to the healthcare provider: \n\n\"This is not a complete view of the individual's health information. For more information about the individual’s health record or data, please consult the individual or other healthcare professionals as needed\".\n\nNOTE TO TESTER:\nThis requirement is not applicable to a Registered Consumer Portal.\n","Where the healthcare provider software is NOT a Registered Consumer Portal, the View displays the statement:\n\"This is not a complete view of the individual's health information. For more information about the individual’s health record or data, please consult the individual or other healthcare professionals as needed\".\n",null,null,"0",7,{"$f":"IF(AND(BGCol(C21)=48,G21=\"N/A\"),1,0)","v":{"$error":"#NAME?"}}]
["DIRV-PG-06","View-CM07\nThe View SHALL be displayed in such a way as to allow the entire dataset to be viewed (E.g. provide vertical scrolling / paging etc.).","M",1,"Ensure 'Patient A' has a large amount of 'Document sets' in the 'Summary lines'  (so that vertical scrolling / paging etc. can be demonstrated).\n\nVerify the View is displayed in such a way as to allow the entire dataset to be viewed.\n\n","The view is displayed to allow the entire dataset to be viewed.",null,null,"0",8,{"$f":"IF(AND(BGCol(C22)=48,G22=\"N/A\"),1,0)","v":{"$error":"#NAME?"}}]
["DIRV-PG-07","View-CM08\nThe Rendering System SHALL NOT allow horizontal scrolling of the View.","M",1,"Verify the Rendering System does not allow horizontal scrolling of the View in any circumstance.\n","Horizontal scrolling of the view is not be allowed by the Rendering system.",null,null,"0",9,{"$f":"IF(AND(BGCol(C23)=48,G23=\"N/A\"),1,0)","v":{"$error":"#NAME?"}}]
["DIRV-PG-08","View-CM51\nExcept when specifically stated within a requirement, times and time zones SHOULD NOT be displayed in the View.\n","O",1,"NOTE TO TESTER:  the Presentation Guide does not specifically state any further requirements that times and timezones must be displayed.\n\nVerify times and time zones are not displayed in the View.\n\n","Only dates are displayed in the View, times and time zones are not displayed.\n",null,null,"0",10,{"$f":"IF(AND(BGCol(C24)=48,G24=\"N/A\"),1,0)","v":{"$error":"#NAME?"}}]
["DIRV-PG-09","View-DI05\nThe View SHALL display at least the following information (where provided by the payload), in any order, for each examination within a report (where available):\n\n• Imaging date\n• Authoring organisation name\n• Exam procedure\n• Modality\n• Anatomical location\n• Laterality\n\nEach item SHALL be described with labels, column headings or similar, so that the meaning of dates and organisations is clear. \n\n\nNOTE TO TESTER: Known issue with 'Exam Procedure' in the Presentation Guide \ni.e.  It should not appear in the requirement.  \n","M",1,"Verify that the following information is displayed with a label, column heading or some thing similar and derived from the related element path within the View response message:\n\na) Imaging date\n/diagnosticImagingReportViewResponse/diagnosticImagingReport/imagingExaminationResult/imagingServiceDateTime\n\nData type: string\n","All information displayed with a label, column heading or some thing similar is derived from the relevant fields within the View response message.",null,null,"0",11,{"$f":"IF(AND(BGCol(C25)=48,G25=\"N/A\"),1,0)","v":{"$error":"#NAME?"}}]
[null,null,null,2,"Verify that the following information is displayed with a label, column heading or some thing similar and derived from the related element path within the View response message:\n\nb) Authoring organisation name\n/diagnosticImagingReportViewResponse/diagnosticImagingReport/clinicalDocumentAuthor/healthcareProviderOrganisationName\n\nData Type: string\n","All information displayed with a label, column heading or some thing similar is derived from the relevant fields within the View response message.",null,null,"0",12,{"$f":"IF(AND(BGCol(C26)=48,G26=\"N/A\"),1,0)","v":{"$error":"#NAME?"}}]
[null,null,null,3,"NOTE TO TESTER: Exam Procedure should not appear in the requirement. This is a known  issue with the Presentation Guide  \n","N/A"]
[null,null,null,4,"Verify that the following information is displayed with a label, column heading or some thing similar and derived from the related element path within the View response message:\n\nd) Modality\n/diagnosticImagingReportViewResponse/diagnosticImagingReport/imagingExaminationResult/modality/displayName\n\nData type: customCE codedData\n\nNOTE TO TESTER:  Where information is displayed from a coded data type in the diagnostic imaging report view XML document verify that the value of the 'originalText' is displayed, if present. If the 'originalText' is not present then verify that the value of 'displayName' is displayed, if present. If both 'originalText' and 'displayName' are displayed then verify that these are clearly distinguished.\n\nThis conforms to requirement 020665 found in NEHTA-1788:2014 Clinical Terminology - Use of Medical Nomenclatures in Information Exchange v1.0.\n","All information displayed with a label, column heading or some thing similar is derived from the relevant fields within the View response message.",null,null,"0",13,{"$f":"IF(AND(BGCol(C28)=48,G28=\"N/A\"),1,0)","v":{"$error":"#NAME?"}}]
[null,null,null,5,"Verify that the following information is displayed with a label, column heading or some thing similar and derived from the related element path within the View response message:\n\ne) Anatomical location\n/diagnosticImagingReportViewResponse/diagnosticImagingReport/imagingExaminationResult/anatomicalSiteDetails/anatomicalLocation/anatomicalLocationName/displayName\nIf more than one anatomical locations are present, then all must be displayed.\n\nData type: complexType anatomicalLocation\n\nNOTE TO TESTER: \na) Anatomical Location contains two coded data elements:\nName of Location\nLaterality\nb) If there are multiple Anatomical locations for patient, all the anatomical locations details SHALL be displayed in the vendor software. \n\nWhere information is displayed from a coded data type in the diagnostic imaging report view XML document verify that the value of the 'originalText' is displayed, if present. \nIf the 'originalText' is not present then verify that the value of 'displayName' is displayed, if present. \nIf both 'originalText' and 'displayName' are displayed then verify that these are clearly distinguished.\n\nThis conforms to requirement 020665 found in NEHTA-1788:2014 Clinical Terminology - Use of Medical Nomenclatures in Information Exchange v1.0.\n","All information displayed with a label, column heading or some thing similar is derived from the relevant fields within the View response message.\n\nIf there are multiple Anatomical locations for patient all the anatomical locations details are displayed in the vendor software. ",null,null,"0",14,{"$f":"IF(AND(BGCol(C29)=48,G29=\"N/A\"),1,0)","v":{"$error":"#NAME?"}}]
[null,null,null,6,"Verify that the following information is displayed with a label, column heading or some thing similar and derived from the related element path within the View response message:\n\nf) Laterality\n/diagnosticImagingReportViewResponse/diagnosticImagingReport/imagingExaminationResult/anatomicalSiteDetails/anatomicalLocation/laterality/displayName\n\nData type: customCE codedData\n\nNOTE TO TESTER:  Where information is displayed from a coded data type in the diagnostic imaging report view XML document verify that the value of the 'originalText' is displayed, if present. If the 'originalText' is not present then verify that the value of 'displayName' is displayed, if present. If both 'originalText' and 'displayName' are displayed then verify that these are clearly distinguished.\n\nThis conforms to requirement 020665 found in NEHTA-1788:2014 Clinical Terminology - Use of Medical Nomenclatures in Information Exchange v1.0.\n","All information displayed with a label, column heading or some thing similar is derived from the relevant fields within the View response message.",null,null,"0",15,{"$f":"IF(AND(BGCol(C30)=48,G30=\"N/A\"),1,0)","v":{"$error":"#NAME?"}}]
[null,null,null,7,"Where other information is contained in the View\na). Verify that it is displayed with a label, column heading or something similar.\nb). Verify that it is sourced from the related element path. \n\nNOTE TO TESTER:\nThe element path for the display information is described in the 'View response xml attribute' column of the 'CDA to View Mapping' worksheet of the Diagnostic Imaging Report View Data Usage Guide [NEHTA2014c].\n\nWhere information is displayed from a coded data type in the diagnostic imaging report view XML document verify that the value of the 'originalText' is displayed, if present. \nIf the 'originalText' is not present then verify that the value of 'displayName' is displayed, if present. \nIf both 'originalText' and 'displayName' are displayed then verify that these are clearly distinguished. \n\nThis conforms to requirement 020665 found in NEHTA-1788:2014 Clinical Terminology - Use of Medical Nomenclatures in Information Exchange v1.0.\n\n","Any other information is displayed with labels, column headings or something similar, and is sourced from the related element path.",null,null,{"$f":"IF(G31=\"\",\"0\",IF(G31=\"Pass\",1,IF(G31=\"Fail\",0,IF(G31=\"TBD\",0,IF(G31=\"N/A\",1)))))","v":"0"},16,{"$f":"IF(AND(BGCol(C31)=48,G31=\"N/A\"),1,0)","v":{"$error":"#NAME?"}}]
["DIRV-PG-10","View-CM11\nStructured DateTime values in the View SHOULD be in the format [DD-Mmm-YYYY] \ne.g. 14-Aug-2013.","O",1,"Verify that structured DateTime values in the View are in the format of [DD-Mmm-YYYY]\n\nE.g. 07-Aug-2014","Structured DateTime values are in the format of  [DD-Mmm-YYYY].\n\nE.g. 07-Aug-2014\n",null,null,{"$f":"IF(G32=\"\",\"0\",IF(G32=\"Pass\",1,IF(G32=\"Fail\",0,IF(G32=\"TBD\",0,IF(G32=\"N/A\",1)))))","v":"0"},17,{"$f":"IF(AND(BGCol(C32)=48,G32=\"N/A\"),1,0)","v":{"$error":"#NAME?"}}]
["DIRV-PG-11","View-CM35\nText that does not fit horizontally within the available space SHALL be wrapped onto a new line.\n\nIf the available space is adjustable (e.g. resizable columns) or the entire block of text can be presented by another means (e.g. a tooltip or popup box), then the View SHALL instead indicate that some text is hidden (where applicable), via an ellipsis or other means. \n\nRationale\n“Available space” may mean a column, a line, the width of a page, an annotation or other designated space designed to hold text.  Space that is too narrow to hold the necessary text must support the wrapping of that text in a predictable way so that information is not lost or hidden from the reader.\n\n","M",1,"Where text does not fit horizontally within the available space then:\nVerify that it wraps onto a new line.\n\nOR\n\nWhere the available space is adjustable (e.g. resizable columns) or the entire block of text can be presented by another means (e.g. a tooltip or popup box), then:\nVerify that the View indicates that some text is hidden via an ellipsis or other means.\n\nNOTE TO TESTER: Depending on the software, it may be possible to manually expand the available space by widening the column,  using a tool tip to see the full text or some other method. If the text is visible in full in the manually expanded space then such a design meets the requirement provided it is clear that some information is hidden (by displaying ellipses for example) and there is a means to access the hidden text within the view.\n\n","Text that does not fit horizontally within the available space is wrapped onto a new line, or \nWhere the available space is adjustable or the entire block of text can be presented by any other means, the View indicates that some text is hidden.",null,null,{"$f":"IF(G33=\"\",\"0\",IF(G33=\"Pass\",1,IF(G33=\"Fail\",0,IF(G33=\"TBD\",0,IF(G33=\"N/A\",1)))))","v":"0"},18,{"$f":"IF(AND(BGCol(C33)=48,G33=\"N/A\"),1,0)","v":{"$error":"#NAME?"}}]
["DIRV-PG-12","View-CM17\nEach Document Line in the View SHALL act as a link to the source CDA® document in the PCEHR, such that the CDA® document is presented first or at the same time as any PDF attached to the CDA® document.\n","M",1,"Verify that for every Document Line in the View, when clicked on, the source Diagnostic Imaging Report CDA document is displayed according to the rendering requirements for that type of document and that it is presented first or at the same time as the PDF attachment. \n","Each Document Line in the View acts as a link to the source Diagnostic Imaging Report in the PCEHR, and \nis displayed according to the rendering requirements for that type of document, and\nis presented first or at the same time as the PDF attachment.\n",null,null,{"$f":"IF(G34=\"\",\"0\",IF(G34=\"Pass\",1,IF(G34=\"Fail\",0,IF(G34=\"TBD\",0,IF(G34=\"N/A\",1)))))","v":"0"},19,{"$f":"IF(AND(BGCol(C34)=48,G34=\"N/A\"),1,0)","v":{"$error":"#NAME?"}}]
["END:   View Content"]
[]
["START:   Printed View"]
["CONDITION:   These tests are applicable only if the rendering system is capable of printing a Diagnostic Imaging View"]
[null,"Pre-requisite",null,null,"Print the Diagnostic Imaging View for Patient A.\n","Diagnostic Imaging View is printed."]
["DIRV-PG-13","View-CM04a\nA printed View SHALL contain, as part of the Header at the top of each page, the following consumer information:\n• Family name\n• Given name(s), where available), where provided\n• Date of birth\n• Sex\n• Individual Healthcare Identifier (IHI)\n\nRationale\nIncluding identifying information for the individual helps the reader of the printed view understand who the data in the View is related to.\n","C",1,"Verify the printed View contains the following consumer (patient) information as part of the Header at the top of each page:\n\n• Family name\n• Given name(s), where available):provided\n• Date of birth\n• Sex\n• Individual Healthcare Identifier (IHI)\n","The printed View contains the consumer information as part of the Header at the top of each page.",null,null,{"$f":"IF(G40=\"\",\"0\",IF(G40=\"Pass\",1,IF(G40=\"Fail\",0,IF(G40=\"TBD\",0,IF(G40=\"N/A\",1)))))","v":"0"},20,{"$f":"IF(AND(BGCol(C40)=48,G40=\"N/A\"),1,0)","v":{"$error":"#NAME?"}}]
["DIRV-PG-14","View-CM06\nA printed View SHALL contain the page number as part of the Footer at the bottom of each page.\n","C",1,"Verify the printed View contains the page number as part of the Footer at the bottom of each page.\n","Printed View contains the page number as part of the Footer at the bottom of each page.",null,null,{"$f":"IF(G41=\"\",\"0\",IF(G41=\"Pass\",1,IF(G41=\"Fail\",0,IF(G41=\"TBD\",0,IF(G41=\"N/A\",1)))))","v":"0"},21,{"$f":"IF(AND(BGCol(C41)=48,G41=\"N/A\"),1,0)","v":{"$error":"#NAME?"}}]
["DIRV-PG-15","View-CM05\nA printed View SHOULD contain page numbers as \"Page N of T\" on each page as part of the Footer.","O",1,"Verify the printed View contains page numbers as:\n\na) \"Page 1 of T\" on each first page, as part of the Footer. \nE.g. Page 1 of 5, where 5 is the total number of pages printed.\n\nb) \"Page T of T\" on each last page, as part of the Footer. \nE.g. Page 5 of 5, where 5 is the total number of pages printed.\n\nc) \"Page N of T\" on each intermediary page, as part of the Footer.  \nE.g. Page 3 of 5, where 5 is the total number of pages printed.\n","Printed View contains page numbers as \"Page N of T\" on each page as part of the Footer.",null,null,{"$f":"IF(G42=\"\",\"0\",IF(G42=\"Pass\",1,IF(G42=\"Fail\",0,IF(G42=\"TBD\",0,IF(G42=\"N/A\",1)))))","v":"0"},22,{"$f":"IF(AND(BGCol(C42)=48,G42=\"N/A\"),1,0)","v":{"$error":"#NAME?"}}]
["END: Printed View"]
[]
["START:   Date Filter"]
[null,"Pre-requisite",null,null,"Request a Diagnostic Imaging View from the PCEHR for Patient A.\n","The requested View is displayed."]
["DIRV-PG-17","View-CM12a\nThe View SHALL be able to be filtered by a date range.\n\nRationale\nPermitting the filtering of large data sets by date increases view utility.\n\n\n","M",1,"Apply date range values in the 'FROM' and 'TO' fields of the Date filter:\nVerify the View is filtered by the requested dates. \n\nExample: The following attachment demonstrates the Date filter.\n\n\n","View is able to be filtered by dates.",null,null,{"$f":"IF(G47=\"\",\"0\",IF(G47=\"Pass\",1,IF(G47=\"Fail\",0,IF(G47=\"TBD\",0,IF(G47=\"N/A\",1)))))","v":"0"},23,{"$f":"IF(AND(BGCol(C47)=48,G47=\"N/A\"),1,0)","v":{"$error":"#NAME?"}}]
["DIRV-PG-18","View-CM40\nThe \"TO\" date in the date filter SHALL default to today's date.\n\nRationale\nDefaulting this date value to today's date aids usability.\n","M",1,"Verify that the 'TO' date defaults to today's date.","The 'TO' date is defaulted to today's date.",null,null,{"$f":"IF(G48=\"\",\"0\",IF(G48=\"Pass\",1,IF(G48=\"Fail\",0,IF(G48=\"TBD\",0,IF(G48=\"N/A\",1)))))","v":"0"},24,{"$f":"IF(AND(BGCol(C48)=48,G48=\"N/A\"),1,0)","v":{"$error":"#NAME?"}}]
["DIRV-PG-19","View-DI11\nThe \"TO\" date in the date filter SHALL NOT be modified by the end user and will remain read only and defaulted to Today’s date.\n\nRationale\nThe PCEHR System currently has a defect in the processing of the To Date filter.  While this defect is being resolved, implementers must not allow the user to change the “TO” date from Today’s date.  \nThis conformance requirement is temporary and will be removed once the PCEHR system defect has been resolved.\n","M",1,"Verify that the 'TO' date in the date filter cannot be modified by the end user and will remain read only and defaulted to Today’s date.","\"TO\" date in the date filter cannot be modified by the end user and will remain read only and defaulted to Today’s date.",null,null,{"$f":"IF(G49=\"\",\"0\",IF(G49=\"Pass\",1,IF(G49=\"Fail\",0,IF(G49=\"TBD\",0,IF(G49=\"N/A\",1)))))","v":"0"},25,{"$f":"IF(AND(BGCol(C49)=48,G49=\"N/A\"),1,0)","v":{"$error":"#NAME?"}}]
["DIRV-PG-20","View-CM13\nThe dates displayed in the 'From' and 'To' controls of the Date Filter SHOULD be in the format [DD-Mmm-YYYY] e.g. 14-Aug-2013.\n","O",1,"Verify the dates displayed in the 'From' and 'To' controls are in the format of DD-Mmm-YYYY\n\nE.g. 14-Aug-2013\n","From' and 'To' controls of the Date Filter are in the\nformat [DD-Mmm-YYYY] ",null,null,{"$f":"IF(G50=\"\",\"0\",IF(G50=\"Pass\",1,IF(G50=\"Fail\",0,IF(G50=\"TBD\",0,IF(G50=\"N/A\",1)))))","v":"0"},26,{"$f":"IF(AND(BGCol(C50)=48,G50=\"N/A\"),1,0)","v":{"$error":"#NAME?"}}]
["DIRV-PG-21","View-CM14\nViews filtered by date SHALL display the dates entered in the Date Filter 'From' and 'To' fields to indicate the applied date range.\n","M",1,"a) Select the appropriate date range in the date filter 'From' and 'To' fields.\nb) Verify Views filtered by date display the applied date range.","Views filtered by date display the dates entered in the Date Filter 'From' and 'To' fields to indicate the applied date range.",null,null,{"$f":"IF(G51=\"\",\"0\",IF(G51=\"Pass\",1,IF(G51=\"Fail\",0,IF(G51=\"TBD\",0,IF(G51=\"N/A\",1)))))","v":"0"},27,{"$f":"IF(AND(BGCol(C51)=48,G51=\"N/A\"),1,0)","v":{"$error":"#NAME?"}}]
["DIRV-PG-22","View-DI09\nWhen the View is filtered by a date range, the results SHALL be in reverse date/time order, such that the most recent date is at the top of the list by default in the absence of user preferences.\n","M",1,"a) Select an appropriate date range in the date filter 'From' and 'To' fields.\nb) Verify the most recent date is at the top of the list by default in the absence of user preferences.","The most recent date is at the top of the list by default in the absence of user preferences.",null,null,"0",28,{"$f":"IF(AND(BGCol(C52)=48,G52=\"N/A\"),1,0)","v":{"$error":"#NAME?"}}]
["DIRV-PG-23","View-DI10\nThe default view SHALL be filtered by date with a date range not greater than seven years.\n\nRationale: \nTo prevent excess View data diminishing the user experience, views are required to apply a default date filter. A period of seven years aligns with many document retention policies required in many states and territories. The default view may be changed or removed by the user.\n","M",1,"a) When the View contains the 'Document sets' ranging over seven years, verify the default view shall be filtered by date with a date range not greater than seven years.\n\n","Default view is filtered by date with a date range not greater than seven years.",null,null,"0",29,{"$f":"IF(AND(BGCol(C53)=48,G53=\"N/A\"),1,0)","v":{"$error":"#NAME?"}}]
["DIRV-PG-24","View-CM15\nDateTime values displayed in a column SHOULD be right aligned in the View.\n","O",1,"Verify DateTime values displayed in a column are right aligned in the View.","The DateTime values displayed in a column are right aligned in the View.",null,null,"0",30,{"$f":"IF(AND(BGCol(C54)=48,G54=\"N/A\"),1,0)","v":{"$error":"#NAME?"}}]
["DIRV-PG-25","View-CM10\nThe View SHALL only contain a single statement when no information is available: \"No information is available\".\n","M",1,"Verify that where the request for a Diagnostic Imaging Report View has a filtered date range that does not contain any Diagnostic Imaging Report documents in the PCEHR, that the Diagnostic Imaging Report View only displays a single statement that no information is available: \"No information is available\".\n","View displays single statement \"No information is available\".",null,null,{"$f":"IF(G55=\"\",\"0\",IF(G55=\"Pass\",1,IF(G55=\"Fail\",0,IF(G55=\"TBD\",0,IF(G55=\"N/A\",1)))))","v":"0"},31,{"$f":"IF(AND(BGCol(C55)=48,G55=\"N/A\"),1,0)","v":{"$error":"#NAME?"}}]
["END:   Date Filter"]
[]
["START: Group by"]
[null,"Pre-requisite",null,null,"Request a Diagnostic Imaging View from the PCEHR for Patient A.\n","The requested View is displayed."]
["DIRV-PG-26","View-DI03\nThe View SHALL permit the provider to group on at least the following items:\n• Authoring organisation name\n\nRationale\nThe ability to group by modality, anatomical location or procedure offers a quick means of locating required examination results.  It is problematic to group by this meta-data due to inconsistent naming standards for these items.  When nationally agreed naming standards or coding sets become available then this conformance point may be updated to expand the list of groups available.\nOrganisation names are derived from HPI-O’s and are regulated by the HI Service so it is possible to group by organisation name.\n","M",1,"Using the 'Group by' function in the View: \nVerify the View permits the provider to group on 'Authoring organisation name'.\n\nNOTE TO TESTER: other groupings are allowed.\n\nExample: The following attachment demonstrates the 'Group by' filter. ","View permits the provider to group on 'Authoring Organisation name'.",null,null,{"$f":"IF(G60=\"\",\"0\",IF(G60=\"Pass\",1,IF(G60=\"Fail\",0,IF(G60=\"TBD\",0,IF(G60=\"N/A\",1)))))","v":"0"},32,{"$f":"IF(AND(BGCol(C60)=48,G60=\"N/A\"),1,0)","v":{"$error":"#NAME?"}}]
["DIRV-PG-27","View-CM54\nRows SHALL be sorted within the summary line they belong to.  (For example, sorted within the organisation and not across organisations.)\n\nRationale\nWhen sorting lines that are grouped it is important for lines to be sorted within the natural group they are attached to, such that context is not lost.\n\n\n\n\n\n","M",1,"Verify that item rows within the Summary lines are sorted within the organisation that the Summary line represents.\n\nExample: The following attachment demonstrates the sorting of rows with in the organisation: \n\n\n","The item rows are sorted, and remain, within their related Summary line. ",null,null,{"$f":"IF(G61=\"\",\"0\",IF(G61=\"Pass\",1,IF(G61=\"Fail\",0,IF(G61=\"TBD\",0,IF(G61=\"N/A\",1)))))","v":"0"},33,{"$f":"IF(AND(BGCol(C61)=48,G61=\"N/A\"),1,0)","v":{"$error":"#NAME?"}}]
["END:   Group by"]
[]
["START: Collapsed and expanded items "]
["CONDITION:   These tests are applicable only if the rendering system is capable of collapsing and expanding items"]
[null,"Pre-requisite",null,null,"Request a Diagnostic Imaging View from the PCEHR for Patient A.\n","The requested View is displayed."]
["DIRV-PG-28","View-CM29\nThe Summary Line in the View SHOULD be displayed as collapsed rows by default.\n\n","O",1,"Verify the Summary Line is displayed as collapsed rows by default.","Summary Line in the View are displayed as collapsed rows by default.",null,null,{"$f":"IF(G67=\"\",\"0\",IF(G67=\"Pass\",1,IF(G67=\"Fail\",0,IF(G67=\"TBD\",0,IF(G67=\"N/A\",1)))))","v":"0"},34,{"$f":"IF(AND(BGCol(C67)=48,G67=\"N/A\"),1,0)","v":{"$error":"#NAME?"}}]
["DIRV-PG-29","View-CM30\nCollapsed Summary Line displayed in the View SHALL be expandable.\n\n\n\n\n\n","C",1,"Select any collapsed Summary line in the View:\nVerify that it can be expanded.\n\nExample: The following attachment demonstrates collapsing and expanding Summary Lines.","Collapsed Summary Line displayed in the View is expandable.",null,null,{"$f":"IF(G68=\"\",\"0\",IF(G68=\"Pass\",1,IF(G68=\"Fail\",0,IF(G68=\"TBD\",0,IF(G68=\"N/A\",1)))))","v":"0"},35,{"$f":"IF(AND(BGCol(C68)=48,G68=\"N/A\"),1,0)","v":{"$error":"#NAME?"}}]
["DIRV-PG-30","View-CM31\nExpanded Summary Line displayed in the View SHOULD be collapsible.\n","O",1,"Select an expanded Summary line in the View:\nVerify that it can be collapsed.","Expanded Summary Line displayed in the View is collapsible.",null,null,"0",36,{"$f":"IF(AND(BGCol(C69)=48,G69=\"N/A\"),1,0)","v":{"$error":"#NAME?"}}]
["DIRV-PG-31","View-CM32\nCollapsing and expanding Summary Line in the View SHOULD be possible by clicking on any part of the Summary Line.\n","O",1,"Click on any part of the Summary Line:\nVerify that it can be collapsed and expanded.","Summary Line is collapsed and expanded by clicking on any part of the Summary Line.",null,null,"0",37,{"$f":"IF(AND(BGCol(C70)=48,G70=\"N/A\"),1,0)","v":{"$error":"#NAME?"}}]
["DIRV-PG-32","View-CM23\nWhen the mouse cursor is rolled over any part of the Summary Line in the View, the background of the entire Summary Line SHOULD be highlighted.","O",1,"Hold the mouse cursor over any part of the Summary Line in the View:\nVerify the background of the entire Summary Line is highlighted.  \n\n","The background of the entire Summary Line is highlighted, when the mouse cursor is held over any part of the Summary Line.",null,null,"0",38,{"$f":"IF(AND(BGCol(C71)=48,G71=\"N/A\"),1,0)","v":{"$error":"#NAME?"}}]
["DIRV-PG-33","View-CM25\nEach Summary Line SHOULD have a 'roll-over' state, activated by the movement of the mouse cursor over any part of the Item, with a font colour that provides colour differentiation according to accessibility standards.\n","O",1,"Move the mouse cursor over any part of the Summary Line item:\nVerify that it has a 'roll-over' state with a font colour that provides colour differentiation according to accessibility standards.\n\nNOTE TO TESTER:\nAn example of an accessibility standard is the one published by W3C: http://www.w3.org/TR/WCAG20/.  \n","Each Summary Line has  'roll-over' state with a font colour that provides colour differentiation according to accessibility standards.",null,null,"0",39,{"$f":"IF(AND(BGCol(C72)=48,G72=\"N/A\"),1,0)","v":{"$error":"#NAME?"}}]
["DIRV-PG-34","View-DI08\nThe Summary Line SHALL display at least the authoring organisation name as the left most or first item.\n","C",1,"Display a Summary Line:\nVerify that it displays the authoring organisation name as the left most or first item."," Summary Line displayed at least the authoring organisation name as the left most or first item in the summary line.",null,null,"0",40,{"$f":"IF(AND(BGCol(C73)=48,G73=\"N/A\"),1,0)","v":{"$error":"#NAME?"}}]
["DIRV-PG-35","View-CM33\nThe View SHALL display Summary and Document lines in a way that visually separates them (e.g. with alternate shading or a line).\n","C",1,"Verify  the View displays Summary and Document lines in a way that visually separates them (e.g. with alternate shading or a line).","View displays Summary and Document lines in a way that visually separates them.",null,null,"0",41,{"$f":"IF(AND(BGCol(C74)=48,G74=\"N/A\"),1,0)","v":{"$error":"#NAME?"}}]
["DIRV-PG-36","View-DI07\nEach Document Line within the expanded Summary Line SHALL include at least the following items in the expanded section:\n\n•  Imaging date\n•  Modality\n•  Exam procedure\n•  Anatomical location\n•  Laterality\n\nEach item SHALL be described with labels, column headings or similar, so that the meaning of dates and organisations is clear.\n\nRationale\nSpecifying the minimum data set to be displayed guarantees a level of view utility.\n\nNOTE TO TESTER: Known issue with 'Exam Procedure' in the Presentation Guide \ni.e.  It should not appear in the requirement.  \n","C",1,"Expand each Summary Line and verify each document line includes at least the following information with labels, column headings or some thing similar:\na) Imaging date\nb) Modality\nc) Exam Procedure\nd) Anatomical location\ne) Laterality\n\nNOTE TO TESTER: It is not mandatory to display the information in columns with column headings.\n\nExample: The following attachment demonstrates the mandatory information within each summary line. \n","Document Line within the expanded Summary Line includes all the mandatory information.",null,null,"0",42,{"$f":"IF(AND(BGCol(C75)=48,G75=\"N/A\"),1,0)","v":{"$error":"#NAME?"}}]
["DIRV-PG-37","View-CM20\nText based data used for ordering Summary Lines in the View SHALL be ordered in ascending alphabetical order.\n\nNote:\nAlphabetical order includes the ordering of alphanumeric characters (letters and numbers) as well as the ordering of symbols.  Ordering should maintain the standard applied within other areas of the system.\n\n","C",1,"Verify that the Summary lines are ordered in ascending alphabetical order of the item selected in the 'Group By' filter (e.g. Authoring organisation name).\n","Summary Lines in the View are ordered in ascending alphabetical order",null,null,{"$f":"IF(G76=\"\",\"0\",IF(G76=\"Pass\",1,IF(G76=\"Fail\",0,IF(G76=\"TBD\",0,IF(G76=\"N/A\",1)))))","v":"0"},43,{"$f":"IF(AND(BGCol(C76)=48,G76=\"N/A\"),1,0)","v":{"$error":"#NAME?"}}]
["DIRV-PG-38","View-CM24\nWhen the mouse cursor is rolled over any part of the Document Line in the View, the background of the entire Document Line SHOULD be highlighted.","O",1,"Hold the mouse cursor over any part of the Document Line in the View and verify the background of the entire Document Line is highlighted.  \n\n","The background of the entire Document Line is highlighted, when the mouse cursor is held over any part of the document Line.",null,null,{"$f":"IF(G77=\"\",\"0\",IF(G77=\"Pass\",1,IF(G77=\"Fail\",0,IF(G77=\"TBD\",0,IF(G77=\"N/A\",1)))))","v":"0"},44,{"$f":"IF(AND(BGCol(C77)=48,G77=\"N/A\"),1,0)","v":{"$error":"#NAME?"}}]
["DIRV-PG-39","View-CM26\nEach Document Line SHOULD have a 'roll-over' state, activated by the movement of the mouse cursor over any part of the Item, with a font colour that provides colour differentiation according to accessibility standards.\n","O",1,"Move the mouse cursor over any part of the Document Line item and verify the Document Line has  'roll-over' state with a font colour that provides colour differentiation according to accessibility standards.\n\nNOTE TO TESTER:\nAn example of an accessibility standard is the one published by W3C: http://www.w3.org/TR/WCAG20/.\n\n","Each Document Line has  'roll-over' state with a font colour that provides colour differentiation according to accessibility standards.",null,null,{"$f":"IF(G78=\"\",\"0\",IF(G78=\"Pass\",1,IF(G78=\"Fail\",0,IF(G78=\"TBD\",0,IF(G78=\"N/A\",1)))))","v":"0"},45,{"$f":"IF(AND(BGCol(C78)=48,G78=\"N/A\"),1,0)","v":{"$error":"#NAME?"}}]
["END: Collapsed and expanded items "]
[]
["START:   Ordering"]
[null,"Pre-requisite",null,null,"Request a Diagnostic Imaging View from the PCEHR for Patient A.\n","The requested View is displayed."]
["DIRV-PG-40","View-DI02\nThe View SHALL allow the user to order the rows within the view via the following items:\n\n1) Authoring organisation name\n2) Imaging date\n3) Exam Procedure\n4) Modality\n5) Anatomical location\n\nUnless changed by the user, the default sort order SHALL be \"imaging date\" in reverse chronological order.\n\nNOTE TO TESTER: There is a known issue  with 'Exam Procedure' in the Presentation Guide \ni.e.  It should not appear in the requirement.  \n","M",1,"Verify that the default sort order is 'Imaging date' in reverse chronological order.  \n\nNOTE TO TESTER: Ordering by additional information (apart from the mandatory information) is permitted.\n\nExample: The following attachment demonstrates the ordering of information. ","The default sort order is 'Imaging date' in reverse chronological order.\nThe View allows the user to order the information within the view.\n",null,null,{"$f":"IF(G83=\"\",\"0\",IF(G83=\"Pass\",1,IF(G83=\"Fail\",0,IF(G83=\"TBD\",0,IF(G83=\"N/A\",1)))))","v":"0"},46,{"$f":"IF(AND(BGCol(C83)=48,G83=\"N/A\"),1,0)","v":{"$error":"#NAME?"}}]
["DIRV-PG-41","View-DI02\nThe View SHALL allow the user to order the rows within the view via the following items:\n\n1) Authoring organisation name\n2) Imaging date\n3) Exam Procedure\n4) Modality\n5) Anatomical location\n\nUnless changed by the user, the default sort order SHALL be \"imaging date\" in reverse chronological order.\n\nNOTE TO TESTER: There is a known issue  with 'Exam Procedure' in the Presentation Guide \ni.e.  It should not appear in the requirement.  \n","M",1,"Verify the View allows the user to order information within the View via the following item:\n\nAuthoring organisation name","The View allows the user to order the information within the View using the item listed in the test step.",null,null,"0",47,{"$f":"IF(AND(BGCol(C84)=48,G84=\"N/A\"),1,0)","v":{"$error":"#NAME?"}}]
["DIRV-PG-42","View-DI02\nThe View SHALL allow the user to order the rows within the view via the following items:\n\n1) Authoring organisation name\n2) Imaging date\n3) Exam Procedure\n4) Modality\n5) Anatomical location\n\nUnless changed by the user, the default sort order SHALL be \"imaging date\" in reverse chronological order.\n\nNOTE TO TESTER: There is a known issue  with 'Exam Procedure' in the Presentation Guide \ni.e.  It should not appear in the requirement.  \n","M",1,"NOTE TO TESTER: There is a known issue with 'Exam Procedure' in the Presentation Guide \ni.e.  It should not appear in the requirement.  \n","N/A"]
["DIRV-PG-43","View-DI02:\nThe View SHALL allow the user to order the rows within the view via the following items:\n\n1) Authoring organisation name\n2) Imaging date\n3) Exam Procedure\n4) Modality\n5) Anatomical location\n\nUnless changed by the user, the default sort order SHALL be \"imaging date\" in reverse chronological order.\n\nNOTE TO TESTER: There is a known issue  with 'Exam Procedure' in the Presentation Guide \ni.e.  It should not appear in the requirement.  \n","M",1,"Verify the View allows the user to order the information within the View via the following item:\n\nModality","The View allows the user to order the information within the View using the item listed in the test step.",null,null,"0",48,{"$f":"IF(AND(BGCol(C86)=48,G86=\"N/A\"),1,0)","v":{"$error":"#NAME?"}}]
["DIRV-PG-44","View-DI02\nThe View SHALL allow the user to order the rows within the view via the following items:\n\n1) Authoring organisation name\n2) Imaging date\n3) Exam Procedure\n4) Modality\n5) Anatomical location\n\nUnless changed by the user, the default sort order SHALL be \"imaging date\" in reverse chronological order.\n\nNOTE TO TESTER: There is a known issue with 'Exam Procedure' in the Presentation Guide \ni.e.  It should not appear in the requirement.  \n","M",1,"Verify the View allows the user to order the information within the View via the following item:\n\nAnatomical location\n\nNOTE TO TESTER: Multiple anatomical locations may be presented on separate rows or on the same row of the Diagnostic Imaging Report View.","The View allows the user to order the information within the View using the item listed in the test step.",null,null,"0",49,{"$f":"IF(AND(BGCol(C87)=48,G87=\"N/A\"),1,0)","v":{"$error":"#NAME?"}}]
["DIRV-PG-45","View-CM36\nOrdering items by date SHOULD be done using dates in a common time zone e.g. UTC.\n\nRationale\nAll the date ordering specified in this guide uses time zone aware dates.\n\nFailure to sort dates on a common timezone may result in data appearing out of sequence and detracting from the user experience.\n","O",1,"Verify that all items displayed in the View are displayed and ordered using dates which are common to the time zone that has been chosen for displaying the View.\n\nFor example, if Australian Eastern Standard Time (AEST) has been chosen to display dates in the View, then all dates should be in AEST.","Results are ordered by a common time zone.\n\n\n",null,null,"0",50,{"$f":"IF(AND(BGCol(C88)=48,G88=\"N/A\"),1,0)","v":{"$error":"#NAME?"}}]
["END: Ordering"]
[null,null,null,null,null,null,"PASS","# of steps N/A or Pass",{"$f":"SUM(I10:I89)","v":0}]
[null,null,null,null,null,null,"FAIL","Total # of steps",50]
[null,null,null,null,null,null,"N/A",null,{"$f":"(I90/I91)","v":0}]
[null,null,null,null,null,null,"TBD"]

{"sheet":"2. TD","index":6,"n_rows":11,"n_cols":2,"rows_kept":11,"cut":false,"hidden":false,"merged":[[1,0,1,1]]}
["Test Set:","Diagnostic Imaging Report View - REQUIRED TEST DATA"]
["IF NEHTA TEST DATA CANNOT BE USED TO TEST,  PLEASE CREATE YOUR OWN WITH THE FOLLOWING CONDITIONS:"]
["PATIENT","TEST DATA TO BE CREATED"]
["PATIENT A","01. A sufficient  number of Diagnostic Imaging Reports to demonstrate:\n\n     a)  Grouping of results within summary lines for Diagnostic Imaging Organisations. This will require at least two different Diagnostic Imaging Organisations with at least two Diagnostic Imaging Reports for each organisation.\n\n     b)  Vertical scrolling. This will require the creation of sufficient Diagnostic Imaging Reports to exceed the implemented display limits of the View, in order to demonstrate vertical navigation of the results.\n\n     c)  Printing results over more than one page. This will require the creation of sufficient Diagnostic Imaging Reports to exceed the implemented page limit on printed individual results.\n"]
[null,"02. At least one Diagnostic Imaging Report with text in the CDA narrative in excess of 40 characters. \nThis is to demonstrate word wrapping within the View.\n"]
[null,"03.  At least one Diagnostic Imaging Report that is over seven years old. \n"]
[null,"04.  More than 1 Diagnostic Imaging Report which contain more than one \"Imaging Examination Result\" section.\n"]
[null,"05.  \"Imaging Examination Result\" with additional display information, apart from the mandatory (i.e. apart from Imaging Date, Authoring Organisation Name, Modality, Anatomical Location and Laterality), to demonstrate no horizontal scrolling.\n"]
[null,"06. At least one Diagnostic Imaging Report containing an Imaging Examination Result section with more than one Anatomical Locations.\n"]
[null,"07.  \"DateTime\" values with different timezones.\n"]
[null,"08. For every data element that will be returned in the View response that is a coded data type, provide coded examples where:\n\n    a) the code and displayName is provided without an originalText, and\n\n    b) the originalText is provided without the code and displayName,  and \n\n    c) the code, displayName and originalText are provided, and the value of the originalText differs from the value of the displayName..\n"]

{"sheet":"3. PRV","index":7,"n_rows":82,"n_cols":11,"rows_kept":82,"cut":false,"hidden":false,"merged":[[21,1,22,1],[1,3,3,5],[0,3,0,5]]}
["Test Set:","Pathology Report View",null,"TEST DATA INFORMATION",null,null,"Software name: version:\n","Please complete"]
["Derivation:","1. NEHTA-2162:2015 eHealth Pathology Report View - PCEHR Conformance Profile v1.0.1\n2. NEHTA-2055:2015 eHealth Pathology Report View - Presentation and Data Usage Guide v1.1\n3. NEHTA-1299:2012 PCEHR Connecting Systems - Conformance Test Specification v1.6\n4. NEHTA-1788:2014 Clinical Terminology - Use of Medical Nomenclatures in Information Exchange v1.0\n",null,"To apply these test cases the tester needs to obtain the View XML file for PRV. \nIf the tester does not have this ability, a copy may be requested by contacting the NEHTA help desk.\n\nTO ACCESS NEHTA TEST DATA, USE:\n● Patient A - Shaun LEE  IHI: 8003608166690511  Medicare Card: 2950355981  IRN: 1  Sex: Male  DOB: 15/03/1979  Address: 281 Dawson Street, Pyrmont, NSW, 2009\n\nIF NEHTA TEST DATA CANNOT BE USED TO TEST, PLEASE CREATE YOUR OWN WITH THE FOLLOWING CONDITIONS:  \n   Refer to the PRV TD worksheet.\n",null,null,"Software supplier:","Please complete"]
["Test Set Objective:","To verify the correct downloading and rendering of Pathology Report Views from the PCEHR system.\n",null,null,null,null,"Tester:","Please complete"]
["Pre-requisite:","1. Access to the PCEHR SVT (System Vendor Test) environment.\n2. Either:\n    a. Access to NEHTA's test data in the SVT that supports the Pathology Report View test cases; or\n    b. Access to test data that meets the test data prerequisites.",null,null,null,null,"Date:","Please complete"]
[]
["THIS HEADER CAN BE COLLAPSED BY CLICKING THE '-' SYMBOL ON THE LEFT."]
["TEST CASE ID","CONFORMANCE REQUIREMENT","PRIORITY\n(Mandatory, Optional, Conditional)","STEP NO.","TEST STEP","EXPECTED RESULT","TEST RESULT","TESTER COMMENTS","CALC.",null,"MANDATORY AND N/A"]
["eHealth Pathology Report View - PCEHR Conformance Profile"]
["START: Conformance requirements for consumers"]
["PRV-CP-024718","024718\nClinical information system requirements\n\nIf the software consuming an eHealth Pathology Report View is a clinical information system, the software SHALL conform to the mandatory requirements for the role of a CIS Consumer.\n\n024719\nContracted service provider system requirements\n\nIf the software consuming an eHealth Pathology Report View is a CSP system, the software SHALL conform to the mandatory requirements for the role of a CIS Consumer that are relevant for the scope of the CSP system.\n\nNOTE: the role of CIS Consumer is defined in NEHTA-1294:2012 PCEHR Connecting Systems - Conformance Assessment Scheme v1.1. Requirements for a CIS Consumer are described in NEHTA-1297:2012 PCEHR Connecting Systems - Conformance Requirements v1.5.","C",1,"NOTE TO TESTER: IF THIS TEST CASE HAS PASSED WHILE TESTING CONFORMANCE TO THE RENDERING REQUIREMENTS FOR ANOTHER VIEW IN THE SAME VERSION OF THE SOFTWARE THEN IT DOES NOT NEED TO BE PERFORMED AGAIN.\n\nThis test references the NEHTA-1299:2012 PCEHR Connecting Systems - Conformance Test Specification v1.6.\ni.e. if 'CIS_CAS_343b' is passed, then this test case can be set to passed.\n\nThat is:\n1. The CIS Consumer software passes all mandatory and relevant conditional tests in worksheets:\na)  UC.CIS.001  Check if an advertised PCEHR exists.\nb)  UC.CIS.002.1  Gain access to PCEHR (with Access Code).\nc)  UC.CIS.002.2  Gain access to PCEHR (without Access Code).\nd)  UC.CIS.002.3  Gain access to PCEHR (Emergency Access).\ne)  UC.CIS.301 Access a View Service\n","Test Case CIS_CAS_343b from the NEHTA-1299:2012 PCEHR Connecting Systems - Conformance Test Specification v1.6 is passed.",null,null,{"$f":"IF(G10=\"\",\"0\",IF(G10=\"Pass\",1,IF(G10=\"Fail\",0,IF(G10=\"TBD\",0,IF(G10=\"N/A\",1)))))","v":"0"},1,{"$f":"IF(AND(BGCol(C10)=48,G10=\"N/A\"),1,0)","v":{"$error":"#NAME?"}}]
["PRV-CP-023646","023646\neHealth Pathology Report View presentation requirements\n\nThe software SHALL present eHealth Pathology Report Views in accordance with the mandatory requirements in the eHealth Pathology Report View Presentation and Data Usage Guide.\n","M",1,"NOTE TO TESTER:\nThe test cases for the eHealth Pathology Report View Presentation and Data Usage Guide are listed below.","All MANDATORY Presentation and Data Usage Guide tests (given below) have passed.",null,null,{"$f":"IF(G11=\"\",\"0\",IF(G11=\"Pass\",1,IF(G11=\"Fail\",0,IF(G11=\"TBD\",0,IF(G11=\"N/A\",1)))))","v":"0"},2,{"$f":"IF(AND(BGCol(C11)=48,G11=\"N/A\"),1,0)","v":{"$error":"#NAME?"}}]
["END: Conformance requirements for consumers"]
[]
["eHealth Pathology Report View - Presentation and Data Usage Guide"]
["START:   View Content"]
[null,"Pre-requisite",null,null,"Request a Pathology Report View from the PCEHR for Patient A.\n","The requested View is displayed.\n"]
["PRV-PG-01","View-CM01\nThe View SHALL display a title at the top of the View.\n","M",1,"Verify a title is displayed at the top of the View.","A  title is displayed at the top of the View.\n",null,null,{"$f":"IF(G17=\"\",\"0\",IF(G17=\"Pass\",1,IF(G17=\"Fail\",0,IF(G17=\"TBD\",0,IF(G17=\"N/A\",1)))))","v":"0"},3,{"$f":"IF(AND(BGCol(C17)=48,G17=\"N/A\"),1,0)","v":{"$error":"#NAME?"}}]
["PRV-PG-02","View-Path01\nThe View title SHALL display the text \"Pathology Report View\".","M",1,"Verify that the View title displays the text \"Pathology Report View\".\n","The View title ''Pathology Report View' is displayed at the top of the View.\n\n\n",null,null,{"$f":"IF(G18=\"\",\"0\",IF(G18=\"Pass\",1,IF(G18=\"Fail\",0,IF(G18=\"TBD\",0,IF(G18=\"N/A\",1)))))","v":"0"},4,{"$f":"IF(AND(BGCol(C18)=48,G18=\"N/A\"),1,0)","v":{"$error":"#NAME?"}}]
["PRV-PG-03","View-CM02\nThe title SHOULD have a font-size larger than the font-size used in other text components in the View.\n","O",1,"Verify the title has a font-size larger than the font-size used in other text components in the View.","Title has a font-size larger than the font-size used in other text components in the View.",null,null,{"$f":"IF(G19=\"\",\"0\",IF(G19=\"Pass\",1,IF(G19=\"Fail\",0,IF(G19=\"TBD\",0,IF(G19=\"N/A\",1)))))","v":"0"},5,{"$f":"IF(AND(BGCol(C19)=48,G19=\"N/A\"),1,0)","v":{"$error":"#NAME?"}}]
["PRV-PG-04","View-CM03\nThe title SHOULD have a font-weight larger than the font-weight used in other text components in the View.\n","O",1,"Verify the title has font-weight larger than the font-weight used in other text components in the View.","Title has font-weight larger than the font-weight used in other text components in the View.",null,null,"0",6,{"$f":"IF(AND(BGCol(C20)=48,G20=\"N/A\"),1,0)","v":{"$error":"#NAME?"}}]
["PRV-PG-05","View-CM09\nThe View SHALL display the following statement to healthcare providers: \"This is not a complete view of the individual's health information. For more information about the individual’s health record or data, please consult the individual or other healthcare professionals as needed\".","C",1,"Where the healthcare provider software is for a CIS, CSP system, or a Registered Provider Portal, verify the View displays the following statement to the healthcare provider: \n\n\"This is not a complete view of the individual's health information. For more information about the individual’s health record or data, please consult the individual or other healthcare professionals as needed\".\n\nNOTE TO TESTER:\nThis requirement is not applicable to a Registered Consumer Portal.\n","Where the healthcare provider software is NOT a Registered Consumer Portal, the View displays the statement:\n\"This is not a complete view of the individual's health information. For more information about the individual’s health record or data, please consult the individual or other healthcare professionals as needed\".\n",null,null,"0",7,{"$f":"IF(AND(BGCol(C21)=48,G21=\"N/A\"),1,0)","v":{"$error":"#NAME?"}}]
["PRV-PG-06","View-Path06\nThe Pathology Report View SHALL display at least the following information (where provided by the payload), in any order, for each test result within a report:\n•  Specimen Collected Date \n•  Report Date \n•  Pathology Organisation \n•  Requesting Organisation \n•  Pathology Discipline \n•  Test Result NameStructured \n\nEach item SHALL be described with labels, column headings or similar, so that the meaning of dates and organisations is clear. \n\nRationale\nEnsuring a minimum dataset to be displayed guarantees a level of view utility.\n","M",1,"Verify that the following information is displayed with a label, column heading or some thing similar, so that the meaning of dates and organisations is clear and derived from the related element path within the View response message:\n\na) Specimen Collected Date: \n/pathologyReportViewResponse/pathologyReport/pathologyTestResult/specimenCollectionDate\n\nData type: string\n\n","All information displayed with a label, column heading or some thing similar is derived from the relevant fields within the View response message.",null,null,"0",8,{"$f":"IF(AND(BGCol(C22)=48,G22=\"N/A\"),1,0)","v":{"$error":"#NAME?"}}]
[null,null,null,2,"Verify that the following information is displayed with a label, column heading or some thing similar, so that the meaning of dates and organisations is clear and derived from the related element path within the View response message:\n\nb) Report Date: \n/pathologyReportViewResponse/pathologyReport/reportInformation/dateTimeReportAuthored\n\nData type: string\n","All information displayed with a label, column heading or some thing similar is derived from the relevant fields within the View response message.",null,null,"0",9,{"$f":"IF(AND(BGCol(C23)=48,G23=\"N/A\"),1,0)","v":{"$error":"#NAME?"}}]
[null,null,null,3,"Verify that the following information is displayed with a label, column heading or some thing similar, so that the meaning of dates and organisations is clear and derived from the related element path within the View response message:\n\nc) Pathology Organisation: \n/pathologyReportViewResponse/pathologyReport/reportingPathologistInformation/healthcareproviderOrganisationName\n\nData type: string\n","All information displayed with a label, column heading or some thing similar is derived from the relevant fields within the View response message.",null,null,"0",10,{"$f":"IF(AND(BGCol(C24)=48,G24=\"N/A\"),1,0)","v":{"$error":"#NAME?"}}]
[null,null,null,4,"Verify that the following information is displayed with a label, column heading or some thing similar, so that the meaning of dates and organisations is clear and derived from the related element path within the View response message:\n\nd) Requesting Organisation: \n/pathologyReportViewResponse/pathologyReport/testRequesterInformation/providerOrganisationName\n\nData type: string\n","All information displayed with a label, column heading or some thing similar is derived from the relevant fields within the View response message.",null,null,"0",11,{"$f":"IF(AND(BGCol(C25)=48,G25=\"N/A\"),1,0)","v":{"$error":"#NAME?"}}]
[null,null,null,5,"Verify that the following information is displayed with a label, column heading or some thing similar, so that the meaning of dates and organisations is clear and derived from the related element path within the View response message:\n\ne) Pathology Discipline: \n/pathologyReportViewResponse/pathologyReport/pathologyTestResult/pathologyDiscipline\n\nData type: custom CE codedData\n\nNOTE TO TESTER:  Where information is displayed from a coded data type in the pathology report view XML document verify that the value of the 'originalText' is displayed, if present. \nIf the 'originalText' is not present then verify that the value of 'displayName' is displayed, if present. \nIf both 'originalText' and 'displayName' are displayed then verify that these are clearly distinguished.\n\nThis conforms to requirement 020665 found in NEHTA-1788:2014 Clinical Terminology - Use of Medical Nomenclatures in Information Exchange v1.0.\n","All information displayed with a label, column heading or some thing similar is derived from the relevant fields within the View response message.",null,null,"0",12,{"$f":"IF(AND(BGCol(C26)=48,G26=\"N/A\"),1,0)","v":{"$error":"#NAME?"}}]
[null,null,null,6,"Verify that the following information is displayed with a label, column heading or some thing similar, so that the meaning of dates and organisations is clear and derived from the related element path within the View response message:\n\nf) Test Result Name: \n/pathologyReportViewResponse/pathologyReport/pathologyTestResult/testResultName\n\nData type: custom CE codedData\n\nNOTE TO TESTER:  Where information is displayed from a coded data type in the pathology report view XML document verify that the value of the 'originalText' is displayed, if present. \nIf the 'originalText' is not present then verify that the value of 'displayName' is displayed, if present. If both 'originalText' and 'displayName' are displayed then verify that these are clearly distinguished.\n\nThis conforms to requirement 020665 found in NEHTA-1788:2014 Clinical Terminology - Use of Medical Nomenclatures in Information Exchange v1.0.\n","All information displayed with a label, column heading or some thing similar is derived from the relevant fields within the View response message.",null,null,"0",13,{"$f":"IF(AND(BGCol(C27)=48,G27=\"N/A\"),1,0)","v":{"$error":"#NAME?"}}]
[null,null,null,7,"Where other information is contained in the View\na). Verify that it is displayed with a label, column heading or something similar, so that the meaning of dates and organisations is clear. \nb). Verify that it is sourced from the related element path. \n\nNOTE TO TESTER:\nThe element path for the display information is described in the 'View response xml attribute' column of the 'CDA to View Mapping' worksheet of the NEHTA-2055:2015 eHealth Pathology Report View - Presentation and Data Usage Guide v1.1.\n\nWhere information is displayed from a coded data type in the pathology report view XML document verify that the value of the 'originalText' is displayed, if present. \nIf the 'originalText' is not present then verify that the value of 'displayName' is displayed, if present. \nIf both 'originalText' and 'displayName' are displayed then verify that these are clearly distinguished. \n\nThis conforms to requirement 020665 found in NEHTA-1788:2014 Clinical Terminology - Use of Medical Nomenclatures in Information Exchange v1.0.\n","Any other information is displayed with a label, column heading or something similar, and is sourced from the related element path.",null,null,{"$f":"IF(G29=\"\",\"0\",IF(G29=\"Pass\",1,IF(G29=\"Fail\",0,IF(G29=\"TBD\",0,IF(G29=\"N/A\",1)))))","v":"0"},14,{"$f":"IF(AND(BGCol(C28)=48,G28=\"N/A\"),1,0)","v":{"$error":"#NAME?"}}]
["PRV-PG-07","View-CM07\nThe View SHALL be displayed in such a way as to allow the entire dataset to be viewed (E.g. provide vertical scrolling / paging).\n","M",1,"Ensure 'Patient A' has a large amount of 'Document sets' in the 'Summary lines'  (so that vertical scrolling / paging etc. can be demonstrated).\n\nVerify the View is displayed in such a way as to allow the entire dataset to be viewed.\n","The View is displayed to allow the entire dataset to be viewed.",null,null,{"$f":"IF(G30=\"\",\"0\",IF(G30=\"Pass\",1,IF(G30=\"Fail\",0,IF(G30=\"TBD\",0,IF(G30=\"N/A\",1)))))","v":"0"},15,{"$f":"IF(AND(BGCol(C29)=48,G29=\"N/A\"),1,0)","v":{"$error":"#NAME?"}}]
["PRV-PG-08","View-CM08\nThe Rendering System SHALL NOT allow horizontal scrolling of the View.\n","M",1,"Verify the Rendering System does not allow horizontal scrolling of the View in any circumstance.\n","Horizontal scrolling of the View shall not be allowed by the Rendering system.",null,null,{"$f":"IF(G30=\"\",\"0\",IF(G30=\"Pass\",1,IF(G30=\"Fail\",0,IF(G30=\"TBD\",0,IF(G30=\"N/A\",1)))))","v":"0"},16,{"$f":"IF(AND(BGCol(C30)=48,G30=\"N/A\"),1,0)","v":{"$error":"#NAME?"}}]
["PRV-PG-09","View_CM17\nEach Document Line in the View SHALL act as a link to the source CDA® document in the PCEHR such that the CDA® document is presented first or at the same time as any PDF attached to the CDA® document.\n\n","M",1,"Verify that for every Document Line in the View, when clicked on, the source Pathology Report is displayed according to the rendering requirements for that type of document and that the CDA document is presented first or at the same time as the PDF attachment.\n\nNOTE TO TESTER:  the intention of this requirement is that the CDA document is displayed immediately upon the link being selected.\n","Each Document Line in the View acts as a link to the source Pathology Report in the PCEHR, and \nis displayed according to the rendering requirements for that type of document, and\nis presented first or at the same time as the PDF attachment.\n",null,null,"0",17,{"$f":"IF(AND(BGCol(C31)=48,G31=\"N/A\"),1,0)","v":{"$error":"#NAME?"}}]
["PRV-PG-10","View-CM35\nText that does not fit horizontally within the available space SHALL be wrapped onto a new line. \n\nIf the available space is adjustable (e.g. resizable columns) or the entire block of text can be presented by another means (e.g. a tooltip or popup box), then the View SHALL instead indicate that some text is hidden (where applicable), via an ellipsis or other means.\n\nRationale\n“Available space” may mean a column, a line, the width of a page, an annotation or other designated space designed to hold text. Space that is too narrow to hold the necessary text must support the wrapping of that text in a predictable way so that information is not lost or hidden from the reader.\n","M",1,"Where text does not fit horizontally within the available space then:\nVerify that it wraps onto a new line.\n\nOR\n\nWhere the available space is adjustable (e.g. resizable columns) or the entire block of text can be presented by another means (e.g. a tooltip or popup box), then:\nVerify that the View indicates that some text is hidden via an ellipsis or other means.\n\n\nNOTE TO TESTER: Depending on the software, it may be possible to manually expand the available space by widening the column,  using a tool tip to see the full text or some other method. If the text is visible in full in the manually expanded space then such a design meets the requirement provided it is clear that some information is hidden (by displaying ellipses for example) and there is a means to access the hidden text within the view.\n\n","Text that does not fit horizontally within the available space is wrapped onto a new line, or \nWhere the available space is adjustable or the entire block of text can be presented by any other means, the View indicates that some text is hidden.\n",null,null,"0",18,{"$f":"IF(AND(BGCol(C32)=48,G32=\"N/A\"),1,0)","v":{"$error":"#NAME?"}}]
["PRV-PG-11","View-CM11\nStructured DateTime values in the View SHOULD be in the format [DD-Mmm-YYYY] \ne.g. 14-Aug-2013\n","O",1,"Verify Structured DateTime values in the View are in the format of [DD-Mmm-YYYY]\n\nE.g.: 07-Aug-2014","Structured DateTime values are in the format of  [DD-Mmm-YYYY].\n\nE.g.: 07-Aug-2014\n",null,null,"0",19,{"$f":"IF(AND(BGCol(C33)=48,G33=\"N/A\"),1,0)","v":{"$error":"#NAME?"}}]
["PRV-PG-12","View-CM51\nExcept when specifically stated within a requirement, times and time zones SHOULD NOT be displayed in the View.\n","O",1,"NOTE TO TESTER:  the Presentation Guide does not specifically state any further requirements that times and timezones must be displayed.\n\nVerify times and time zones are not displayed in the View.\n\n","Only dates are displayed in the View, times and time zones are not displayed.\n",null,null,"0",20,{"$f":"IF(AND(BGCol(C34)=48,G34=\"N/A\"),1,0)","v":{"$error":"#NAME?"}}]
["PRV-PG-13","View-Path102\nThe View SHALL allow the user to order the rows within the view via at least the following item: \n\n• Specimen collected date \n\nUnless changed by the user, the default sort order SHALL be \"specimen collected date\" in reverse chronological order.\n","M",1,"Verify that the default sort order is 'Specimen collected date' in reverse chronological order.  \n\nNOTE TO TESTER: Ordering by additional items is permitted.","The default sort order is 'Specimen collected date' in reverse chronological order.\nThe View allows the user to order the additional items within the view.\n",null,null,"0",21,{"$f":"IF(AND(BGCol(C35)=48,G35=\"N/A\"),1,0)","v":{"$error":"#NAME?"}}]
["PRV-PG-14","View-CM36\nOrdering items by date SHOULD be done using dates in a common time zone (e.g. UTC).\n\nRationale\nAll the date ordering specified in this guide uses time zone aware dates.\nFailure to sort dates on a common time-zone may result in data appearing out of sequence and detracting from the user experience.\n","O",1,"Verify that all items displayed in the View are displayed and ordered using dates which are common to the time zone that has been chosen for displaying the View.\n\nFor example, if Australian Eastern Standard Time (AEST) has been chosen to display dates in the View, then all dates should be in AEST.","Results are ordered by a common time zone.",null,null,"0",22,{"$f":"IF(AND(BGCol(C36)=48,G36=\"N/A\"),1,0)","v":{"$error":"#NAME?"}}]
["PRV-PG-15","View-CM10\nThe View SHALL only contain a single statement when no information is available: \n\"No information is available\"\n","M",1,"Verify that where the request for a Pathology Report View has a filtered date range that does not contain any Pathology Report documents in the PCEHR, that the Pathology Report View only displays a single statement that no information is available: \"No information is available\".","View displays single statement \"No information is available\".",null,null,"0",23,{"$f":"IF(AND(BGCol(C37)=48,G37=\"N/A\"),1,0)","v":{"$error":"#NAME?"}}]
["END:   View Content"]
[]
["START:   Printed View"]
["CONDITION:   These tests are applicable only if the rendering system is capable of printing a Pathology Report View"]
[null,"Pre-requisite:\n",null,null,"Print the Pathology Report View for Patient A.\n\n","The Pathology Report View is printed."]
["PRV-PG-16","View-CM04a\nA printed View SHALL contain, as part of the Header at the top of each page, the following consumer information:\n• Family name\n• Given name(s), where available), where provided\n• Date of birth\n• Sex\n• Individual Healthcare Identifier (IHI)\n\nRationale\nIncluding identifying information for the individual helps the reader of the printed view understand who the data in the view is related to.\n","C",1,"Verify the printed View contains the following consumer (patient) information as part of the Header at the top of each page:\n\n• Family name\n• Given name(s), where available), where provided\n• Date of birth\n• Sex\n• Individual Healthcare Identifier (IHI)","The printed View contains the consumer information as part of the Header at the top of each page.",null,null,{"$f":"IF(G43=\"\",\"0\",IF(G43=\"Pass\",1,IF(G43=\"Fail\",0,IF(G43=\"TBD\",0,IF(G43=\"N/A\",1)))))","v":"0"},24,{"$f":"IF(AND(BGCol(C43)=48,G43=\"N/A\"),1,0)","v":{"$error":"#NAME?"}}]
["PRV-PG-17","View-CM06\nA printed View SHALL contain the page number as part of the Footer at the bottom of each page.\n","C",1,"Verify the printed View contains the page number as part of the Footer at the bottom of each page.","The printed View contains the page number as part of the Footer at the bottom of each page.",null,null,"0",25,{"$f":"IF(AND(BGCol(C44)=48,G44=\"N/A\"),1,0)","v":{"$error":"#NAME?"}}]
["PRV-PG-18","View-CM05\nA printed View SHOULD contain page numbers as \"Page N of T\" on each page as part of the Footer.","O",1,"Verify the printed View contains page numbers as:\n\na) \"Page 1 of T\" on each first page, as part of the Footer. \nE.g. Page 1 of 5, where 5 is the total number of pages printed.\n\nb) \"Page T of T\" on each last page, as part of the Footer. \nE.g. Page 5 of 5, where 5 is the total number of pages printed.\n\nc) \"Page N of T\" on each intermediary page, as part of the Footer.  \nE.g. Page 3 of 5, where 5 is the total number of pages printed.\n","The printed View contains page numbers as \"Page N of T\" on each page as part of the Footer.",null,null,"0",26,{"$f":"IF(AND(BGCol(C45)=48,G45=\"N/A\"),1,0)","v":{"$error":"#NAME?"}}]
["END:   Printed View"]
[]
["START:   Date Filter"]
["PRV-PG-19","View-CM12a\nThe View SHALL be able to be filtered by a date range.\n\nRationale\nPermitting the filtering of large data sets by date increases view utility.\n","M",1,"Verify the View provides a 'From' and 'To' date range filter. \n\nNOTE TO TESTER:\nThe \"To\" date is defaulted to Today's date and not able to be modified, as per requirement:\nView-Path02 (Test Case PRV-PG-24).","The View is able to be filtered by dates.",null,null,{"$f":"IF(G49=\"\",\"0\",IF(G49=\"Pass\",1,IF(G49=\"Fail\",0,IF(G49=\"TBD\",0,IF(G49=\"N/A\",1)))))","v":"0"},27,{"$f":"IF(AND(BGCol(C49)=48,G49=\"N/A\"),1,0)","v":{"$error":"#NAME?"}}]
["PRV-PG-20","View-Path97\nThe default view SHOULD be limited to 24 months calculated from current date.","O",1,"Verify that when first displayed in the View, the default date range filter selection is presented as limited to 24 months calculated from the current date.\n\nE.g. the 'From' being the current date minus 24 months, and 'To' being the current date.\n","The View displays the default date range limited to 24 months calculated from the current date.",null,null,{"$f":"IF(G50=\"\",\"0\",IF(G50=\"Pass\",1,IF(G50=\"Fail\",0,IF(G50=\"TBD\",0,IF(G50=\"N/A\",1)))))","v":"0"},28,{"$f":"IF(AND(BGCol(C50)=48,G50=\"N/A\"),1,0)","v":{"$error":"#NAME?"}}]
["PRV-PG-21","View-CM14\nViews filtered by date SHALL display the dates entered in the Date Filter 'From' and 'To' fields to indicate the applied date range.\n","M",1,"Apply a date range value in the 'FROM' field of the Date filter.\n\nVerify that the Date Filter 'From' and 'To' dates display the dates as entered.\n\nNOTE TO TESTER:\nThe \"To\" date is defaulted to Today's date and not able to be modified, as per requirement:\nView-Path02 (Test Case PRV-PG-24).\n","Views filtered by date display the dates entered in the Date Filter 'From' and 'To' fields to indicate the applied date range.",null,null,"0",29,{"$f":"IF(AND(BGCol(C51)=48,G51=\"N/A\"),1,0)","v":{"$error":"#NAME?"}}]
["PRV-PG-22","View-CM13\nThe dates displayed in the 'From' and 'To' controls of the Date Filter SHOULD be in the format [DD-Mmm-YYYY] e.g. 14-Aug-2013\n","O",1,"Verify the dates displayed in the View in the 'From' and 'To' controls are in the format of DD-Mmm-YYYY\n\nE.g. 14-Aug-2013\n","The 'From' and 'To' controls of the Date Filter are in the format [DD-Mmm-YYYY] ",null,null,{"$f":"IF(G52=\"\",\"0\",IF(G52=\"Pass\",1,IF(G52=\"Fail\",0,IF(G52=\"TBD\",0,IF(G52=\"N/A\",1)))))","v":"0"},30,{"$f":"IF(AND(BGCol(C52)=48,G52=\"N/A\"),1,0)","v":{"$error":"#NAME?"}}]
["PRV-PG-23","View-CM15\nDateTime values displayed in a column SHOULD be right aligned in the View.\n","O",1,"Verify DateTime values displayed in a column are right aligned in the View.\n","The DateTime values displayed in a column are right aligned in the View.",null,null,{"$f":"IF(G53=\"\",\"0\",IF(G53=\"Pass\",1,IF(G53=\"Fail\",0,IF(G53=\"TBD\",0,IF(G53=\"N/A\",1)))))","v":"0"},31,{"$f":"IF(AND(BGCol(C53)=48,G53=\"N/A\"),1,0)","v":{"$error":"#NAME?"}}]
["PRV-PG-24","View-CM40\nThe \"TO\" date in the date filter SHALL default to today's date.\n\nRationale\nDefaulting this date value to today's date aids usability.\n\n","M",1,"Verify that the 'TO' date defaults to today's date.","The 'TO' date is defaulted to today's date.",null,null,{"$f":"IF(G54=\"\",\"0\",IF(G54=\"Pass\",1,IF(G54=\"Fail\",0,IF(G54=\"TBD\",0,IF(G54=\"N/A\",1)))))","v":"0"},32,{"$f":"IF(AND(BGCol(C54)=48,G54=\"N/A\"),1,0)","v":{"$error":"#NAME?"}}]
["PRV-PG-25","View-Path02\nThe \"TO\" date in the date filter SHALL NOT be modified by the end user and will remain read only and defaulted to Today’s date.\n\nRationale\nThe PCEHR System currently has a defect in the processing of the To Date filter.  Whilst this defect is being resolved, implementers must not allow the user to change the “TO” date from Today’s date.  \nThis conformance requirement is temporary and will be removed once the PCEHR System defect has been resolved.\n\n","M",1,"Verify that the 'TO' date cannot be modified and will remain read only, and defaulted to today's date.","The 'TO' date cannot be modified and default's to today's date.",null,null,{"$f":"IF(G55=\"\",\"0\",IF(G55=\"Pass\",1,IF(G55=\"Fail\",0,IF(G55=\"TBD\",0,IF(G55=\"N/A\",1)))))","v":"0"},33,{"$f":"IF(AND(BGCol(C55)=48,G55=\"N/A\"),1,0)","v":{"$error":"#NAME?"}}]
["PRV-PG-26","View-Path12\nThe Pathology Report information displayed on the Pathology Report View SHALL be able to be filtered using specific report information provided to the PCEHR using the following filters:\n- Specimen Collected Date/Time\n\nRationale\nConsultation suggests the specimen collection date is clinically significant for purposes of filtering and should be a filter option for enhance utility.\n","M",1,"Verify that the PR View allows for the Pathology Report information to be filtered by Specimen Collection Date/Time.\n\na) enter a date prior to Today's date in the 'From' date field \nb) request Pathology Report View from PCEHR\n","Test Result records returned from PCEHR show all Specimen Collected Dates fall within date range entered in the date Filters",null,null,"0",34,{"$f":"IF(AND(BGCol(C56)=48,G56=\"N/A\"),1,0)","v":{"$error":"#NAME?"}}]
["END:   Date Filter"]
[]
["START:   Group By"]
[null,"Pre-requisite:\n\n",null,null,"Request a Pathology Report View from the PCEHR for Patient A.\n","The requested View is displayed."]
["PRV-PG-27","View-Path08\nThe Pathology Report View SHALL contain only the following components:\n\nGroup by type:\n•  Pathology Organisation; and \n•  Not Grouped.   \n\nRationale\nProviding a Group By function increases view usability and utility.\n","M",1,"Verify that:\na) the 'Group by' function is available in the View, and\nb)  the View permits the provider to group only :\n     1) Pathology Organisation\n     2) Not Grouped\n\nNOTE TO TESTER: other groupings are NOT allowed.","The View provides for the following groupings only:\n1) Pathology Organisation\n2) Not Grouped",null,null,{"$f":"IF(G61=\"\",\"0\",IF(G61=\"Pass\",1,IF(G61=\"Fail\",0,IF(G61=\"TBD\",0,IF(G61=\"N/A\",1)))))","v":"0"},35,{"$f":"IF(AND(BGCol(C61)=48,G61=\"N/A\"),1,0)","v":{"$error":"#NAME?"}}]
["PRV-PG-28","View-CM54\nRows SHALL be sorted within the summary line they belong to. (For example, sorted within the organisation and not across organisations.)\n\nRationale\nWhen sorting lines that are grouped it is important for lines to be sorted within the natural group they are attached to, such that context is not lost.\n","M",1,"Verify that item rows within the Summary lines are sorted within that Summary line.\n","The item rows are sorted within their related Summary line. ",null,null,"0",36,{"$f":"IF(AND(BGCol(C62)=48,G62=\"N/A\"),1,0)","v":{"$error":"#NAME?"}}]
["END:   Group By"]
[]
["START:   Collapsed and expanded items"]
["CONDITION:   These tests are applicable only if the rendering system is capable of collapsing and expanding items"]
[null,"Pre-requisite:\n\n",null,null,"Request a Pathology Report View from the PCEHR for Patient A.\n\n","The requested View is displayed."]
["PRV-PG-29","View-CM20\nText based data used for ordering Summary Lines in the View SHALL be ordered in ascending alphabetical order.\n\nNote:\nAlphabetical order includes the ordering of alphanumeric characters (letters and numbers) as well as the ordering of symbols. Ordering should maintain the standard applied within other areas of the system.\n","C",1,"Verify that the Summary lines are ordered in ascending alphabetical order of the item selected in the 'Group By' filter (i.e. the Pathology Organisation)\n\nNOTE TO TESTER:\nRequirement View-Path08 (test case PRV-PG-27) states that apart from 'Not Grouped' the only other item available for selection in the 'Group By' filter is 'Pathology Organisation'. \n","Summary Lines in the View are ordered in ascending alphabetical order of the Pathology Organisation.",null,null,{"$f":"IF(G68=\"\",\"0\",IF(G68=\"Pass\",1,IF(G68=\"Fail\",0,IF(G68=\"TBD\",0,IF(G68=\"N/A\",1)))))","v":"0"},37,{"$f":"IF(AND(BGCol(C68)=48,G68=\"N/A\"),1,0)","v":{"$error":"#NAME?"}}]
["PRV-PG-30","View_CM29\nThe Summary Line in the View SHOULD be displayed as collapsed rows by default.\n","O",1,"Verify Summary Line in the View is initially displayed as collapsed rows by default."," Summary Line in the View are displayed as collapsed rows by default.",null,null,{"$f":"IF(G69=\"\",\"0\",IF(G69=\"Pass\",1,IF(G69=\"Fail\",0,IF(G69=\"TBD\",0,IF(G69=\"N/A\",1)))))","v":"0"},38,{"$f":"IF(AND(BGCol(C69)=48,G69=\"N/A\"),1,0)","v":{"$error":"#NAME?"}}]
["PRV-PG-31","View-CM30\nCollapsed Summary Line displayed in the View SHALL be expandable.","C",1,"Select any collapsed Summary line in the View:\nVerify that it can be expanded.\n","Collapsed Summary Line displayed in the View is expandable.",null,null,"0",39,{"$f":"IF(AND(BGCol(C70)=48,G70=\"N/A\"),1,0)","v":{"$error":"#NAME?"}}]
["PRV-PG-32","View-CM33\nThe View SHALL display Summary and Document lines in a way that visually separates them (e.g. with alternate shading or a line).\n","C",1,"Verify  the View displays Summary and Document lines in a way that visually separates them (e.g. with alternate shading or a line).\n","View displays Summary and Document lines in a way that visually separates them.",null,null,"0",40,{"$f":"IF(AND(BGCol(C71)=48,G71=\"N/A\"),1,0)","v":{"$error":"#NAME?"}}]
["PRV-PG-33","View-CM23\nWhen the mouse cursor is rolled over any part of the Summary Line in the View, the background of the entire Summary Line SHOULD be highlighted.","O",1,"Hold the mouse cursor over any part of the Summary Line in the View and verify the background of the entire Summary Line is highlighted.  \n\n","The background of the entire Summary Line is highlighted, when the mouse cursor is held over any part of the Summary Line.",null,null,"0",41,{"$f":"IF(AND(BGCol(C72)=48,G72=\"N/A\"),1,0)","v":{"$error":"#NAME?"}}]
["PRV-PG-34","View-CM24\nWhen the mouse cursor is rolled over any part of the Document Line in the View, the background of the entire Document Line SHOULD be highlighted.","O",1,"Hold the mouse cursor over any part of the Document Line in the View and verify the background of the entire Document Line is highlighted.  \n\n","The background of the entire Document Line is highlighted, when the mouse cursor is held over any part of the document Line.",null,null,"0",42,{"$f":"IF(AND(BGCol(C73)=48,G73=\"N/A\"),1,0)","v":{"$error":"#NAME?"}}]
["PRV-PG-35","View-CM25\nEach Summary Line SHOULD have a 'roll-over' state, activated by the movement of the mouse cursor over any part of the Item, with a font colour that provides colour differentiation according to accessibility standards.\n","O",1,"Move the mouse cursor over any part of the Summary Line item:\nVerify that it has a 'roll-over' state with a font colour that provides colour differentiation according to accessibility standards.\n\nNOTE TO TESTER: \nAn example of an accessibility standard is the one published by W3C: http://www.w3.org/TR/WCAG20/.  \n","Each Summary Line has  'roll-over' state with a font colour that provides colour differentiation according to accessibility standards.",null,null,"0",43,{"$f":"IF(AND(BGCol(C74)=48,G74=\"N/A\"),1,0)","v":{"$error":"#NAME?"}}]
["PRV-PG-36","View-CM26\nEach Document Line SHOULD have a 'roll-over' state, activated by the movement of the mouse cursor over any part of the Item, with a font colour that provides colour differentiation according to accessibility standards.","O",1,"Move the mouse cursor over any part of the Document Line item:\nVerify that it has a 'roll-over' state with a font colour that provides colour differentiation according to accessibility standards.\n\nNOTE TO TESTER: \nAn example of an accessibility standard is the one published by W3C: http://www.w3.org/TR/WCAG20/.  \n","Each Document Line has  'roll-over' state with a font colour that provides colour differentiation according to accessibility standards.",null,null,"0",44,{"$f":"IF(AND(BGCol(C75)=48,G75=\"N/A\"),1,0)","v":{"$error":"#NAME?"}}]
["PRV-PG-37","View-CM31\nExpanded Summary Line displayed in the View SHOULD be collapsible.\n","O",1,"Select an expanded Summary line in the View:\nVerify that it can be collapsed.","Expanded Summary Line displayed in the View is collapsible.",null,null,"0",45,{"$f":"IF(AND(BGCol(C76)=48,G76=\"N/A\"),1,0)","v":{"$error":"#NAME?"}}]
["PRV-PG-38","View-CM32\nCollapsing and expanding Summary Line in the View SHOULD be possible by clicking on any part of the Summary Line.\n","O",1,"Click on any part of the Summary Line:\nVerify that it can be collapsed and expanded.","Summary Line is collapsed and expanded by clicking on any part of the Summary Line.",null,null,"0",46,{"$f":"IF(AND(BGCol(C77)=48,G77=\"N/A\"),1,0)","v":{"$error":"#NAME?"}}]
["END:   Collapsed and expanded items"]
[null,null,null,null,null,null,"PASS","# of steps N/A or Pass",{"$f":"SUM(I8:I78)","v":0}]
[null,null,null,null,null,null,"FAIL","Total # of steps",46]
[null,null,null,null,null,null,"N/A"," ",{"$f":"(I79/I80)","v":0}]
[null,null,null,null,null,null,"TBD"]

{"sheet":"3. TD","index":8,"n_rows":7,"n_cols":2,"rows_kept":7,"cut":false,"hidden":false,"merged":[[1,0,1,1]]}
["Test Set:","Pathology Report View - REQUIRED TEST DATA"]
["IF NEHTA TEST DATA CANNOT BE USED TO TEST,  PLEASE CREATE YOUR OWN WITH THE FOLLOWING CONDITIONS:"]
["PATIENT","TEST DATA TO BE CREATED"]
["PATIENT A","01. A sufficient  number of Pathology Reports to demonstrate:\n\n    a)  Grouping of results within summary lines for Pathology Organisations. This will require at least two different Pathology Organisations with at least two Pathology Reports for each organisation.\n\n    b)  Vertical scrolling. This will require the creation of sufficient Pathology Reports to exceed the implemented display limits of the View, in order to demonstrate vertical navigation of the results.\n\n    c)  Printing results over more than one page. This will require the creation of sufficient Pathology Reports to exceed the implemented page limit on printed individual results.\n\n"]
[null,"02.  At least one Pathology Report with text in the CDA narrative in excess of 40 characters. This is to demonstrate word wrapping within the View.\n"]
[null,"03.  \"DateTime\" values with different time zones. This will require Pathology Reports created where the ‘specimen collected date’, the ‘report creation date’ and the date the report was authored, have date times that are within different time zones, both across separate reports and within the same report.\n"]
[null,"04. For every data element that will be returned in the View response that is a coded data type, provide coded examples where:\n\n    a) the code and displayName is provided without an originalText, and\n\n    b) the originalText is provided without the code and displayName,  and \n\n    c) the code, displayName and originalText are provided, and the value of the originalText differs from the value of the displayName.\n"]

{"sheet":"4. HRO","index":9,"n_rows":203,"n_cols":11,"rows_kept":203,"cut":false,"hidden":false,"merged":[[80,0,80,1],[0,3,0,5],[48,1,49,1],[37,1,38,1],[1,3,3,5],[65,0,66,0],[65,1,66,1],[65,2,66,2],[63,1,64,1]]}
["Test Set:","Health Record Overview",null,"TEST DATA INFORMATION",null,null,"Software name: version:\n","Please complete"]
["Derivation:","1. NEHTA-1975:2014 Health Record Overview - PCEHR Conformance Profile v1.0\n2. NEHTA-2081:2015 Health Record Overview - Presentation and Data Usage Guide v1.1\n3. NEHTA-1299:2012 PCEHR Connecting Systems - Conformance Test Specification v1.6\n4. NEHTA-1788:2014 Clinical Terminology - Use of Medical Nomenclatures in Information Exchange v1.0\n5. NEHTA-1199:2012 Clinical Documents - CDA® Rendering Specification v1.0\n6. NEHTA-1330:2012 Clinical Documents - Conformance Test Specification for CDA Rendering v1.3",null,"To apply these test cases the tester needs to obtain the View XML file for HRO. \nIf the tester does not have this ability, a copy may be requested by contacting the NEHTA help desk.\n\nTO ACCESS NEHTA TEST DATA, USE PATIENTS:\n● Patient A - Shaun LEE  IHI: 8003608166690511  Medicare Card: 2950355981  IRN: 1  Sex: Male  DOB: 15/03/1979  Address: 281 Dawson Street, Pyrmont, NSW, 2009\n● Patient B - Tony MIFSUD  IHI: 8003608000024067  Medicare Card: 2950356041  IRN: 1  Sex: Male  DOB: 20/03/1969  Address: 59 Mill Bridge Avenue, WARRADERRY, NSW, 2810\n● Patient C - David MOOR  IHI: 8003608000024075  Medicare Card: 5950170541  IRN: 1  Sex: Male  DOB: 3/06/1971  Address: 18 Bank Road, HEWETT, SA, 5118\n● Patient D - Andrew NEUENDORF  IHI: 8003608333357713  Medicare Card: 4950324211  IRN: 1  Sex: Male  DOB: 8/01/1992  Address: 421 Bailey Drive, GUNPOWDER, QLD, 4825\n\nIF NEHTA TEST DATA CANNOT BE USED TO TEST, PLEASE CREATE YOUR OWN WITH THE FOLLOWING CONDITIONS:  \n   Refer to the HRO TD worksheet.\n\n",null,null,"Software supplier:","Please complete"]
["Test Set Objective:","To verify the correct downloading and rendering of Health Record Overviews from the PCEHR system.\n",null,null,null,null,"Tester:","Please complete"]
["Pre-requisite:","1. Access to the PCEHR SVT (System Vendor Test) environment.\n2. Either:\n    a. Access to NEHTA's test data in the SVT that supports the Health Record Overview test cases; or\n    b. Access to test data that meets the test data prerequisites.\n",null,null,null,null,"Date:","Please complete"," "]
[]
["THIS HEADER CAN BE COLLAPSED BY CLICKING THE '-' SYMBOL ON THE LEFT."]
["TEST CASE ID","CONFORMANCE REQUIREMENT","PRIORITY\n(Mandatory, Optional, Conditional)","STEP NO.","TEST STEP","EXPECTED RESULT","TEST RESULT","TESTER COMMENTS","CALC.",null,"MANDATORY AND N/A"]
["Health Record Overview - PCEHR Conformance Profile"]
["START:   Conformance Requirements for consumers"]
["HRO-CP-023610","023610\nClinical information system requirements\n\nIf the local software consuming a Health Record Overview is a clinical information system, the software SHALL conform to the mandatory requirements for the role of a CIS Consumer.\n\n024712\nContracted Software Provider system requirements\n\nIf the local software consuming a Health Record Overview is a CSP system, the software SHALL conform to the mandatory requirements for the role of a CIS Consumer that are relevant for the scope of the CSP system.\n\nNOTE: the role of CIS Consumer is defined in  NEHTA-1294:2012 PCEHR Connecting Systems - Conformance Assessment Scheme v1.1. Requirements for a CIS Consumer are described in NEHTA-1297:2012 PCEHR Connecting Systems - Conformance Requirements v1.5.","C",1,"NOTE TO TESTER: IF THIS TEST CASE HAS PASSED WHILE TESTING CONFORMANCE TO THE RENDERING REQUIREMENTS FOR ANOTHER VIEW IN THE SAME VERSION OF THE SOFTWARE THEN IT DOES NOT NEED TO BE PERFORMED AGAIN.\n\nThis test references the NEHTA-1299:2012 PCEHR Connecting Systems - Conformance Test Specification v1.6.\ni.e. if 'CIS_CAS_343b' is passed, then this test case can be set to passed.\n\nThat is:\n1. The CIS Consumer software passes all mandatory and relevant conditional tests in worksheets:\na)  UC.CIS.001  Check if an advertised PCEHR exists.\nb)  UC.CIS.002.1  Gain access to PCEHR (with Access Code).\nc)  UC.CIS.002.2  Gain access to PCEHR (without Access Code).\nd)  UC.CIS.002.3  Gain access to PCEHR (Emergency Access).\ne)  UC.CIS.301 Access a View Service\n","Test Case CIS_CAS_343b from the NEHTA-1299:2012 PCEHR Connecting Systems - Conformance Test Specification v1.6 is passed.",null,null,{"$f":"IF(G10=\"\",\"0\",IF(G10=\"Pass\",1,IF(G10=\"Fail\",0,IF(G10=\"TBD\",0,IF(G10=\"N/A\",1)))))","v":"0"},1,{"$f":"IF(AND(BGCol(C10)=48,G10=\"N/A\"),1,0)","v":{"$error":"#NAME?"}}]
["HRO-CP-023611","023611\nHealth Record Overview presentation requirements\n\nIf the software presents one or more sections of a Health Record Overview, the software SHALL present the Health Record Overview in accordance with the mandatory requirements in the Health Record Overview Presentation and Data Usage Guide.\n\nNOTE: Software that retrieves a Health Record Overview may have the capability of displaying the view and if the view is displayed it must be done according to the requirements in the Health Record Overview Presentation and Data Usage Guide. \n","C",1,"CONDITION:  IF the software presents one or more components/sections of a Health Record Overview, then perform a) all mandatory tests, and b) all applicable conditional tests.\n\nNOTE TO TESTER:\n1. The terms 'component' and 'section' are used interchangeably throughout the Presentation Guide.\n2. The sections that may be presented by the software are: \nNEW DOCUMENTS, RECENT DOCUMENTS, SHARED HEALTH SUMMARY, and/or OTHER LINKS.\n3. The test cases for the Health Record Overview Presentation and Data Usage Guide are listed below.\n","All MANDATORY tests have been passed.\nAll applicable CONDITIONAL tests have been passed.",null,null,{"$f":"IF(G11=\"\",\"0\",IF(G11=\"Pass\",1,IF(G11=\"Fail\",0,IF(G11=\"TBD\",0,IF(G11=\"N/A\",1)))))","v":"0"},2,{"$f":"IF(AND(BGCol(C11)=48,G11=\"N/A\"),1,0)","v":{"$error":"#NAME?"}}]
["HRO-CP-024714","024714\nPresentation requirements for clinical documents and views\n\nIf the software is capable of processing a PCEHR view link from the Health Record Overview to another PCEHR view then the software SHALL conform to the requirements for downloading and rendering that type of view.\n\n","C",1,"CONDITION:  IF the software has the ability to process a link from a Health Record Overview to another view, then for each of those views:\n \nWhen the success rate of the test cases for the supported views is 100%, then this test case can be passed.\n\nNOTE TO TESTER:\nIn the context of this requirement and test case, another view may be a view generated by the PCEHR system or it may be a CDA document such as an Advance Care Directive Custodian Record.\n","The test cases for the supported views are passed.\n",null,null,{"$f":"IF(G12=\"\",\"0\",IF(G12=\"Pass\",1,IF(G12=\"Fail\",0,IF(G12=\"TBD\",0,IF(G12=\"N/A\",1)))))","v":"0"},3,{"$f":"IF(AND(BGCol(C12)=48,G12=\"N/A\"),1,0)","v":{"$error":"#NAME?"}}]
["END:   Conformance requirements for consumers"]
[]
[]
["Health Record Overview - Presentation and Data Usage Guide"]
["START:  INFORMATION IS AVAILABLE",null,null,null," "]
["CONDITION:","Tests HRO-PG-01 to HRO-PG-06 apply ONLY when one or more components are displayed.  i.e. if no components are displayed then these tests do not apply."]
[null,"Pre-requisite\n",null,null,"Request a Health Record Overview from the PCEHR for Patient A.\n","The requested View is displayed."]
["HRO-PG-01","View-HRO85\nThe View SHALL be displayed in such a way as to allow the entire dataset for a specific component to be viewed (e.g. provide vertical scrolling / paging).\n","C",1,"Verify the HRO for Patient A is displayed in such a way as to allow the entire dataset for a specific component to be viewed.\n\nNOTE TO TESTER:\ni.e. via vertical paging or scrolling. \n","The view allows the entire dataset to be viewed.","FAIL",null,{"$f":"IF(G20=\"\",\"0\",IF(G20=\"Pass\",1,IF(G20=\"Fail\",0,IF(G20=\"TBD\",0,IF(G20=\"N/A\",1)))))","v":0},4,{"$f":"IF(AND(BGCol(C20)=48,G20=\"N/A\"),1,0)","v":{"$error":"#NAME?"}}]
["HRO-PG-02","View-CM08\nThe Rendering System SHALL NOT allow horizontal scrolling of the View.\n","C",1,"Verify the Rendering System DOES NOT allow horizontal scrolling of the View in any circumstance.\n","Horizontal scrolling of the view is not be allowed by the Rendering system.",null,null,"0",5,{"$f":"IF(AND(BGCol(C21)=48,G21=\"N/A\"),1,0)","v":{"$error":"#NAME?"}}]
["HRO-PG-03","View-CM35\nText that does not fit horizontally within the available space SHALL be wrapped onto a new line.\n\nIf the available space is adjustable (e.g. resizable columns) or the entire block of text can be presented by another means (e.g. a tooltip or popup box), then the View SHALL instead indicate that some text is hidden (where applicable) via an ellipsis or other means.\n\nRationale\n“Available space” may mean a column, a line, the width of a page, an annotation or other designated space designed to hold text. Space that is too narrow to hold the necessary text must support the wrapping of that text in a predictable way so that information is not lost or hidden from the reader.\n","C",1,"Where text does not fit horizontally within the available space then:\nVerify that it wraps onto a new line.\n\nOR\n\nWhere the available space is adjustable (e.g. resizable columns) or the entire block of text can be presented by another means (e.g. a tooltip or popup box), then:\nVerify that the View indicates that some text is hidden via an ellipsis or other means.\n\nNOTE TO TESTER: Depending on the software, it may be possible to manually expand the available space by widening the column,  using a tool tip to see the full text or some other method. If the text is visible in full in the manually expanded space then such a design meets the requirement provided it is clear that some information is hidden (by displaying ellipses for example) and there is a means to access the hidden text within the view.\n\n","Text that does not fit horizontally within the available space is wrapped onto a new line, or \nWhere the available space is adjustable or the entire block of text can be presented by any other means, the View indicates that some text is hidden.",null,null,"0",6,{"$f":"IF(AND(BGCol(C22)=48,G22=\"N/A\"),1,0)","v":{"$error":"#NAME?"}}]
["HRO-PG-04","View-CM15\nDateTime values displayed in a column SHOULD be right aligned in the View.\n","O",1,"Verify DateTime values displayed in a column are right aligned in the View.","The DateTime values displayed in a column are right aligned in the View.",null,null,"0",7,{"$f":"IF(AND(BGCol(C23)=48,G23=\"N/A\"),1,0)","v":{"$error":"#NAME?"}}]
["HRO-PG-05","View-CM11a\nStructured DateTime values in the View SHOULD be in the format [DD-Mmm-YYYY] \ne.g. 14-Aug-2013\n","O",1,"Verify all DateTime values are in DD-Mmm-YYYY format. \nE.g. 01-Jan-2014","DateTime is in the correct format DD-Mmm-YYYY.",null,null,"0",8,{"$f":"IF(AND(BGCol(C24)=48,G24=\"N/A\"),1,0)","v":{"$error":"#NAME?"}}]
["HRO-PG-06","View-HRO01\nA title SHOULD be displayed reflecting the contents of the component or components being displayed.\n","O",1,"Title\nVerify that a title is displayed which reflects the contents of each HRO component.\n\nNOTE TO TESTER:  \nHealth record overview components are:\n- New Documents (Documents available on the PCEHR since the last Shared Health Summary)\n- Shared Health Summary\n- Other Links\n- Recent Documents (Documents available on the PCEHR in the last 12 months)\n\n","Titles that reflect the component contents is displayed for each component.",null,null,"0",9,{"$f":"IF(AND(BGCol(C25)=48,G25=\"N/A\"),1,0)","v":{"$error":"#NAME?"}}]
[]
["START:   Advance Care Directive Custodian Record Indicator"]
["CONDITION:","Tests HRO-PG-07 to HRO-PG-08 apply ONLY when one or more components are displayed.  i.e. if no components are displayed then these tests do not apply."]
["HRO-PG-07","View-HRO12\nThe View SHALL display an indication that Advance Care Directive Custodian details are available.","C",1,"Verify that the display indicates that  Advance Care Directive Custodian details are available.\n\nNOTE TO TESTER:  \nThis may be achieved by the display of a link to the Advance Care document/s, after the HRO title, as: 'Advance Care Directive Custodian details are available'.     \nThis link should not display for patients with no Advance Care Directive Custodian details.\n","Advance Care Directive Custodian Record details are indicated as available.",null,null,{"$f":"IF(G29=\"\",\"0\",IF(G29=\"Pass\",1,IF(G29=\"Fail\",0,IF(G29=\"TBD\",0,IF(G29=\"N/A\",1)))))","v":"0"},10,{"$f":"IF(AND(BGCol(C29)=48,G29=\"N/A\"),1,0)","v":{"$error":"#NAME?"}}]
["HRO-PG-08","View-HRO251\nThe indicator that an Advance Care Directive Custodian Record is available SHOULD be in the form of a link to the Advance Care Directive Custodian Record document with a title \"Advance Care Directive Custodian details are available”.","O",1,"a) Verify that the 'Advance Care Directive Custodian details are available ' indicator  has that title and is in the form of a link.\n\nb) Verify  that the selection of this link results in the display of an Advance Care Directive Custodian document for the patient.\n","Advance Care Directive Custodian Record document is selected and displayed.",null,null,{"$f":"IF(G30=\"\",\"0\",IF(G30=\"Pass\",1,IF(G30=\"Fail\",0,IF(G30=\"TBD\",0,IF(G30=\"N/A\",1)))))","v":"0"},11,{"$f":"IF(AND(BGCol(C30)=48,G30=\"N/A\"),1,0)","v":{"$error":"#NAME?"}}]
["END:   Advance Care Directive Custodian Record indicator"]
[]
["START:   Shared Health Summary component"]
["CONDITION:","These tests are applicable only if the rendering system is capable of displaying the Shared Health Summary component of a Health Record Overview."]
["HRO-PG-09","View-HRO19\nThe View SHALL display a component title \"Shared Health Summary” at the top of the Shared Health Summary component.","C",1,"Test Data: Patient A - has a SHS with information in all of its sections.\n\nVerify that at the top of the Shared Health Summary component is the title 'Shared Health Summary'.\n"," 'Shared Health Summary' title is correct and is located at the top of the component.",null,null,{"$f":"IF(G35=\"\",\"0\",IF(G35=\"Pass\",1,IF(G35=\"Fail\",0,IF(G35=\"TBD\",0,IF(G35=\"N/A\",1)))))","v":"0"},12,{"$f":"IF(AND(BGCol(C35)=48,G35=\"N/A\"),1,0)","v":{"$error":"#NAME?"}}]
["HRO-PG-10","View-HRO25\nThe Shared Health Summary component SHALL contain four sub-components in any order:\n\n• Current and Past Medical History;\n• Medicines;\n• Allergies and Adverse Reactions; and\n• Immunisations.\n","C",1,"Verify the 'Shared Health Summary' component contains all of the following sub-components in any order:\n\n• Current and Past Medical History\n• Medicines\n• Allergies and Adverse Reactions\n• Immunisations.","Sub-components are correct.",null,null,{"$f":"IF(G36=\"\",\"0\",IF(G36=\"Pass\",1,IF(G36=\"Fail\",0,IF(G36=\"TBD\",0,IF(G36=\"N/A\",1)))))","v":"0"},13,{"$f":"IF(AND(BGCol(C36)=48,G36=\"N/A\"),1,0)","v":{"$error":"#NAME?"}}]
["HRO-PG-11","View-HRO21\nThe Shared Health Summary component SHALL display the Shared Health Summary Date near the Shared Health Summary component title.\n","C",1,"Verify the Shared Health Summary date is displayed near the Shared Health Summary component title.\nExample: to the left of the document/view title.\n","Date is displayed near the title.",null,null,{"$f":"IF(G37=\"\",\"0\",IF(G37=\"Pass\",1,IF(G37=\"Fail\",0,IF(G37=\"TBD\",0,IF(G37=\"N/A\",1)))))","v":"0"},14,{"$f":"IF(AND(BGCol(C37)=48,G37=\"N/A\"),1,0)","v":{"$error":"#NAME?"}}]
["HRO-PG-12","View-HRO23\nThe Shared Health Summary component SHOULD display details of the Shared Health Summary Author under, beside, or in proximity to the following headings:\n• Author Name;\n• Author Role;\n• Organisation Name;\n• Address;\n• Phone; and\n• Email.\n\nThe address, phone and email details SHALL relate to the organisation or the business details of the author and SHALL NOT contain personal or private details of the author.\n","O",1,"Verify the following headings are used for displaying the Shared Health Summary Author information:\n\n• Author Name;\n• Author Role;\n• Organisation Name;\n• Address;\n• Phone;\n• Email.\n","The Author headings are displayed.",null,null,{"$f":"IF(G38=\"\",\"0\",IF(G38=\"Pass\",1,IF(G38=\"Fail\",0,IF(G38=\"TBD\",0,IF(G38=\"N/A\",1)))))","v":"0"},15,{"$f":"IF(AND(BGCol(C38)=48,G38=\"N/A\"),1,0)","v":{"$error":"#NAME?"}}]
[null,null,"O",2,"Verify the Author details from the HRO XML document is displayed under, beside, or in proximity to its heading:\n\na) Author Name\n/healthRecordOverviewResponse/sharedHealthSummary/shsAuthorName\n\nData type: complexType name\n","1. All information displayed is derived from the relevant fields within the View response message, and \n2. The information is under, beside, or in proximity to the Author Name heading.",null,null,{"$f":"IF(G39=\"\",\"0\",IF(G39=\"Pass\",1,IF(G39=\"Fail\",0,IF(G39=\"TBD\",0,IF(G39=\"N/A\",1)))))","v":"0"},16,{"$f":"IF(AND(BGCol(C39)=48,G39=\"N/A\"),1,0)","v":{"$error":"#NAME?"}}]
[null,null,"O",3,"Verify the Author details from the HRO XML document is displayed under, beside, or in proximity to its heading:\n\nb) Author Role\n/healthRecordOverviewResponse/sharedHealthSummary/shsAuthorDesignation\n\nData type: custom CE codedData\n\nNOTE TO TESTER:  Where information is displayed from a coded data type in the HRO XML document verify that the value of the 'originalText' is displayed, if present. \nIf the 'originalText' is not present then verify that the value of 'displayName' is displayed, if present. \nIf both 'originalText' and 'displayName' are displayed then verify that these are clearly distinguished.\n\nThis conforms to requirement 020665 found in NEHTA-1788:2014 Clinical Terminology - Use of Medical Nomenclatures in Information Exchange v1.0.\n","1. All information displayed is derived from the relevant fields within the View response message, and \n2. The information is under, beside, or in proximity to the Author Role heading.",null,null,"0",17,{"$f":"IF(AND(BGCol(C40)=48,G40=\"N/A\"),1,0)","v":{"$error":"#NAME?"}}]
[null,null,"O",4,"Verify the Author details from the HRO XML document is displayed under, beside, or in proximity to its heading:\n\nc) Organisation Name \n/healthRecordOverviewResponse/sharedHealthSummary/shsAuthorOrgName\n\nData type: string\n","1. All information displayed is derived from the relevant fields within the View response message, and \n2. The information is under, beside, or in proximity to the Organisation Name heading.",null,null,"0",18,{"$f":"IF(AND(BGCol(C41)=48,G41=\"N/A\"),1,0)","v":{"$error":"#NAME?"}}]
[null,null,"C",5,"CONDITION: If Address has been used, then:\n\nVerify the Author details from the HRO XML document is displayed under, beside, or in proximity to its heading and confirm the address details relate to the organisation or the business details of the author:\n\nd) Address\n/healthRecordOverviewResponse/sharedHealthSummary/shsAuthorAddress\n\nData type: complexType addr\n\nNOTE TO TESTER: Private details of the author such as address, phone and email details are NOT permitted.\n","1. All information displayed is derived from the relevant fields within the View response message, and \n2. The address details relate to the organisation or the business details of the author, and\n3. The information is under, beside, or in proximity to the Address heading.",null,null,"0",19,{"$f":"IF(AND(BGCol(C42)=48,G42=\"N/A\"),1,0)","v":{"$error":"#NAME?"}}]
[null,null,"C",6,"CONDITION: If Phone has been used, then:\n\nVerify the Author details from the HRO XML document is displayed under, beside, or in proximity to its heading and confirm the phone details relate to the organisation or the business details of the author:\n\ne) Phone\n/healthRecordOverviewResponse/sharedHealthSummary/shsAuthorContactDetails\n\nData type: complexType contactDetails\n\nNOTE TO TESTER: Private details of the author such as address, phone and email details are NOT permitted.\n\n","1. All information displayed is derived from the relevant fields within the View response message, and \n2. The phone details relate to the organisation or the business details of the author, and\n3. The information is under, beside, or in proximity to the Phone heading.",null,null,"0",20,{"$f":"IF(AND(BGCol(C43)=48,G43=\"N/A\"),1,0)","v":{"$error":"#NAME?"}}]
[null,null,"C",7,"CONDITION: If Email has been used, then:\n\nVerify the Author details from the HRO XML document is displayed under, beside, or in proximity to its heading and confirm the email details relate to the organisation or the business details of the author:\n\nf) Email\n/healthRecordOverviewResponse/sharedHealthSummary/shsAuthorContactDetails\n\nData type: complexType contactDetails\n\nNOTE TO TESTER: Private details of the author such as address, phone and email details are NOT permitted.\n","All information displayed is derived from the relevant fields within the View response message, and \n2. The email details relate to the organisation or the business details of the author, and\n3. The information is under, beside, or in proximity to the Email heading.",null,null,"0",21,{"$f":"IF(AND(BGCol(C44)=48,G44=\"N/A\"),1,0)","v":{"$error":"#NAME?"}}]
[null,null,null,8,"NOTE TO TESTER:\na) The element path for the display information is described in the 'View response xml attribute' column of the 'SHS CDA to View Mapping' worksheet of the NEHTA-2081:2015 Health Record Overview - Presentation and Data Usage Guide v1.1.\n\nb) If other information contained in the View response message is displayed it should be sourced in the same way as Note a).\n",null,null,null,null,null,{"$f":"IF(AND(BGCol(C45)=48,G45=\"N/A\"),1,0)","v":{"$error":"#NAME?"}}]
["Current and Past Medical History"]
["HRO-PG-13","View-HRO26\nThe View SHALL display a component title \"Current and Past Medical History\".\n","C",1,"(Test Data:  Patient A - has a SHS with Medical History information).\n\nVerify that the title displayed for the Current and Past Medical History component is: \n'Current and Past Medical History'.\n","'Current and Past Medical History' title is correct.",null,null,{"$f":"IF(G47=\"\",\"0\",IF(G47=\"Pass\",1,IF(G47=\"Fail\",0,IF(G47=\"TBD\",0,IF(G47=\"N/A\",1)))))","v":"0"},22,{"$f":"IF(AND(BGCol(C47)=48,G47=\"N/A\"),1,0)","v":{"$error":"#NAME?"}}]
["HRO-PG-14","View-HRO27\nThe Current and Past Medical History component SHALL display problem/diagnosis items or the appropriate exclusion statement followed by procedure items or the appropriate exclusion statement from the Shared Health Summary component of the View, followed by uncategorised medical history items (if applicable).\n","C",1,"Verify the following items are displayed for Patient A in the following order.\n\n• Problem/diagnosis items or an exclusion statement;\n• Procedures or an exclusion statement;\n• Uncategorised medical history (if applicable).\n\nNOTE TO TESTER:  \nFor the PROBLEM/DIAGNOSIS Exclusion Statement tests please see requirement: 'View-HRO06'.\nFor the PROCEDURE EXCLUSION Exclusion Statement test please see requirement: 'View-HRO09'.\n","Items in the Current and Past Medical History component are correctly ordered.",null,null,"0",23,{"$f":"IF(AND(BGCol(C48)=48,G48=\"N/A\"),1,0)","v":{"$error":"#NAME?"}}]
["HRO-PG-15","View-HRO28\nThe Current and Past Medical History SHALL display the following information per problem/diagnosis item:\n\n• Onset Date;\n• Resolved Date;\n• Description; and\n• Comment (if recorded).\n","C",1,"Verify the following Problem/Diagnosis information is displayed for each Problem/Diagnosis item:\n\na) Onset Date\n/healthRecordOverviewResponse/sharedHealthSummary/medHistoryList/problemAndDiagnosis/medDateO\n\nData type: complexType timeStamp\n\nNOTE TO TESTER: \nThe Onset Date is optional, so may not be present.\n","All information displayed is derived from the relevant fields within the View response message.",null,null,"0",24,{"$f":"IF(AND(BGCol(C49)=48,G49=\"N/A\"),1,0)","v":{"$error":"#NAME?"}}]
[null,null,null,2,"Verify the following Problem/Diagnosis information is displayed for each Problem/Diagnosis item:\n\nb) Resolved Date\n/healthRecordOverviewResponse/sharedHealthSummary/medHistoryList/problemAndDiagnosis/medDateR\n\nData type: complexType timeStamp\n\nNOTE TO TESTER: \nThe Resolved Date is optional, so may not be present.\n","All information displayed is derived from the relevant fields within the View response message.",null,null,"0",25,{"$f":"IF(AND(BGCol(C50)=48,G50=\"N/A\"),1,0)","v":{"$error":"#NAME?"}}]
[null,null,null,3,"Verify the following Problem/Diagnosis information is displayed for each Problem/Diagnosis item:\n\nc) Description\n/healthRecordOverviewResponse/sharedHealthSummary/medHistoryList/problemAndDiagnosis/medTitle\n\nData type: complexType codedData\n\nNOTE TO TESTER:  Where information is displayed from a coded data type in the HRO XML document verify that the value of the 'originalText' is displayed, if present. \nIf the 'originalText' is not present then verify that the value of 'displayName' is displayed, if present. \nIf both 'originalText' and 'displayName' are displayed then verify that these are clearly distinguished.\n\nThis conforms to requirement 020665 found in NEHTA-1788:2014 Clinical Terminology - Use of Medical Nomenclatures in Information Exchange v1.0.\n","All information displayed is derived from the relevant fields within the View response message.",null,null,"0",26,{"$f":"IF(AND(BGCol(C51)=48,G51=\"N/A\"),1,0)","v":{"$error":"#NAME?"}}]
[null,null,null,4,"Verify the following Problem/Diagnosis information is displayed for each Problem/Diagnosis item:\n\nd) Comment (if recorded)\n/healthRecordOverviewResponse/sharedHealthSummary/medHistoryList/problemAndDiagnosis/medComment\n\nData type: string\n\nNOTE TO TESTER: \nComment is optional, so may not be present.\n","All information displayed is derived from the relevant fields within the View response message.",null,null,"0",27,{"$f":"IF(AND(BGCol(C52)=48,G52=\"N/A\"),1,0)","v":{"$error":"#NAME?"}}]
["HRO-PG-16","View-HRO351\nDiagnosis/health problem items SHOULD be clearly separated from Procedure items and uncategorised medical history items within the Current and Past Medical History component.\n","O",1,"Verify that the following are clearly separated.\n\n• Problem/diagnosis items or an exclusion statement;\n• Procedures or an exclusion statement;\n• Uncategorised medical history (if applicable).\n\nNOTE TO TESTER:  \nFor example, this may be achieved by:\n1. Using separate sub-sections headed with the captions, 'Problem/diagnosis items' , 'Procedure items', 'Uncategorised medical history items'.\n2. Each item contained therein, being displayed on a separate line.\n"," 'Problem/diagnosis', 'Procedure' and 'Uncategorised medical history' items are clearly separated.",null,null,"0",28,{"$f":"IF(AND(BGCol(C53)=48,G53=\"N/A\"),1,0)","v":{"$error":"#NAME?"}}]
["Medicines"]
["HRO-PG-17","View-HRO32\nThe View SHALL display a component title \"Medicines”.","C",1,"Test Data:  Patient A - has a SHS with Medicine information.\n\nVerify that the title displayed for the Medicines component is:  \n'Medicines'\n"," 'Medicines' title is correct.",null,null,{"$f":"IF(G55=\"\",\"0\",IF(G55=\"Pass\",1,IF(G55=\"Fail\",0,IF(G55=\"TBD\",0,IF(G55=\"N/A\",1)))))","v":"0"},29,{"$f":"IF(AND(BGCol(C55)=48,G55=\"N/A\"),1,0)","v":{"$error":"#NAME?"}}]
["HRO-PG-18","View-HRO33\nThe Medicines component SHALL display all the medicine items or the appropriate exclusion statements from the Shared Health Summary component of the View.\n","C",1,"Where there is one or many medicines in the SHS, verify that the Medicines component of the View displays all of the medicine items. \n\nNOTE TO TESTER: \nTest HRO-PG-19 below states that \"medicine name\" and \"dose instructions\" shall be displayed at a minimum.\n","The View displays all of the medicine items. \n",null,null,{"$f":"IF(G56=\"\",\"0\",IF(G56=\"Pass\",1,IF(G56=\"Fail\",0,IF(G56=\"TBD\",0,IF(G56=\"N/A\",1)))))","v":"0"},30,{"$f":"IF(AND(BGCol(C56)=48,G56=\"N/A\"),1,0)","v":{"$error":"#NAME?"}}]
[null,null,null,2,"NOTE TO TESTER:  \nFor the MEDICINE Exclusion Statement test please see requirement 'View-HRO11'.\n"]
["HRO-PG-19","View-HRO34\nThe Medicines component SHALL display, per medicine item, at least the following information:\n\n• the medicine name (<medicineTitle>); and\n• the dose instructions.\n","C",1,"Verify that at a minimum the following is displayed for each Medicine Item:\n\na) Medicine name\n/healthRecordOverviewResponse/sharedHealthSummary/medicinesList/medicine/medicineTitle\n\nData type: custom CE codedData\n\nNOTE TO TESTER:  Where information is displayed from a coded data type in the HRO XML document verify that the value of the 'originalText' is displayed, if present. \nIf the 'originalText' is not present then verify that the value of 'displayName' is displayed, if present. \nIf both 'originalText' and 'displayName' are displayed then verify that these are clearly distinguished.\n\nThis conforms to requirement 020665 found in NEHTA-1788:2014 Clinical Terminology - Use of Medical Nomenclatures in Information Exchange v1.0.\n","All information displayed is derived from the relevant fields within the View response message.",null,null,{"$f":"IF(G58=\"\",\"0\",IF(G58=\"Pass\",1,IF(G58=\"Fail\",0,IF(G58=\"TBD\",0,IF(G58=\"N/A\",1)))))","v":"0"},31,{"$f":"IF(AND(BGCol(C58)=48,G58=\"N/A\"),1,0)","v":{"$error":"#NAME?"}}]
[null,null,null,2,"b) Dose instructions\n/healthRecordOverviewResponse/sharedHealthSummary/medicinesList/medicine/medicineDose\n\nData type: string\n","All information displayed is derived from the relevant fields within the View response message.",null,null,{"$f":"IF(G59=\"\",\"0\",IF(G59=\"Pass\",1,IF(G59=\"Fail\",0,IF(G59=\"TBD\",0,IF(G59=\"N/A\",1)))))","v":"0"},32,{"$f":"IF(AND(BGCol(C59)=48,G59=\"N/A\"),1,0)","v":{"$error":"#NAME?"}}]
[null,null,null,3,"If other information contained in the View response message is displayed:\nVerify that it is sourced from the related element path. \n\nNOTE TO TESTER:\nThe element path for the display information is described in the 'View response xml attribute' column of the 'CDA to View Mapping' worksheet of the NEHTA-2081:2015 Health Record Overview - Presentation and Data Usage Guide v1.1.\n\nWhere information is displayed from a coded data type in the health record overview XML document verify that the value of the 'originalText' is displayed, if present. \nIf the 'originalText' is not present then verify that the value of 'displayName' is displayed, if present. \nIf both 'originalText' and 'displayName' are displayed then verify that these are clearly distinguished. \n\nThis conforms to requirement 020665 found in NEHTA-1788:2014 Clinical Terminology - Use of Medical Nomenclatures in Information Exchange v1.0.\n","All information displayed is derived from the relevant fields within the View response message.",null,null,{"$f":"IF(G60=\"\",\"0\",IF(G60=\"Pass\",1,IF(G60=\"Fail\",0,IF(G60=\"TBD\",0,IF(G60=\"N/A\",1)))))","v":"0"},33,{"$f":"IF(AND(BGCol(C60)=48,G60=\"N/A\"),1,0)","v":{"$error":"#NAME?"}}]
["Allergies and Adverse Reactions"]
["HRO-PG-20","View-HRO38\nThe View SHALL display a component title \"Allergies and Adverse Reactions”.\n","C",1,"Test Data:  Patient A - has a SHS with Allergies and Adverse Reaction information.\n\nVerify that the title displayed for the Allergies and Adverse Reactions component sub-component is: \n 'Allergies and Adverse Reactions'.\n"," 'Allergies and Adverse Reactions' title is correct.",null,null,{"$f":"IF(G62=\"\",\"0\",IF(G62=\"Pass\",1,IF(G62=\"Fail\",0,IF(G62=\"TBD\",0,IF(G62=\"N/A\",1)))))","v":"0"},34,{"$f":"IF(AND(BGCol(C62)=48,G62=\"N/A\"),1,0)","v":{"$error":"#NAME?"}}]
["HRO-PG-21","View-HRO39\nThe Allergies and Adverse Reactions component SHALL display all the allergies and adverse reactions items or the appropriate exclusion statements from the Shared Health Summary component of the View.\n","C",1,"Verify the 'Allergies and Adverse Reactions' component displays all the allergies and adverse reactions. \n\nNOTE TO TESTER:\nFor the ALLERGIES and ADVERSE REACTIONS Exclusion Statement test please see requirement 'View-HRO17'.\n","Items are displayed correctly.",null,null,"0",35,{"$f":"IF(AND(BGCol(C63)=48,G63=\"N/A\"),1,0)","v":{"$error":"#NAME?"}}]
["HRO-PG-22","View-HRO40\nThe Allergies and Adverse Reactions component SHALL display, per allergies and adverse reaction item, the following information in the following order:\n\n• Substance/Agent (<advReactionCause>);\n• Reactions for that Substance/Agent (<advReactionManifestation>); and\n• Reaction type (<advReactionType>). \n\n","C",1,"Verify the following information is shown for each allergy and adverse reaction item, in this order:\n\n• Substance/Agent\n• Reactions for that Substance/Agent\n• Reaction type \n","Allergy and Adverse Reaction for each item is displayed in the correct order.",null,null,"0",36,{"$f":"IF(AND(BGCol(C64)=48,G64=\"N/A\"),1,0)","v":{"$error":"#NAME?"}}]
[null,null,null,2,"Verify the information is derived from the related element path within the View response message:\n\na) Substance/Agent\n/healthRecordOverviewResponse/sharedHealthSummary/sharedHealthSummaryAtomicData/advReactionsList/advReaction/advReactionCause\n\nData type: custom CE codedData\n\nNOTE TO TESTER:  Where information is displayed from a coded data type in the HRO XML document verify that the value of the 'originalText' is displayed, if present. \nIf the 'originalText' is not present then verify that the value of 'displayName' is displayed, if present. \nIf both 'originalText' and 'displayName' are displayed then verify that these are clearly distinguished.\n\nThis conforms to requirement 020665 found in NEHTA-1788:2014 Clinical Terminology - Use of Medical Nomenclatures in Information Exchange v1.0.\n\n","All information displayed is derived from the relevant fields within the View response message.",null,null,"0",37,{"$f":"IF(AND(BGCol(C65)=48,G65=\"N/A\"),1,0)","v":{"$error":"#NAME?"}}]
[null,null,null,3,"Verify the information is derived from the related element path within the View response message:\n\nb) Reactions for that Substance/Agent\n/healthRecordOverviewResponse/sharedHealthSummary/sharedHealthSummaryAtomicData/advReactionsList/advReaction/advReactionManifestation\n\nData type: custom CE codedData\n\nNOTE TO TESTER:  Where information is displayed from a coded data type in the HRO XML document verify that the value of the 'originalText' is displayed, if present. \nIf the 'originalText' is not present then verify that the value of 'displayName' is displayed, if present. \nIf both 'originalText' and 'displayName' are displayed then verify that these are clearly distinguished.\n\nThis conforms to requirement 020665 found in NEHTA-1788:2014 Clinical Terminology - Use of Medical Nomenclatures in Information Exchange v1.0.\n","All information displayed is derived from the relevant fields within the View response message.",null,null,"0",38,{"$f":"IF(AND(BGCol(C66)=48,G66=\"N/A\"),1,0)","v":{"$error":"#NAME?"}}]
[null,null,null,4,"Verify the information is derived from the related element path within the View response message:\n\nc) Reaction type\n/healthRecordOverviewResponse/sharedHealthSummary/sharedHealthSummaryAtomicData/advReactionsList/advReaction/advReactionType\n\nData type: custom CE codedData\n\nNOTE TO TESTER:  Where information is displayed from a coded data type in the HRO XML document verify that the value of the 'originalText' is displayed, if present. \nIf the 'originalText' is not present then verify that the value of 'displayName' is displayed, if present. \nIf both 'originalText' and 'displayName' are displayed then verify that these are clearly distinguished.\n\nThis conforms to requirement 020665 found in NEHTA-1788:2014 Clinical Terminology - Use of Medical Nomenclatures in Information Exchange v1.0.\n","All information displayed is derived from the relevant fields within the View response message.",null,null,"0",39,{"$f":"IF(AND(BGCol(C67)=48,G67=\"N/A\"),1,0)","v":{"$error":"#NAME?"}}]
["HRO-PG-23","View-HRO45\nThe Allergies & Adverse Reactions items SHALL be sorted in the order they are recorded in the XML stream.\n","C",1,"a)  Open the HRO XML document.\nb)  Verify the SHS, 'Allergies and Adverse Reactions' items are displayed in the order they are recorded in the HRO XML document.","Items are displayed in the same order as recorded in the HRO XML document.",null,null,"0",40,{"$f":"IF(AND(BGCol(C68)=48,G68=\"N/A\"),1,0)","v":{"$error":"#NAME?"}}]
["HRO-PG-24","View-HRO41\nAll reactions recorded for a substance/agent SHALL be displayed.\n","C",1,"Verify all reactions for a substance/agent that are recorded in the HRO XML document are displayed. ","All reactions are displayed.",null,null,"0",41,{"$f":"IF(AND(BGCol(C69)=48,G69=\"N/A\"),1,0)","v":{"$error":"#NAME?"}}]
["Immunisations"]
["HRO-PG-25","View-HRO46\nThe View SHALL display a component title \"Immunisations\".","C",1,"Test Data:  Patient A - has a SHS with Immunisations information. \n\nVerify that the title displayed for the Immunisations component is:  \n'Immunisations'.\n"," 'Immunisations' title is correct.",null,null,{"$f":"IF(G71=\"\",\"0\",IF(G71=\"Pass\",1,IF(G71=\"Fail\",0,IF(G71=\"TBD\",0,IF(G71=\"N/A\",1)))))","v":"0"},42,{"$f":"IF(AND(BGCol(C71)=48,G71=\"N/A\"),1,0)","v":{"$error":"#NAME?"}}]
["HRO-PG-26","View-HRO47\nThe Immunisation component SHALL display all the immunisation items or the appropriate exclusion statements from the Shared Health Summary component of the View.\n","C",1,"Verify all 'Immunisations' items are displayed for patient A.\n\nNOTE TO TESTER:\nFor the IMMUNISATIONS Exclusion Statement test please see requirement 'View-HRO24'.\n","Items are displayed.",null,null,"0",43,{"$f":"IF(AND(BGCol(C72)=48,G72=\"N/A\"),1,0)","v":{"$error":"#NAME?"}}]
["HRO-PG-27","View-HRO48\nThe Immunisation component SHALL display, per Immunisation item, the following information in the following order:\n• Date administered\n• Vaccine name (as recorded on the Shared Health Summary); and\n• Vaccine sequence number (if recorded)\n","C",1,"Verify the following information is displayed for each 'Immunisations' item, in this order:\n\n• Date administered;\n• Vaccine name (as recorded on the Shared Health Summary);\n• Vaccine sequence number (if recorded).\n","Immunisation information for each item is displayed in the correct order.",null,null,"0",44,{"$f":"IF(AND(BGCol(C73)=48,G73=\"N/A\"),1,0)","v":{"$error":"#NAME?"}}]
[null,null,null,2,"Verify the following information is derived from the related element path within the View response message:\n\na) Date administered\n/healthRecordOverviewResponse/sharedHealthSummary/immunisationsList/immunisation/immunisationDate\n\nData type: complexType timeStamp\n","All information displayed is derived from the relevant fields within the View response message.",null,null,"0",45,{"$f":"IF(AND(BGCol(C74)=48,G74=\"N/A\"),1,0)","v":{"$error":"#NAME?"}}]
[null,null,null,3,"Verify the following information is derived from the related element path within the View response message:\n\nb) Vaccine name (as recorded on the Shared Health Summary)\n/healthRecordOverviewResponse/sharedHealthSummary/immunisationsList/immunisation/immunisationTitle\n\nData type: custom CE codedData\n\nNOTE TO TESTER:  Where information is displayed from a coded data type in the HRO XML document verify that the value of the 'originalText' is displayed, if present. \nIf the 'originalText' is not present then verify that the value of 'displayName' is displayed, if present. \nIf both 'originalText' and 'displayName' are displayed then verify that these are clearly distinguished.\n\nThis conforms to requirement 020665 found in NEHTA-1788:2014 Clinical Terminology - Use of Medical Nomenclatures in Information Exchange v1.0.\n","All information displayed is derived from the relevant fields within the View response message.",null,null,"0",46,{"$f":"IF(AND(BGCol(C75)=48,G75=\"N/A\"),1,0)","v":{"$error":"#NAME?"}}]
[null,null,null,4,"Verify the following information is derived from the related element path within the View response message:\n\nc) Vaccine sequence number (if recorded)\n/healthRecordOverviewResponse/sharedHealthSummary/immunisationsList/immunisation/immunisationSequenceNumber\n\nData type: integer\n","All information displayed is derived from the relevant fields within the View response message.",null,null,"0",47,{"$f":"IF(AND(BGCol(C76)=48,G76=\"N/A\"),1,0)","v":{"$error":"#NAME?"}}]
["Entitlements and qualifications"]
["HRO-PG-28","View-HRO110\nThe View SHALL NOT display any entitlements or qualifications for any healthcare professional or subject of care.\n\nRationale\nShared Health Summaries may carry entitlement and qualification information for the subject of care and/or healthcare professionals. The Health Record Overview must not display this information as it is considered irrelevant in a Health Record Overview context.\n","C",1,"Verify the View does NOT display any entitlements or qualifications for any healthcare professional or subject of care.\n\nNOTE TO TESTER: \nIf entitlement and qualification information is included in Shared Health Summaries; Health Record Overview must not display this information. \n","The View does NOT display any entitlements or qualifications for any healthcare professional or subject of care.",null,null,{"$f":"IF(G78=\"\",\"0\",IF(G78=\"Pass\",1,IF(G78=\"Fail\",0,IF(G78=\"TBD\",0,IF(G78=\"N/A\",1)))))","v":"0"},48,{"$f":"IF(AND(BGCol(C78)=48,G78=\"N/A\"),1,0)","v":{"$error":"#NAME?"}}]
["END:   Shared Health Summary component"]
[]
["START:   New Documents component\n"]
["XPATH: /healthRecordOverviewResponse/newDocuments"]
["CONDITION:","These tests are applicable only if the rendering system is capable of displaying the New Documents component of a Health Record Overview."]
["HRO-PG-29","View-HRO500\nThe New Documents component SHALL display the title \"Documents available on the PCEHR since the last Shared Health Summary\".\n\nRationale\nTo make it immediately obvious to the user that there are newer documents than the latest Shared Health Summary available in the PCEHR.\n","C",1,"Test Data:  Patient A - has New Documents. \nNew Documents are clinical documents available in the PCEHR that possess a document date that is greater than that of the most recent SHS.\n\nVerify that the title of the 'New Documents' component in the HRO view is:\n\"Documents available on the PCEHR since the last Shared Health Summary\".\n","The title of the New Documents component is  \"Documents available on the PCEHR since the last Shared Health Summary\".\n",null,null,{"$f":"IF(G84=\"\",\"0\",IF(G84=\"Pass\",1,IF(G84=\"Fail\",0,IF(G84=\"TBD\",0,IF(G84=\"N/A\",1)))))","v":"0"},49,{"$f":"IF(AND(BGCol(C84)=48,G84=\"N/A\"),1,0)","v":{"$error":"#NAME?"}}]
["HRO-PG-30","View-HRO05\nThe New Documents component SHALL display at least the following column labels:\n• Document Date;\n• Document Type; and\n• Organisation Name.\n","C",1,"Verify the  column labels displayed in the 'New Documents' component include at least the following:\n• Document Date\n• Document Type\n• Organisation Name.\n","The required column labels are present.",null,null,{"$f":"IF(G85=\"\",\"0\",IF(G85=\"Pass\",1,IF(G85=\"Fail\",0,IF(G85=\"TBD\",0,IF(G85=\"N/A\",1)))))","v":"0"},50,{"$f":"IF(AND(BGCol(C85)=48,G85=\"N/A\"),1,0)","v":{"$error":"#NAME?"}}]
["HRO-PG-31","View-CM17\nEach Document Line in the View SHALL act as a link to the source CDA document in the PCEHR.\n","C",1,"a)  From the 'New Documents' component of the View, click on a Document Line and verify that the source CDA document is displayed.\nb)  Repeat with other Document Lines.\n\nNOTE TO TESTER:  the intention of this requirement is that the CDA document is displayed immediately upon the link being selected.\n","The correct document is displayed after selecting an Document Line in the 'New Document'  component of the HRO.",null,null,{"$f":"IF(G86=\"\",\"0\",IF(G86=\"Pass\",1,IF(G86=\"Fail\",0,IF(G86=\"TBD\",0,IF(G86=\"N/A\",1)))))","v":"0"},51,{"$f":"IF(AND(BGCol(C86)=48,G86=\"N/A\"),1,0)","v":{"$error":"#NAME?"}}]
["HRO-PG-32","View-HRO640\nInformation displayed to the user SHOULD be capable of being ordered by any available column.","O",1,"Verify the 'New Documents' can be ordered by any of the available columns.\n\nNOTE TO TESTER:\nThe mandatory columns are:\n• Document Date\n• Document Type\n• Organisation Name\n\nIf other columns are present, then information can be ordered by that column too.\n"," 'New Documents' can be ordered by any available column.",null,null,{"$f":"IF(G87=\"\",\"0\",IF(G87=\"Pass\",1,IF(G87=\"Fail\",0,IF(G87=\"TBD\",0,IF(G87=\"N/A\",1)))))","v":"0"},52,{"$f":"IF(AND(BGCol(C87)=48,G87=\"N/A\"),1,0)","v":{"$error":"#NAME?"}}]
["END:   New Documents component"]
[]
["START:   Recent Documents component"]
["XPATH : /healthRecordOverviewResponse/recentDocuments"]
["CONDITION:","These tests are applicable only if the rendering system is capable of displaying the Recent Documents component of a Health Record Overview."]
["HRO-PG-33","View-HRO78\nThe View SHALL display the component title \n\"Documents available on the PCEHR in the last 12 months\".","C",1,"Test Data:  Patient A - has Recent Documents.\nRecent Documents are clinical documents available in the PCEHR that possess a document date that is within the last 12 months.\n\nVerify that the title of the 'Recent Documents' component in the HRO view is:\n'Documents Available on the PCEHR in the last 12 months'.\n","The title of the 'Recent Documents' component is 'Documents Available on the PCEHR in the last 12 months'.",null,null,{"$f":"IF(G93=\"\",\"0\",IF(G93=\"Pass\",1,IF(G93=\"Fail\",0,IF(G93=\"TBD\",0,IF(G93=\"N/A\",1)))))","v":"0"},53,{"$f":"IF(AND(BGCol(C93)=48,G93=\"N/A\"),1,0)","v":{"$error":"#NAME?"}}]
["HRO-PG-34","View-HRO80\nThe Recent Documents component SHALL display the following column labels:\n\n• Date;\n• Document Type;\n• Author Name;\n• Author Role; and\n• Organisation Name.\n","C",1,"Verify the  'Recent Documents' component displays the columns labels:\n\n• Date\n• Document Type \n• Author Name\n• Author Role\n• Organisation Name.\n"," 'Recent Documents' component shows the correct column labels.",null,null,{"$f":"IF(G94=\"\",\"0\",IF(G94=\"Pass\",1,IF(G94=\"Fail\",0,IF(G94=\"TBD\",0,IF(G94=\"N/A\",1)))))","v":"0"},54,{"$f":"IF(AND(BGCol(C94)=48,G94=\"N/A\"),1,0)","v":{"$error":"#NAME?"}}]
["HRO-PG-35","View-CM17\nEach Document Line in the View SHALL act as a link to the source CDA document in the PCEHR.\n","C",1,"a)  From the 'Recent Documents' component of the View, click on a Document Line and verify that the source CDA document is displayed.\nb)  Repeat with other Document Lines.\n\nNOTE TO TESTER:  the intention of this requirement is that the CDA document is displayed immediately upon the link being selected.\n","The correct document is displayed after selecting an Document Line in the 'Recent Document'  component of the HRO.",null,null,{"$f":"IF(G95=\"\",\"0\",IF(G95=\"Pass\",1,IF(G95=\"Fail\",0,IF(G95=\"TBD\",0,IF(G95=\"N/A\",1)))))","v":"0"},55,{"$f":"IF(AND(BGCol(C95)=48,G95=\"N/A\"),1,0)","v":{"$error":"#NAME?"}}]
["END:      Recent Documents component"]
[]
["START:  Other Links component"]
["CONDITION:","These tests are applicable only if the rendering system is capable of displaying the Other Links component of a Health Record Overview."]
["NOTE:","A rendering system need only render links to views that are supported by the rendering system (i.e. not all links need to be supported)."]
["HRO-PG-36","View-HRO420 \nHyperlinks displayed in the Other Links section SHALL use the data element </healthRecordOverviewResponse/otherLinks/link/linkTitle> to label the link.\n\nNOTE: The recommended description that is displayed below each link is specified in the subsection below.\n\nRationale\nThe View XML will provide the correct title to use for each link. The positioning for each link should remain in the same order regardless of the title provided.\n\nUsing the text provided in the XML enables universal and consistent naming, and centralised management of titles.\n","C",1,"Test Data:  Patient A - has document types and views that display after selecting the appropriate link from the Other Links component.\nThe Other Links component of the HRO view, displays links to other document types and views.\n\na)  In the 'Other Links' component, for each link verify the link text is the text in the HRO XML data element </healthRecordOverviewResponse/otherLinks/link/linkTitle>.\n","a)  Link titles are populated using the XML data element, </healthRecordOverviewResponse/otherLinks/link/linkTitle>.",null,null,{"$f":"IF(G101=\"\",\"0\",IF(G101=\"Pass\",1,IF(G101=\"Fail\",0,IF(G101=\"TBD\",0,IF(G101=\"N/A\",1)))))","v":"0"},56,{"$f":"IF(AND(BGCol(C101)=48,G101=\"N/A\"),1,0)","v":{"$error":"#NAME?"}}]
["Personal Health Summary"]
["HRO-PG-37","View-HRO58 \nUnder the Personal Health Summary link title, the View SHOULD display a link description:\n\n\"Summary of personal health information such as medications, allergies and adverse reactions added by the individual or an authorised representative to the eHealth record.\"\n","O",1,"a) Verify that under the link title for Personal Health Summary is the description:\n\n\"Summary of personal health information such as medications, allergies and adverse reactions added by the individual or an authorised representative to the eHealth record.\"","Link description is correct.",null,null,{"$f":"IF(G103=\"\",\"0\",IF(G103=\"Pass\",1,IF(G103=\"Fail\",0,IF(G103=\"TBD\",0,IF(G103=\"N/A\",1)))))","v":"0"},57,{"$f":"IF(AND(BGCol(C103)=48,G103=\"N/A\"),1,0)","v":{"$error":"#NAME?"}}]
["Pathology Reports"]
["HRO-PG-38","View-HRO64 \nUnder the Pathology Report View link title, the View SHOULD display a link description:\n\n\"Pathology reports available on the eHealth record.\"\n","O",1,"a) Verify that under the link title for Pathology Report View is the description: \n\n\"Pathology reports available on the eHealth record.\"","Link description is correct.",null,null,{"$f":"IF(G105=\"\",\"0\",IF(G105=\"Pass\",1,IF(G105=\"Fail\",0,IF(G105=\"TBD\",0,IF(G105=\"N/A\",1)))))","v":"0"},58,{"$f":"IF(AND(BGCol(C105)=48,G105=\"N/A\"),1,0)","v":{"$error":"#NAME?"}}]
["Diagnostic Imaging Reports"]
["HRO-PG-39","View-HRO70\nUnder the Diagnostic Imaging Report View link title, the View SHOULD display a link description:\n\n\"Diagnostic Imaging reports available on the eHealth record.\"\n","O",1,"a) Verify that under the link title for Diagnostic Imaging Report View is the description: \n\n\"Diagnostic Imaging reports available on the eHealth record.\"\n","Link description is correct.\n",null,null,"0",59,{"$f":"IF(AND(BGCol(C107)=48,G107=\"N/A\"),1,0)","v":{"$error":"#NAME?"}}]
["Health Check Assessment Schedule"]
["HRO-PG-40","View-HRO76\nUnder the Health Check Assessment Schedule link title, the View SHOULD display a link description:\n\n\"Questionnaires completed by a parent or an authorised representative at scheduled intervals to help monitor a child's growth and development available on the eHealth record.\"\n","O",1,"a) Verify that under the link title for Health Check Assessment Schedule is the description: \n\n\"Questionnaires completed by a parent or an authorised representative at scheduled intervals to help monitor a child's growth and development available on the eHealth record.\"\n","Link description is correct.",null,null,"0",60,{"$f":"IF(AND(BGCol(C109)=48,G109=\"N/A\"),1,0)","v":{"$error":"#NAME?"}}]
["Prescription and Dispense"]
["HRO-PG-41","View-HRO67\nUnder the Prescription and Dispense link title, the View SHOULD display a link description:\n\n\"Prescription and Dispense records available on the eHealth record.\"\n","O",1,"a) Verify that under the link title for Prescription and Dispense is the description: \n\n\"Prescription and Dispense records available on the eHealth record.\"\n","Link description is correct.",null,null,"0",61,{"$f":"IF(AND(BGCol(C111)=48,G111=\"N/A\"),1,0)","v":{"$error":"#NAME?"}}]
["Medicare"]
["HRO-PG-42","View-HRO61\nUnder the Medicare title, the View SHOULD display a link description: \n\n\"Information regarding Medicare and Department of Veterans' Affairs benefits, pharmaceutical benefits, childhood immunisation and organ donor status available on the eHealth record.\"\n","O",1,"a) Verify that under the link title for Medicare is the description: \n\n\"Information regarding Medicare and Department of Veterans' Affairs benefits, pharmaceutical benefits, childhood immunisation and organ donor status available on the eHealth record.\"\n","Link description is correct.",null,null,"0",62,{"$f":"IF(AND(BGCol(C113)=48,G113=\"N/A\"),1,0)","v":{"$error":"#NAME?"}}]
["Advance Care Directive Custodian Record"]
["HRO-PG-43","View-HRO73\nUnder the Advance Care Directive Custodian Record link title, the View SHOULD  display a link description:\n\n\"Advance Care Directive Custodian contact details available on the eHealth record.\"\n","O",1,"a) Verify that under the link title for Advance Care Directive Custodian Record is the description: \n\n\"Advance Care Directive Custodian contact details available on the eHealth record.\"\n","Link description is correct.",null,null,"0",63,{"$f":"IF(AND(BGCol(C115)=48,G115=\"N/A\"),1,0)","v":{"$error":"#NAME?"}}]
["END:  Other Links component"]
[]
["START:  Filtering"]
["CONDITION:","These tests are applicable only if the Rendering System is capable of displaying the New Documents and/or Recent Documents components of a Health Record Overview."]
["HRO-PG-44","View-HRO201\nDocument Sections in the Health Record Overview View (New Documents and Recent Documents) SHALL allow filtering.\n","C",1,"Verify the documents displayed in the New Documents component can be filtered by the values in the columns displayed (e.g. Date, Document Type, Author Name, Author Role, Organisation Name).\n","New Documents can be filtered by the values in the columns.",null,null,{"$f":"IF(G120=\"\",\"0\",IF(G120=\"Pass\",1,IF(G120=\"Fail\",0,IF(G120=\"TBD\",0,IF(G120=\"N/A\",1)))))","v":"0"},64,{"$f":"IF(AND(BGCol(C120)=48,G120=\"N/A\"),1,0)","v":{"$error":"#NAME?"}}]
[null,null,null,2,"Verify the documents displayed in the Recent Documents components  can be filtered by the values in the columns displayed (e.g. Date, Document Type, Author Name, Author Role, Organisation Name).\n","Recent Documents can be filtered by the values in the columns.",null,null,"0",65,{"$f":"IF(AND(BGCol(C121)=48,G121=\"N/A\"),1,0)","v":{"$error":"#NAME?"}}]
["HRO-PG-45","View-HRO202\nDocument sections (New Documents and Recent Documents) within the Health Record Overview View SHALL allow filtering by Event Summary.","C",1,"Verify that the New Documents component allows filtering by Event Summary.\n\nExample:    Show Event Summaries Only (with Clinical Synopsis if available)\n","Documents can be filtered to show Event Summaries only.",null,null,"0",66,{"$f":"IF(AND(BGCol(C122)=48,G122=\"N/A\"),1,0)","v":{"$error":"#NAME?"}}]
[null,null,null,2,"Verify that the Recent Documents component allows filtering by Event Summary.\n\nExample:    Show Event Summaries Only (with Clinical Synopsis if available)\n","Documents can be filtered to show Event Summaries only.",null,null,"0",67,{"$f":"IF(AND(BGCol(C123)=48,G123=\"N/A\"),1,0)","v":{"$error":"#NAME?"}}]
["HRO-PG-46","View-HRO203\nFiltered Document Sections (New Documents and Recent Documents) within the Health Record Overview View SHALL indicate to the user that a filter is applied.","C",1,"Verify that when a filter is applied to the New Documents component, it is clearly indicated to the user that a particular filter has been applied.\n","Filter is clearly indicated.",null,null,"0",68,{"$f":"IF(AND(BGCol(C124)=48,G124=\"N/A\"),1,0)","v":{"$error":"#NAME?"}}]
[null,null,null,2,"Verify that when a filter is applied to the Recent Documents component, it is clearly indicated to the user that a particular filter has been applied.\n","Filter is clearly indicated.",null,null,"0",69,{"$f":"IF(AND(BGCol(C125)=48,G125=\"N/A\"),1,0)","v":{"$error":"#NAME?"}}]
["END:   Filtering"]
[]
["START:   Group By"]
["CONDITION:","These tests are applicable only if the Rendering System is capable of displaying the Recent Documents component of a Health Record Overview."]
["Group By menu"]
["HRO-PG-47","View-HRO200\n The following Group By menu SHOULD be displayed:\n\n• Document Type;\n• Organisation Name; and\n• Not grouped (Default).\n","O",1,"Verify the following 'Group By' menu is displayed for the 'Recent Documents' component:\n\n• Document Type\n• Organisation Name\n• Not grouped (Default)\n"," 'Group By' menu contains:\n• Document Type\n• Organisation Name\n• Not grouped (Default)",null,null,{"$f":"IF(G131=\"\",\"0\",IF(G131=\"Pass\",1,IF(G131=\"Fail\",0,IF(G131=\"TBD\",0,IF(G131=\"N/A\",1)))))","v":"0"},70,{"$f":"IF(AND(BGCol(C131)=48,G131=\"N/A\"),1,0)","v":{"$error":"#NAME?"}}]
["Document Type"]
[null,"Pre-requisite\n",null,null,"Select the Group by option of 'Document Type'.\n\nNOTE TO TESTER:  \nWhere multiple document types are displayed, grouping by Document Type displays a list of CDA documents returned from the PCEHR and is based on the Document Type.\n","The View is grouped by 'Document Type'."]
["HRO-PG-48","View-HRO86\nThe Group By menu SHOULD display ‘Document Type’ to signify Group By Type has been applied.","O",1,"Verify the 'Recent Document' component displays the label of 'Document Type' followed by the value of 'Document Type', when 'Document Type' grouping is applied.\n\nExample:\nGroup By:  Document Type\n","Document Type grouping is displayed. ",null,null,{"$f":"IF(G134=\"\",\"0\",IF(G134=\"Pass\",1,IF(G134=\"Fail\",0,IF(G134=\"TBD\",0,IF(G134=\"N/A\",1)))))","v":"0"},71,{"$f":"IF(AND(BGCol(C134)=48,G134=\"N/A\"),1,0)","v":{"$error":"#NAME?"}}]
["HRO-PG-49","View-HRO87\nThe View SHOULD display the label ‘Document Type’.\n","O",1,"Verify the label 'Document Type' is displayed.\n","Document Type' label displayed.",null,null,{"$f":"IF(G135=\"\",\"0\",IF(G135=\"Pass\",1,IF(G135=\"Fail\",0,IF(G135=\"TBD\",0,IF(G135=\"N/A\",1)))))","v":"0"},72,{"$f":"IF(AND(BGCol(C135)=48,G135=\"N/A\"),1,0)","v":{"$error":"#NAME?"}}]
["HRO-PG-50","View-HRO88\nUnder the label Document Type, the View SHOULD display the Document Type summary line.\n","O",1,"Verify that under the 'Document Type' label, the View displays the 'Document Type' summary line(s).\n","Summary Lines are displayed under the 'Document Type' label.",null,null,{"$f":"IF(G136=\"\",\"0\",IF(G136=\"Pass\",1,IF(G136=\"Fail\",0,IF(G136=\"TBD\",0,IF(G136=\"N/A\",1)))))","v":"0"},73,{"$f":"IF(AND(BGCol(C136)=48,G136=\"N/A\"),1,0)","v":{"$error":"#NAME?"}}]
["Organisation Name"]
[null,"Pre-requisite\n",null,null,"Select the Group by option of 'Organisation Name'.\n\nNOTE TO TESTER:  \nWhere multiple Organisation Names are displayed, grouping by Organisation Name displays a list of CDA documents returned from the PCEHR  based on the authoring organisation.\n","The View is grouped by 'Organisation Name'."]
["HRO-PG-51","View-HRO89\nThe Group By menu SHOULD display ‘Organisation Name’ to signify 'Group By Type' has been applied.\n","O",1,"Verify the 'Recent Document' component displays the label of 'Organisation Name' followed by the value of 'Organisation Name', when 'Organisation Name' grouping is applied.\n\nExample:\nGroup By:  Organisation Name\n","Organisation Name grouping is displayed. ",null,null,{"$f":"IF(G139=\"\",\"0\",IF(G139=\"Pass\",1,IF(G139=\"Fail\",0,IF(G139=\"TBD\",0,IF(G139=\"N/A\",1)))))","v":"0"},74,{"$f":"IF(AND(BGCol(C139)=48,G139=\"N/A\"),1,0)","v":{"$error":"#NAME?"}}]
["HRO-PG-52","View-HRO90\nThe View SHOULD display the label ‘Organisation Name’.\n","O",1,"Verify the label, 'Organisation Name' is displayed.","Organisation Name' label displayed.",null,null,{"$f":"IF(G140=\"\",\"0\",IF(G140=\"Pass\",1,IF(G140=\"Fail\",0,IF(G140=\"TBD\",0,IF(G140=\"N/A\",1)))))","v":"0"},75,{"$f":"IF(AND(BGCol(C140)=48,G140=\"N/A\"),1,0)","v":{"$error":"#NAME?"}}]
["HRO-PG-53","View-HRO91\nUnder the label Organisation Name, the View SHOULD display the Organisation Name summary line.\n","O",1,"Verify that under the 'Organisation Name' label, the view displays the Organisation Name (authoring Organisation) summary lines.\n"," 'Organisation Name' summary line/s are displayed.",null,null,{"$f":"IF(G141=\"\",\"0\",IF(G141=\"Pass\",1,IF(G141=\"Fail\",0,IF(G141=\"TBD\",0,IF(G141=\"N/A\",1)))))","v":"0"},76,{"$f":"IF(AND(BGCol(C141)=48,G141=\"N/A\"),1,0)","v":{"$error":"#NAME?"}}]
["Not Grouped"]
[null,"Pre-requisite\n",null,null,"Select the Group by option of 'Not grouped'.\n","The View is not grouped."]
["HRO-PG-54","View-HRO94\n The Group By menu SHOULD display ‘Not grouped’ to signify 'Group By type' has not been applied.\n\n(Please refer to HRO80 for guidance on displaying data with column headings.)\n","O",1,"Verify that when documents in the 'Recent Documents' component are not grouped in any particular order, 'Not Grouped'  displays in the 'Group By' menu to indicate no document grouping has been applied.\n\nExample:  \nGroup By: Not grouped\n"," 'Not grouped' is displayed to indicate no grouping is applied to the documents.",null,null,{"$f":"IF(G144=\"\",\"0\",IF(G144=\"Pass\",1,IF(G144=\"Fail\",0,IF(G144=\"TBD\",0,IF(G144=\"N/A\",1)))))","v":"0"},77,{"$f":"IF(AND(BGCol(C144)=48,G144=\"N/A\"),1,0)","v":{"$error":"#NAME?"}}]
["END:   Group By"]
[null," "]
["START:   View items"]
["CONDITION:","These tests are applicable only if the rendering system is capable of displaying the New Documents or Recent Documents components of a Health Record Overview."]
["Collapsed Views"]
["HRO-PG-55","View-CM25\nEach Summary Line SHOULD have a 'roll-over' state, activated by the movement of the mouse cursor over any part of the Item, with a font colour that provides colour differentiation according to accessibility standards.","O",1,"For both the 'New Documents' (i.e. documents uploaded since the last SHS) and 'Recent Documents' (i.e. documents uploaded in the last 12 months) components, perform the following.\n\na)  Move the mouse cursor over any part of a Summary Line item.\nb)  Verify that it has a 'roll-over' state with a font colour that provides colour differentiation according to accessibility standards.\n\nNOTE TO TESTER:\nAn example of an accessibility standard is the one published by W3C: http://www.w3.org/TR/WCAG20/.\n","Each Summary Line has  'roll-over' state with a font colour that provides colour differentiation according to accessibility standards.",null,null,{"$f":"IF(G150=\"\",\"0\",IF(G150=\"Pass\",1,IF(G150=\"Fail\",0,IF(G150=\"TBD\",0,IF(G150=\"N/A\",1)))))","v":"0"},78,{"$f":"IF(AND(BGCol(C150)=48,G150=\"N/A\"),1,0)","v":{"$error":"#NAME?"}}]
["HRO-PG-56","View-CM29\nThe Summary Line in the View SHOULD be displayed as collapsed rows by default.\n","O",1,"For both the 'New Documents' (i.e. documents uploaded since the last SHS) and 'Recent Documents' (i.e. documents uploaded in the last 12 months) components, verify that the Summary Lines are displayed as collapsed rows by default.\n","Summary Lines in the View are displayed as collapsed rows by default.",null,null,{"$f":"IF(G151=\"\",\"0\",IF(G151=\"Pass\",1,IF(G151=\"Fail\",0,IF(G151=\"TBD\",0,IF(G151=\"N/A\",1)))))","v":"0"},79,{"$f":"IF(AND(BGCol(C151)=48,G151=\"N/A\"),1,0)","v":{"$error":"#NAME?"}}]
["Expanded Group By menu"]
["HRO-PG-57","View-CM33\nThe View SHALL display Summary and Document lines in a way that visually separates them (e.g. with alternate shading or a line).\n","C",1,"For both the 'New Documents' (i.e. documents uploaded since the last SHS) and 'Recent Documents' (i.e. documents uploaded in the last 12 months) components, expand the collapsed rows and verify the expanded View displays the Summary and Document lines in a way that visually separates them (e.g. with alternate shading or a line).\n","The expanded View displays Summary and Document Lines in a way that visually separates them.",null,null,"0",80,{"$f":"IF(AND(BGCol(C153)=48,G153=\"N/A\"),1,0)","v":{"$error":"#NAME?"}}]
["HRO-PG-58","View-CM26\nEach Document Line SHOULD have a 'roll-over' state, activated by the movement of the mouse cursor over any part of the Item, with a font colour that provides colour differentiation according to accessibility standards.\n","O",1,"For both the 'New Documents' (i.e. documents uploaded since the last SHS) and 'Recent Documents' (i.e. documents uploaded in the last 12 months) components, perform the following.\n\na)  Move the mouse cursor over any part of the Document Line item.\nb)  Verify that it has a 'roll-over' state with a font colour that provides colour differentiation according to accessibility standards.\n\nNOTE TO TESTER:\nAn example of an accessibility standard is the one published by W3C: http://www.w3.org/TR/WCAG20/.\n","Each Document Line has 'roll-over' state with a font colour that provides colour differentiation according to accessibility standards.",null,null,"0",81,{"$f":"IF(AND(BGCol(C154)=48,G154=\"N/A\"),1,0)","v":{"$error":"#NAME?"}}]
["HRO-PG-59","View-CM31\nExpanded Summary Line displayed in the View SHOULD be collapsible.\n","O",1,"For both the 'New Documents' (i.e. documents uploaded since last SHS) and 'Recent Documents' (i.e. documents uploaded in the last 12 months) components, perform the following.\n\na)  Select an expanded Summary line in the View.\nb). Verify that it can be collapsed.\n","An expanded Summary Line displayed in the View is collapsible.",null,null,{"$f":"IF(G155=\"\",\"0\",IF(G155=\"Pass\",1,IF(G155=\"Fail\",0,IF(G155=\"TBD\",0,IF(G155=\"N/A\",1)))))","v":"0"},82,{"$f":"IF(AND(BGCol(C155)=48,G155=\"N/A\"),1,0)","v":{"$error":"#NAME?"}}]
["HRO-PG-60","View-HRO107\nCollapsed Organisation Name Summary Line displayed in the View SHOULD be expandable.\n","O",1,"For both the 'New Documents' (i.e. documents uploaded since last SHS) and 'Recent Documents' (i.e. documents uploaded in the last 12 months) components, perform the following.\n\na)  Group the display of  documents by 'Organisation' name.\nb)  Verify the collapsed 'Organisation Name' Summary Line displayed in the view is expandable.\n","The 'Organisation Name' Summary Line  is expandable.",null,null,"0",83,{"$f":"IF(AND(BGCol(C156)=48,G156=\"N/A\"),1,0)","v":{"$error":"#NAME?"}}]
["HRO-PG-61","View-HRO92\nThe expanded Document Line SHOULD display the following data items:\n\n• Date;\n• Document Type;\n• Author Name;\n• Author Role; and\n• Organisation Name.\n","O",1,"For both the 'New Documents' (i.e. documents uploaded since last SHS) and 'Recent Documents' (i.e. documents uploaded in the last 12 months) components, perform the following.\n\nVerify an expanded Document Line displays the following data items:\n\n• Date\n• Document Type\n• Author Name \n• Author Role\n• Organisation Name \n","The Document Line contains the correct data items.",null,null,"0",84,{"$f":"IF(AND(BGCol(C157)=48,G157=\"N/A\"),1,0)","v":{"$error":"#NAME?"}}]
["HRO-PG-62","View-HRO95\nWhen Group by Menu is selected, the expanded Document Lines SHOULD NOT display the following default labels:\n\n• Date;\n• Document Type;\n• Author Name;\n• Author Role; or\n• Organisation Name.\n","O",1,"NOTE TO TESTER: \nThe Group By function only applies to Recent Documents.\n\nVerify when a 'Group by' Menu is selected, the expanded Document Lines DO NOT display the following default labels:\n\n• Date\n• Document Type\n• Author Name\n• Author Role\n• Organisation Name.\n","Default labels are not displayed.",null,null,"0",85,{"$f":"IF(AND(BGCol(C158)=48,G158=\"N/A\"),1,0)","v":{"$error":"#NAME?"}}]
["Clinical synopsis"]
["HRO-PG-63","View-HRO302\nDocument Lines that contain a Clinical Synopsis SHALL provide a clear indicator that a Clinical Synopsis is available.","C",1,"Test Data: Patient A - has an Event Summary that contains Clinical Synopsis information. \n\na)  Navigate to the 'New Documents' (i.e. documents uploaded since last SHS) component.\nb)  Group By Event Summary, so that only these document types display.\nc)  Verify that each Event Summary Document Line that contains a Clinical Synopsis, is clearly indicated by the display of a 'Clinical Synopsis indicator'.\n\nNOTE TO TESTER: \nExamples of possible indicators include: \n   a.  A collapse sign (e.g. +, -) ;\n   b. Text (e.g. 'Clinical Synopsis is Available') ;\n   c. A solid arrow (e.g. >) . \n   d. Providing a 'Clinical Synopsis' filter box that when selected, results in the display of only those Event Summaries that contain Clinical Synopsis information.\n","Clinical Synopsis indicator is clearly displayed.",null,null,{"$f":"IF(G160=\"\",\"0\",IF(G160=\"Pass\",1,IF(G160=\"Fail\",0,IF(G160=\"TBD\",0,IF(G160=\"N/A\",1)))))","v":"0"},86,{"$f":"IF(AND(BGCol(C160)=48,G160=\"N/A\"),1,0)","v":{"$error":"#NAME?"}}]
[null,null,null,2,"Select a Document Line with a 'Clinical Synopsis indicator' and verify that the Clinical Synopsis displays correctly.\n  ","Clinical Synopsis is displayed.",null,null,{"$f":"IF(G161=\"\",\"0\",IF(G161=\"Pass\",1,IF(G161=\"Fail\",0,IF(G161=\"TBD\",0,IF(G161=\"N/A\",1)))))","v":"0"},87,{"$f":"IF(AND(BGCol(C161)=48,G161=\"N/A\"),1,0)","v":{"$error":"#NAME?"}}]
["HRO-PG-64","View-HRO07 \nA Document Line containing a Clinical Synopsis Description SHOULD display a control to open and close the Clinical Synopsis Description.\n","O",1,"Verify a Document Line containing a Clinical Synopsis Description displays a control to open and close the Clinical Synopsis Description.\n","Open and close control is displayed.",null,null,{"$f":"IF(G162=\"\",\"0\",IF(G162=\"Pass\",1,IF(G162=\"Fail\",0,IF(G162=\"TBD\",0,IF(G162=\"N/A\",1)))))","v":"0"},88,{"$f":"IF(AND(BGCol(C162)=48,G162=\"N/A\"),1,0)","v":{"$error":"#NAME?"}}]
["HRO-PG-65","View-HRO96 \nThe Clinical Synopsis Description SHOULD be limited to 150 characters, followed by an ellipsis (...) and a clickable “More Details\" text.\n\nExample: \n... [More Details]","O",1,"Test Data: Patient A - has an Event Summary Clinical Synopsis with more than 150 characters.\n\nVerify the Clinical Synopsis Description is limited to 150 characters, followed by an ellipsis (...) and a clickable “More Details\" text.\n\nExample:\n... [More Details]\n"," '...More Details' displays for a description greater than 150 characters.",null,null,{"$f":"IF(G163=\"\",\"0\",IF(G163=\"Pass\",1,IF(G163=\"Fail\",0,IF(G163=\"TBD\",0,IF(G163=\"N/A\",1)))))","v":"0"},89,{"$f":"IF(AND(BGCol(C163)=48,G163=\"N/A\"),1,0)","v":{"$error":"#NAME?"}}]
["HRO-PG-66","View-HRO97 \nActivating the “More Details” text SHOULD render the entire CDA Document in accordance with CDA Rendering Guide.\n\nKnown issue: the requirement incorrectly refers to the “CDA Rendering Guide” it should say \"CDA Rendering Specification.\"\n","O",1,"Verify that activating the “More Details” text renders the entire CDA document according to the requirements for rendering that type of clinical document.\ni.e. The tests are encapsulated in the Conformance Test Specification for CDA Rendering.\n\nWhen the success rate of the CDAR tests is 100%, then this test case can be passed.\n","A linked clinical document is rendered according to the requirements for rendering a CDA document.\n\ni.e. The success rate of the CDAR tests is 100%",null,null,{"$f":"IF(G164=\"\",\"0\",IF(G164=\"Pass\",1,IF(G164=\"Fail\",0,IF(G164=\"TBD\",0,IF(G164=\"N/A\",1)))))","v":"0"},90,{"$f":"IF(AND(BGCol(C164)=48,G164=\"N/A\"),1,0)","v":{"$error":"#NAME?"}}]
["END:   View items"]
["END:  INFORMATION IS AVAILABLE",null,null,null," "]
[]
["START:  NO INFORMATION IS AVAILABLE",null,null,null," "]
["START:   Advance Care Directive Custodian Record indicator"]
[null,"Pre-requisite",null,null,"Request a Health Record Overview from the PCEHR for Patient D.\n","The requested View is displayed."]
["HRO-PG-67","View-HRO12\nThe View SHALL display an indication that Advance Care Directive Custodian details are available.","C",1,"Patient D:  No 'Advance Care Directive Custodian Record'.\n\n1. Verify that there is no indication of an Advance Care Directive Custodian Record being available. \n","Advance Care Directive Custodian details are NOT indicated as available.",null,null,{"$f":"IF(G171=\"\",\"0\",IF(G171=\"Pass\",1,IF(G171=\"Fail\",0,IF(G171=\"TBD\",0,IF(G171=\"N/A\",1)))))","v":"0"},91,{"$f":"IF(AND(BGCol(C171)=48,G171=\"N/A\"),1,0)","v":{"$error":"#NAME?"}}]
["END:   Advance Care Directive Custodian Record indicator"]
[]
["START:   New Documents  component"]
["CONDITION:","These tests are applicable only if the rendering system is capable of displaying the New Documents component of a Health Record Overview."]
["HRO-PG-68","View-HRO108\nA New Documents component that has no documents listed SHALL display the exclusion statement \"There are no documents available on the PCEHR since the last Shared Health Summary.\"\n\n","C",1,"Patient D:  No 'New Documents'.\n\nVerify the 'New Documents' component with no information (<informationAvailable value=\"false\"), displays the exclusion statement:\n\"There are no documents available on the PCEHR since the last Shared Health Summary.\"\n","Exclusion Statement is displayed.",null,null,{"$f":"IF(G176=\"\",\"0\",IF(G176=\"Pass\",1,IF(G176=\"Fail\",0,IF(G176=\"TBD\",0,IF(G176=\"N/A\",1)))))","v":"0"},92,{"$f":"IF(AND(BGCol(C176)=48,G176=\"N/A\"),1,0)","v":{"$error":"#NAME?"}}]
["END:   New Documents  component"]
[]
["START:   Recent Documents component"]
["CONDITION:","These tests are applicable only if the rendering system is capable of displaying the Recent Documents component of a Health Record Overview."]
["HRO-PG-69","View-HRO109\nA Recent Documents component that has no documents listed SHALL display the exclusion statement \"There are no documents available on the PCEHR in the last 12 months.\"","C",1,"No 'Recent Documents'.\nTest Data: Patient D - has no clinical documents.\n\nVerify the 'Recent Documents' component with no information (<informationAvailable value=\"false\") displays the exclusion statement:\n\"There are no new Documents available on the PCEHR in the last 12 months.\".\n","Exclusion statement displays.",null,null,{"$f":"IF(G181=\"\",\"0\",IF(G181=\"Pass\",1,IF(G181=\"Fail\",0,IF(G181=\"TBD\",0,IF(G181=\"N/A\",1)))))","v":"0"},93,{"$f":"IF(AND(BGCol(C181)=48,G181=\"N/A\"),1,0)","v":{"$error":"#NAME?"}}]
["END:   Recent Documents component"]
[]
["START:  Other Links component"]
["CONDITION:","These tests are applicable only if the rendering system is capable of displaying the Other Links component of a Health Record Overview. "]
["HRO-PG-70","View-HRO10\nIf the CIS renders a link for a View that contains no information, then the CIS SHALL indicate that the View contains no information.\n\nRationale\nThe user should be informed that a View contains no information prior to activating the link.\n","C",1,"Test data: Patient D - Other Links.\n\nFor each link, verify the software indicates that the View contains no information \n(i.e. without needing to activate the link).\n\n","No documents present behind the link and CIS indicates that the View contains no information.",null,null,{"$f":"IF(G186=\"\",\"0\",IF(G186=\"Pass\",1,IF(G186=\"Fail\",0,IF(G186=\"TBD\",0,IF(G186=\"N/A\",1)))))","v":"0"},94,{"$f":"IF(AND(BGCol(C186)=48,G186=\"N/A\"),1,0)","v":{"$error":"#NAME?"}}]
["END:  Other Links component"]
[]
["START:   Shared Health Summary component"]
["CONDITION:","These tests are applicable only if the rendering system is capable of displaying the Shared Health Summary component of a Health Record Overview."]
[null,"Pre-requisite",null,null,"Request a Health Record Overview from the PCEHR for Patient B.\n","The requested View is displayed."]
["HRO-PG-71","View-HRO06\nA Problem/Diagnosis Component which returns no documents ( <informationAvailable value=\"false\" flavor=\"problem\" /> ) SHALL display the appropriate exclusion statement:\n\n“No known problem diagnoses information available”\nor\n“No supplied problem diagnoses available” \ndepending on the <code> or <displayName> value.\n\n","C",1,"No 'Problem/Diagnosis' in the SHS\nTest Data: Patient B\n\nIf the 'Problem/Diagnosis' component contains:\n<informationAvailable value=\"false\" flavor=\"problem\" />  then:\n\na)  Verify that if the Global Statement <code> = 01, the Exclusion Statement displayed is: \n\"No known problem diagnoses information available” \nor\nb)  Verify that if the Global Statement <code> = 03, the Exclusion Statement displayed is: \n\"No supplied problem diagnoses available” \n","The correct Exclusion Statement text is displayed.",null,null,{"$f":"IF(G192=\"\",\"0\",IF(G192=\"Pass\",1,IF(G192=\"Fail\",0,IF(G192=\"TBD\",0,IF(G192=\"N/A\",1)))))","v":"0"},95,{"$f":"IF(AND(BGCol(C192)=48,G192=\"N/A\"),1,0)","v":{"$error":"#NAME?"}}]
["HRO-PG-72","View-HRO17\nAn Allergies and Adverse Reactions Component which returns no information (<informationAvailable value=\"false\" /> ) SHALL display the appropriate exclusion statement:\n\n“No known allergies or adverse reaction information available”\nor\n“No supplied allergies or adverse reaction information available”\ndepending on the <code> or <displayName> value\n","C",1,"No 'Allergies and Adverse Reactions' in the SHS \nTest Data: Patient B\n\nIf the 'Allergies and Adverse Reactions' component contains:\n<informationAvailable value=\"false\" />  then:\n\na)  Verify that if the Global Statement <code> = 01, the Exclusion Statement displayed is: \n\"No known allergies or adverse reaction information available” \nor\nb)  Verify that if the Global Statement <code> = 03, the Exclusion Statement displayed is: \n\"No supplied allergies or adverse reaction information available” \n","The correct Exclusion Statement text is displayed.",null,null,{"$f":"IF(G193=\"\",\"0\",IF(G193=\"Pass\",1,IF(G193=\"Fail\",0,IF(G193=\"TBD\",0,IF(G193=\"N/A\",1)))))","v":"0"},96,{"$f":"IF(AND(BGCol(C193)=48,G193=\"N/A\"),1,0)","v":{"$error":"#NAME?"}}]
[null,"Pre-requisite",null,null,"Request a Health Record Overview from the PCEHR for Patient C.\n","The requested View is displayed."]
["HRO-PG-73","View-HRO09\nA Procedure Component which returns no information (<informationAvailable value=\"false\" flavor=\"procedure\" /> ) SHALL display the appropriate exclusion statement:\n\n“No known procedure information available”\nor\n“No supplied procedure information available”\ndepending on the <code> or <displayName> value\n","C",1,"No 'Procedures' in the SHS \nTest Data: Patient C\n\nIf the 'Procedure' component contains:\n<informationAvailable value=\"false\" flavor=\"procedure\" /> then:\n\na)  Verify that if the Global Statement <code> = 01, the Exclusion Statement displayed is: \n\"No known procedure information available” \nor\nb)  Verify that if the Global Statement <code> = 03, the Exclusion Statement displayed is: \n\"No supplied procedure information available” \n","The correct Exclusion Statement text is displayed.",null,null,{"$f":"IF(G195=\"\",\"0\",IF(G195=\"Pass\",1,IF(G195=\"Fail\",0,IF(G195=\"TBD\",0,IF(G195=\"N/A\",1)))))","v":"0"},97,{"$f":"IF(AND(BGCol(C195)=48,G195=\"N/A\"),1,0)","v":{"$error":"#NAME?"}}]
["HRO-PG-74","View-HRO11\nA Medicines Component which returns no information (<informationAvailable value=\"false\" /> ) SHALL display the appropriate exclusion statement:\n\n“No known medication information available”\nor\n“No supplied medication information available”\ndepending on the <code> or <displayName> value\n","C",1,"No 'Medicines' in the SHS\nTest Data: Patient C\n\nIf the 'Medicines' component contains: \n<informationAvailable value=\"false\" /> then:\n\na)  Verify that if the Global Statement <code> = 01, the Exclusion Statement displayed is: \n\"No known medication information available” \nor\nb)  Verify that if the Global Statement <code> = 03, the Exclusion Statement displayed is: \n\"No supplied medication information available” \n","The correct Exclusion Statement text is displayed.",null,null,{"$f":"IF(G196=\"\",\"0\",IF(G196=\"Pass\",1,IF(G196=\"Fail\",0,IF(G196=\"TBD\",0,IF(G196=\"N/A\",1)))))","v":"0"},98,{"$f":"IF(AND(BGCol(C196)=48,G196=\"N/A\"),1,0)","v":{"$error":"#NAME?"}}]
["HRO-PG-75","View-HRO24\n An Immunisations Component which returns no information (<informationAvailable value=\"false\" /> ) SHALL display the appropriate exclusion statement:\n\n“No known immunisation information available”\nor\n“No supplied immunisation information available”\ndepending on the <code> or <displayName> value\n","C",1,"No 'Immunisations' in the SHS \nTest Data: Patient C\n\nIf the 'Immunisations' component contains:\n <informationAvailable value=\"false\" /> then:\n\na)  Verify that if the Global Statement <code> = 01, the Exclusion Statement displayed is: \n\"No known immunisation information available” \nor\nb)  Verify that if the Global Statement <code> = 03, the Exclusion Statement displayed is: \n\"No supplied immunisation information available” \n","The correct Exclusion Statement text is displayed.",null,null,{"$f":"IF(G197=\"\",\"0\",IF(G197=\"Pass\",1,IF(G197=\"Fail\",0,IF(G197=\"TBD\",0,IF(G197=\"N/A\",1)))))","v":"0"},99,{"$f":"IF(AND(BGCol(C197)=48,G197=\"N/A\"),1,0)","v":{"$error":"#NAME?"}}]
["END:   Shared Health Summary component"]
["END:  NO INFORMATION IS AVAILABLE"]
[null,null,null,null,null,null,"PASS","# of steps N/A or Pass",{"$f":"SUM(I8:I197)","v":0}]
[null,null,null,null,null,null,"FAIL","Total # of steps",99]
[null,null,null,null,null,null,"N/A",null,{"$f":"(I200/I201)","v":0}]
[null,null,null,null,null,null,"TBD"]

{"sheet":"4. TD","index":10,"n_rows":23,"n_cols":2,"rows_kept":23,"cut":false,"hidden":false,"merged":[[1,0,1,1]]}
["Test Set:","Health Record Overview - REQUIRED TEST DATA"]
["IF NEHTA TEST DATA CANNOT BE USED TO TEST,  PLEASE CREATE YOUR OWN WITH THE FOLLOWING CONDITIONS:"]
["PATIENT","TEST DATA TO BE CREATED"]
["PATIENT A","Has a number of documents uploaded to the PCEHR which include:\n\n01.  At least one Shared Health Summary (SHS) with:\n\n   a)  Document Date (<Clinical Document/effectiveTime>) that is earlier than most of the created documents.  \nThis will allow those documents to be displayed as 'New Documents' (later than patient's most recent SHS);\n\n   b)  No Exclusion Statements i.e. Contains data in all sections:\nCurrent & Past Medical History (Procedures and Problem/Diagnosis), Medicines, Allergies & Adverse Reactions, and Immunisations.\n\n   c) A 'Procedure Comment' and 'Problem/Diagnosis Comment' with sufficient length to demonstrate line wrapping.\n"]
[null,"02.  One 'Advanced Care Directive Custodian Record' with a Document Date later than the SHS.\n"]
[null,"03.  At least 3 each of, Event Summaries, Discharge Summaries, e-Referrals, Specialist Letters, Prescription & Dispense Records with:\n\n  a)    More than half with a Document Date (<Clinical Document/effectiveTime>) that differs slightly with each other but is later than the SHS Document Date  (HRO - New Documents);\n\n  b)  Some with a Document Date within the last 12 months (HRO - Recent Documents);\n\n  c)  At least one of the following  with a Document Date within the last 12 months, contains a Clinical Synopsis - Event Summary.\n\n  d)  At least two Event Summaries with a Document Date within the last 12 months and containing the following:\n         - Clinical Synopsis Description with sufficient length to demonstrate wrapping.\n         - Clinical Synopsis Description with 150 characters to demonstrate HRO - 'More details….' display.\n\n  e)  Two that have a Document Date that is earlier than the last 12 months (HRO - not displayed);  \n"]
[null,"04.  For every data element that will be returned in the HRO View response that is a coded data type, provide coded examples where:\n\n a) the code and displayName is provided without an originalText, and\n\n b) the originalText is provided without the code and displayName,  and \n\n c) the code, displayName and originalText are provided, and the value of the originalText differs from the value of the displayName.\n"]
[null,"05.  Other documents that are not uploaded to the PCEHR but instead are created in the PCEHR system directly:\n\n  a) Personal Health Summary, Pathology Report View, Diagnostic Imaging View, Health Check Assessment Schedule (to demonstrate HRO - Other Links).\n"]
[null,"06. Medicare documents that are not uploaded to the PCEHR but instead are created by Medicare software:\n\n  a) Medicare/DVA Benefits Report,  Australian Organ Donor Record, Australian Childhood Immunisation Record, Pharmaceutical Benefits Report.\n"]
[]
["PATIENT B","A Shared Health Summary containing: \n\n01.  An Exclusion Statement for Medical History > Problem Diagnosis:  code  = 01  <displayName> is \"No known problem diagnoses information available”.\n"]
[null,"02.  An Exclusion Statement for Allergies and Adverse Reactions:  code = 03 <displayName> is “No supplied allergies or adverse reaction information available”.\nFor more information about Exclusion Statement Codes and Code System, refer to the SHS Implementation Guide.\n"]
[null,"03.  Data for:\n   - Medicines;\n   - Medical History > Procedures;\n   - Immunisations.\n"]
[null,"04.  No 'Advance Care Directive Custodian Record'.\n"]
[null,"05.  No documents with a Document Date more recent than the SHS (HRO - no New Documents).\n"]
[null,"06.  One Medicare document.\n"]
[]
["PATIENT C","A SHS containing:\n01.  An Exclusion Statement for Medical History > Procedures:  code  = 03  <displayName> is “No supplied procedure information available”.\n"]
[null,"02.  An Exclusion Statement for Immunisations:  code = 03 <displayName> is \"No supplied immunisation information available”.\n"]
[null,"03.  An Exclusion Statement for Medicines:  code = 01 <displayName> is \"No known medication information available”.\nFor more information about Exclusion Statement Codes and Code System, refer to the SHS Implementation Guide.\n"]
[null,"04.  Data for:\n  - Medical History > Problem/Diagnosis;\n  - Adverse Reactions.\n"]
[]
["PATIENT D","01. Has no clinical documents uploaded to the PCEHR.\n"]

{"sheet":"5. MOV","index":11,"n_rows":24,"n_cols":11,"rows_kept":24,"cut":false,"hidden":false,"merged":[[1,3,3,5],[0,3,0,5]]}
["Test Set:","Medicare Overview",null,"TEST DATA INFORMATION",null,null,"Software name: version:\n","Please complete"]
["Derivation:","1. NEHTA-1797:2014 Medicare Overview - PCEHR Conformance Profile v1.2\n2. NEHTA-1299:2012 PCEHR Connecting Systems - Conformance Test Specification v1.6\n3. NEHTA-1850:2015 Clinical Documents - Common Conformance Profile v1.6\n4. NEHTA-1330:2012 Clinical Documents - Conformance Test Specification for CDA Rendering v1.3\n\n",null,"To apply these test cases the tester needs to obtain the View CDA document for MOV. \nIf the tester does not have this ability, a copy may be requested by contacting the NEHTA help desk.\n\nTEST DATA FOR THIS TEST SET IS CREATED BY THE DEPARTMENT OF HUMAN SERVICES - MEDICARE.\n\nTO ACCESS NEHTA TEST DATA, USE:\n● Patient A - Shaun LEE  IHI: 8003608166690511  Medicare Card: 2950355981  IRN: 1  Sex: Male  DOB: 15/03/1979  Address: 281 Dawson Street, Pyrmont, NSW, 2009   \n   ● ACIR (Australian Childhood Immunisation Register)\n   ● PBR (Pharmaceutical Benefits Report)\n   ● MBR (Medicare/DVA Benefits Report)\n   \n● Patient B - Tony MIFSUD  IHI: 8003608000024067  Medicare Card: 2950356041  IRN: 1  Sex: Male  DOB: 20/03/1969  Address: 59 Mill Bridge Avenue, WARRADERRY, NSW, 2810\n   ● AODR (Australian Organ Donor Register) \n   ",null,null,"Software supplier:","Please complete"]
["Test Set Objective:","To verify the correct downloading and rendering of Medicare Overviews from the PCEHR system.\n\n\n\n",null,null,null,null,"Tester:","Please complete"]
["Pre-requisite:","If NEHTA test data is being used, then there are no pre-requisites.\nIf NEHTA test data is not able to be used, then request the National Infrastructure Operator to create the required test data.\n\n",null,null,null,null,"Date:","Please complete"]
[]
["THIS HEADER CAN BE COLLAPSED BY CLICKING THE '-' SYMBOL ON THE LEFT."]
["TEST CASE ID","CONFORMANCE REQUIREMENT","PRIORITY\n(Mandatory, Optional, Conditional)","STEP NO.","TEST STEP","EXPECTED RESULT","TEST RESULT","TESTER COMMENTS","CALC.",null,"MANDATORY AND N/A"]
["Conformance requirements for consumers"]
["START: Links"]
[null,"Pre-requisite",null,null,"Request a Medicare Overview from the PCEHR for Patient A.\n","The requested View is displayed."]
["MOV-CP-3421","3.4.2.1\nPresentation of links \n\nIf the software retrieves a Medicare Overview containing narratives with clinical document links then the software SHALL either present the clinical document link text as a selectable link, or display the link text as plain text (that is, without the appearance of a selectable link).\n","C",null,"NOTE TO TESTER: The PCEHR View Service Technical Service Specification v1.6.1 states that 2 versions of the Medicare Overview are possible:\nVersion 1.0 EXCLUDES document links in the narrative\nVersion 1.1 INCLUDES document links in the narrative\n\nCONDITION:  IF the software retrieves a Medicare Overview containing narratives with clinical document links THEN:\n","See below rows.",null,"This is the condition for the test."]
[null,null,null,1,"Verify the software presents the clinical document link text as either:\na)  a selectable link by 'clicking' or 'hovering' over the link, or\nb)  as plain text (that is, without the appearance and behaviour of a selectable link).\n","a)  The link is displayed as selectable, or\nb)  The link is displayed as plain text and is not selectable.",null,null,{"$f":"IF(G12=\"\",\"0\",IF(G12=\"Pass\",1,IF(G12=\"Fail\",0,IF(G12=\"TBD\",0,IF(G12=\"N/A\",1)))))","v":"0"},1,{"$f":"IF(AND(BGCol(C12)=48,G12=\"N/A\"),1,0)","v":{"$error":"#NAME?"}}]
["MOV-CP-3422","3.4.2.2\nSelecting a link to a clinical document\n\nIf the software allows a user to select a link to a clinical document, the clinical document SHALL be retrieved from the repository, rendered and displayed according to the requirements for downloading and displaying that type of clinical document.\n","C",null,"NOTE TO TESTER: The PCEHR View Service Technical Service Specification v1.6.1 states that 2 versions of the Medicare Overview are possible:\nVersion 1.0 EXCLUDES document links in the narrative\nVersion 1.1 INCLUDES document links in the narrative\n\nCONDITION:  IF the software retrieves a Medicare Overview containing narratives with clinical document links AND allows the user to select a link THEN:\n","See below rows.",null,"This is the condition for the test."]
[null,null,null,1,"Verify that the clinical document is downloaded according to the requirements for downloading that type of clinical document.\n\nThe tests for downloading are in:\nNEHTA-1299:2012 PCEHR Connecting Systems - Conformance Test Specification v1.6\nUC.CIS.204 Download a Clinical Document and the mandatory ones are:\n019041 - Saving or Printing and \n018634 - CDA Package Hash Value.\n","A CDA is downloaded according to the requirements for downloading a CDA.\n\ni.e. Tests 019041 and 018634 have passed.  ",null,null,"0",2,{"$f":"IF(AND(BGCol(C14)=48,G14=\"N/A\"),1,0)","v":{"$error":"#NAME?"}}]
[null,null,null,2,"Verify that the linked clinical document is rendered according to the requirements for rendering that type of clinical document.\ni.e. The tests are encapsulated in the Conformance Test Specification for CDA Rendering.\n\nWhen the success rate of the CDAR tests is 100%, then this test case can be passed.\n","A linked clinical document is rendered according to the requirements for rendering a CDA.\n\ni.e. The success rate of the CDAR tests is 100%",null,null,"0",3,{"$f":"IF(AND(BGCol(C15)=48,G15=\"N/A\"),1,0)","v":{"$error":"#NAME?"}}]
["END: Links"]
[]
["START: Other requirements"]
["MOV-CP-343","3.4.3\nOther requirements \n\nConsumers of Medicare Overview documents SHALL conform to the requirements for consumers of clinical documents listed in the Common Conformance Profile for Clinical Documents. \n","M",1,"Verify that the Medicare Overview clinical document is rendered according to the requirements listed in the NEHTA-1850:2015 Clinical Documents - Common Conformance Profile v1.6. \ni.e. The tests are encapsulated in the Conformance Test Specification for CDA Rendering.\n\nWhen the success rate of the CDAR tests is 100%, then this test case can be passed.","The Medicare Overview clinical document is rendered according to the requirements for rendering a CDA.\n\ni.e. The success rate of the CDAR tests is 100%",null,null,{"$f":"IF(G19=\"\",\"0\",IF(G19=\"Pass\",1,IF(G19=\"Fail\",0,IF(G19=\"TBD\",0,IF(G19=\"N/A\",1)))))","v":"0"},4,{"$f":"IF(AND(BGCol(C19)=48,G19=\"N/A\"),1,0)","v":{"$error":"#NAME?"}}]
["END: Other requirements"]
[null,null,null,null,null,null,"PASS","# of steps N/A or Pass",{"$f":"SUM(I8:I20)","v":0}]
[null,null,null,null,null,null,"FAIL","Total # of steps\n",4]
[null,null,null,null,null,null,"N/A",null,{"$f":"(I21/I22)","v":0}]
[null,null,null,null,null,null,"TBD"]

{"sheet":"6. HCSV","index":12,"n_rows":24,"n_cols":11,"rows_kept":24,"cut":false,"hidden":false,"merged":[[16,0,18,0],[16,1,18,1],[1,3,3,5],[0,3,0,5],[14,0,15,0],[14,1,15,1]]}
["Test Set:","Health Check Schedule View",null,"TEST DATA INFORMATION",null,null,"Software name: version:\n","Please complete"]
["Derivation:","1. NEHTA-1977:2014 Health Check Schedule View - PCEHR Conformance Profile v1.0\n2. NEHTA-1299:2012 PCEHR Connecting Systems - Conformance Test Specification v1.6\n3. NEHTA-1850:2015 Clinical Documents - Common Conformance Profile v1.6\n4. NEHTA-1330:2012 Clinical Documents - Conformance Test Specification for CDA Rendering v1.3\n",null,"To apply these test cases the tester needs to obtain the View CDA document for HCSV. \nIf the tester does not have this ability, a copy may be requested by contacting the NEHTA help desk.\n\nTO ACCESS NEHTA TEST DATA, USE:\nPatient A - Shaun LEE  IHI: 8003608166690511  Medicare Card: 2950355981  IRN: 1  Sex: Male  DOB: 15/03/1979  Address: 281 Dawson Street, Pyrmont, NSW, 2009\n\n    ● Child Parent Questionnaire (created using the PCEHR consumer portal)\n    ● Health Check Assessment (created by clinical information systems).\n\nIF NEHTA TEST DATA CANNOT BE USED TO TEST, PLEASE CREATE YOUR OWN.\n",null,null,"Software supplier:","Please complete"]
["Test Set Objective:","To verify the correct downloading and rendering of Health Check Schedule Views from the PCEHR system.  \n\n",null,null,null,null,"Tester:","Please complete"]
["Pre-requisite:","If NEHTA test data is being used, then there are no pre-requisites.\nIf NEHTA test data is not able to be used, then create test data that meets the stated requirements.\n",null,null,null,null,"Date:","Please complete"]
[]
["THIS HEADER CAN BE COLLAPSED BY CLICKING THE '-' SYMBOL ON THE LEFT."]
["TEST CASE ID","CONFORMANCE REQUIREMENT","PRIORITY\n(Mandatory, Optional, Conditional)","STEP NO.","TEST STEP","EXPECTED RESULT","TEST RESULT","TESTER COMMENTS","CALC.",null,"MANDATORY AND N/A"]
["Conformance requirements for consumers"]
["START: Rendering requirements"]
["HCSV-CP-2.2.1","2.2.1\nRendering requirements \n\nAn Observation View is a CDA document and the rendering requirements for CDA documents (also called clinical documents) apply to software that renders an Observation View.\n\n","M",1,"The tests for the requirements listed in the Common Conformance Profile for Clinical Documents are encapsulated in the Conformance Test Specification for CDA Rendering.\n\nWhen the success rate of the CDAR tests is 100%, then this test case can be passed.","The success rate of the CDAR tests is 100%",null,null,{"$f":"IF(G10=\"\",\"0\",IF(G10=\"Pass\",1,IF(G10=\"Fail\",0,IF(G10=\"TBD\",0,IF(G10=\"N/A\",1)))))","v":"0"},1,{"$f":"IF(AND(BGCol(C10)=48,G10=\"N/A\"),1,0)","v":{"$error":"#NAME?"}}]
["END: Rendering requirements"]
[]
["START: Links"]
[null,"Pre-requisite",null,null,"Request a Health Check Schedule View from the PCEHR for Patient A.\n","The requested View is displayed."]
["HCSV-CP-024699","024699\nPresentation of links\n\nWhen the software retrieves a Health Check Schedule View containing narratives with clinical document links then the software SHALL either present the clinical document link text as a selectable link, or display the link text as plain text (that is, without the appearance of a selectable link).\n","M",1,"Verify the software presents the clinical document link text as either:\na)  a selectable link by 'clicking' or 'hovering' over the link, or\nb)  as plain text (that is, without the appearance and behaviour of a selectable link).\n\n","a)  The link is displayed as selectable, or\nb)  The link is displayed as plain text and is not selectable.",null,null,{"$f":"IF(G15=\"\",\"0\",IF(G15=\"Pass\",1,IF(G15=\"Fail\",0,IF(G15=\"TBD\",0,IF(G15=\"N/A\",1)))))","v":"0"},2,{"$f":"IF(AND(BGCol(C15)=48,G15=\"N/A\"),1,0)","v":{"$error":"#NAME?"}}]
[null,null,null,2,"Verify that the text displayed in Step 1 is derived from the related element path within the Health Check Schedule View clinical document:\n\nClinicalDocument/structuredBody/component/section(NSW Questions for parents - 18 month check)/text/linkHTML\n\nNOTE TO TESTER:\nThe Health Check Schedule View clinical document can be downloaded from PCEHR for New South Wales jurisdiction by using the relevant authoring system.\n","The text displayed is derived from the relevant path within the clinical document.",null,null,{"$f":"IF(G16=\"\",\"0\",IF(G16=\"Pass\",1,IF(G16=\"Fail\",0,IF(G16=\"TBD\",0,IF(G16=\"N/A\",1)))))","v":"0"},3,{"$f":"IF(AND(BGCol(C16)=48,G16=\"N/A\"),1,0)","v":{"$error":"#NAME?"}}]
["HCSV-CP-024700","024700\nSelecting a link to a clinical document\n\nIf the software allows a user to select a link to a clinical document, the clinical document SHALL be retrieved from the repository, rendered and displayed according to the requirements for downloading and displaying that type of clinical document.\n","C",null,"CONDITION:  IF the software retrieves a Health Check Schedule View containing narratives with clinical document links AND allows the user to select a link THEN:\n","See below rows.",null,"This is the condition for the test."]
[null,null,null,1,"Verify that the clinical document is downloaded according to the requirements for downloading that type of clinical document.\n\nThe tests for downloading are in the:\nNEHTA-1299:2012 PCEHR Connecting Systems - Conformance Test Specification v1.6\nUC.CIS.204 Download a Clinical Document and the mandatory ones are:\n019041 - Saving or Printing and \n018634 - CDA Package Hash Value.\n","A CDA is downloaded according to the requirements for downloading a CDA.\n\ni.e. Tests 019041 and 018634 have passed.  ",null," ",{"$f":"IF(G18=\"\",\"0\",IF(G18=\"Pass\",1,IF(G18=\"Fail\",0,IF(G18=\"TBD\",0,IF(G18=\"N/A\",1)))))","v":"0"},4,{"$f":"IF(AND(BGCol(C18)=48,G18=\"N/A\"),1,0)","v":{"$error":"#NAME?"}}]
[null,null,null,2,"Verify that the clinical document (e.g. a Child Parent Questionnaire) is rendered according to the requirements for rendering that type of clinical document.\n\nThe tests can be found in the Conformance Test Specification for CDA Rendering.\n  \nAll Mandatory and relevant Conditional CDA Rendering tests need to be passed in order for this test to be passed.\n","A CDA is rendered according to the requirements for rendering a CDA.\n\ni.e. All Mandatory and relevant Conditional CDA Rendering tests are passed.\n",null," ",{"$f":"IF(G19=\"\",\"0\",IF(G19=\"Pass\",1,IF(G19=\"Fail\",0,IF(G19=\"TBD\",0,IF(G19=\"N/A\",1)))))","v":"0"},5,{"$f":"IF(AND(BGCol(C19)=48,G19=\"N/A\"),1,0)","v":{"$error":"#NAME?"}}]
["END: Links"]
[null,null,null,null,null,null,"PASS","# of steps N/A or Pass",{"$f":"SUM(I8:I20)","v":0}]
[null,null,null,null,null,null,"FAIL","Total # of steps\n",5]
[null,null,null,null,null,null,"N/A",null,{"$f":"I21/I22","v":0}]
[null,null,null,null,null,null,"TBD"]

{"sheet":"7. OV","index":13,"n_rows":24,"n_cols":11,"rows_kept":24,"cut":false,"hidden":false,"merged":[[14,0,15,0],[14,1,15,1],[1,3,3,5],[0,3,0,5]]}
["Test Set:","Observation View",null,"TEST DATA INFORMATION",null,null,"Software name: version:\n","Please complete"]
["Derivation:","1. NEHTA-1976:2014 Observation View - PCEHR Conformance Profile v1.0\n2. NEHTA-1299:2012 PCEHR Connecting Systems - Conformance Test Specification v1.6\n3. NEHTA-1850:2015 Clinical Documents - Common Conformance Profile v1.6\n4. NEHTA-1330:2012 Clinical Documents - Conformance Test Specification for CDA Rendering v1.3\n",null,"To apply these test cases the tester needs to obtain the View CDA document for OV. \nIf the tester does not have this ability, a copy may be requested by contacting the NEHTA help desk.\n\nTO ACCESS NEHTA TEST DATA, USE PATIENT:\n● Patient A - Shaun LEE  IHI: 8003608166690511  Medicare Card: 2950355981  IRN: 1  Sex: Male  DOB: 15/03/1979  Address: 281 Dawson Street, Pyrmont, NSW, 2009\n\n   ● Consumer Entered Measurements (created using the PCEHR consumer portal).\n   ● Health Check Assessment (created by clinical information systems)\n\nIF NEHTA TEST DATA CANNOT BE USED TO TEST, PLEASE CREATE YOUR OWN.\n",null,null,"Software supplier:","Please complete"]
["Test Set Objective:","To verify the correct downloading and rendering of Observation Views from the PCEHR system.  \n",null,null,null,null,"Tester:","Please complete"]
["Pre-requisite:","If NEHTA test data is being used, then there are no pre-requisites.\nIf NEHTA test data is not able to be used, then create test data that meets the stated requirements.\n",null,null,null,null,"Date:","Please complete"]
[]
["THIS HEADER CAN BE COLLAPSED BY CLICKING THE '-' SYMBOL ON THE LEFT."]
["TEST CASE ID","CONFORMANCE REQUIREMENT","PRIORITY\n(Mandatory, Optional, Conditional)","STEP NO.","TEST STEP","EXPECTED RESULT","TEST RESULT","TESTER COMMENTS","CALC.",null,"MANDATORY AND N/A"]
["Conformance requirements for consumers"]
["START: Rendering requirements"]
["OV-CP-2.2.1","2.2.1\nRendering requirements \nAn Observation View is a CDA document and the rendering requirements for CDA documents (also called clinical documents) apply to software that renders an Observation View.\n","M",1,"The tests for the requirements listed in the Common Conformance Profile for Clinical Documents are encapsulated in the Conformance Test Specification for CDA Rendering.\n\nWhen the success rate of the CDAR tests is 100%, then this test case can be passed.","The success rate of the CDAR tests is 100%",null,null,{"$f":"IF(G10=\"\",\"0\",IF(G10=\"Pass\",1,IF(G10=\"Fail\",0,IF(G10=\"TBD\",0,IF(G10=\"N/A\",1)))))","v":"0"},1,{"$f":"IF(AND(BGCol(C10)=48,G10=\"N/A\"),1,0)","v":{"$error":"#NAME?"}}]
["END: Rendering requirements"]
[]
["START: Links"]
[null,"Pre-requisite",null,null,"Request an Observation View from the PCEHR for Patient A.\n","The requested View is displayed."]
["OV-CP-024708","024708\nPresenting a link to a clinical document\n\nWhen the software retrieves an Observation View containing narratives with clinical document links then the software SHALL either present the clinical document link text as a selectable link, \nor display the link text as plain text (that is, without the appearance of a selectable link).\n","M",1,"Verify the software presents the clinical document link text as either:\na)  a selectable link by 'clicking' or 'hovering' over the link, or\nb)  as plain text (that is, without the appearance and behaviour of a selectable link).\n","a)  The link is displayed as selectable, or\nb)  The link is displayed as plain text and is not selectable.",null,null,{"$f":"IF(G15=\"\",\"0\",IF(G15=\"Pass\",1,IF(G15=\"Fail\",0,IF(G15=\"TBD\",0,IF(G15=\"N/A\",1)))))","v":"0"},2,{"$f":"IF(AND(BGCol(C15)=48,G15=\"N/A\"),1,0)","v":{"$error":"#NAME?"}}]
[null,null,null,2,"Verify that the text displayed in Step 1 is derived from the related element path within the Observation View clinical document:\n\nClinicalDocument/structuredBody/component/section(Consumer Entered Measurement Information)/text/linkHTML\n\nNOTE TO TESTER:\nThe Observation View clinical document can be downloaded from PCEHR using the relevant authoring system.\n","The text displayed is derived from the relevant path within the clinical document.",null,null,{"$f":"IF(G16=\"\",\"0\",IF(G16=\"Pass\",1,IF(G16=\"Fail\",0,IF(G16=\"TBD\",0,IF(G16=\"N/A\",1)))))","v":"0"},3,{"$f":"IF(AND(BGCol(C16)=48,G16=\"N/A\"),1,0)","v":{"$error":"#NAME?"}}]
["OV-CP-024709","024709\nSelecting a link to a clinical document\n\nIf the software allows a user to select a link to a clinical document, the clinical document SHALL be retrieved from the repository, rendered and displayed according to the requirements for downloading and displaying that type of clinical document.\n","C",null,"CONDITION:  IF the software retrieves a Observation View containing narratives with clinical document links AND allows the user to select a link THEN:","See below rows.",null,"This is the condition for the test."]
[null,null,null,1,"Verify that the clinical document is downloaded according to the requirements for downloading that type of clinical document.\n\nThe tests for downloading are in the:\nNEHTA-1299:2012 PCEHR Connecting Systems - Conformance Test Specification v1.6\nUC.CIS.204 Download a Clinical Document' and the mandatory ones are:\n019041 - Saving and Printing and \n018634 - CDA Package Hash Value.\n","A CDA is downloaded according to the requirements for downloading a CDA.\n\ni.e. Tests 019041 and 018634 have passed.  ",null,null,{"$f":"IF(G18=\"\",\"0\",IF(G18=\"Pass\",1,IF(G18=\"Fail\",0,IF(G18=\"TBD\",0,IF(G18=\"N/A\",1)))))","v":"0"},4,{"$f":"IF(AND(BGCol(C18)=48,G18=\"N/A\"),1,0)","v":{"$error":"#NAME?"}}]
[null,null,null,2,"Verify that the clinical document (E.g.: Consumer Entered Measurement) is rendered according to the requirements for rendering that type of clinical document.\n\nThe tests can be found in the Conformance Test Specification for CDA Rendering.\n  \nAll Mandatory and relevant Conditional CDA Rendering tests need to be passed in order for this test to be passed.\n","A CDA is rendered according to the requirements for rendering a CDA.\n\ni.e. All Mandatory and relevant Conditional CDA Rendering tests are passed.\n",null,null,{"$f":"IF(G19=\"\",\"0\",IF(G19=\"Pass\",1,IF(G19=\"Fail\",0,IF(G19=\"TBD\",0,IF(G19=\"N/A\",1)))))","v":"0"},5,{"$f":"IF(AND(BGCol(C19)=48,G19=\"N/A\"),1,0)","v":{"$error":"#NAME?"}}]
["END: Links"]
[null,null,null,null,null,null,"PASS","# of steps N/A or Pass",{"$f":"SUM(I8:I20)","v":0}]
[null,null,null,null,null,null,"FAIL","Total # of steps\n",5]
[null,null,null,null,null,null,"N/A",null,{"$f":"I21/I22","v":0}]
[null,null,null,null,null,null,"TBD"]

{"sheet":"References","index":14,"n_rows":55,"n_cols":5,"rows_kept":55,"cut":false,"hidden":false,"merged":[]}
[]
[]
[]
[]
[null,"References and Related Documents"]
[null,"#","Identifier","Date","Name"]
[null,1,"Prescription and Dispense View"]
[null,3,"NEHTA-1299:2012","2012-09-27","PCEHR Connecting Systems - Conformance Test Specification v1.6"]
[null,4,"NEHTA-1294:2012","2012-07-23","PCEHR Connecting Systems - Conformance Assessment Scheme v1.1"]
[null,5,"NEHTA-1297:2012","2012-09-06","PCEHR Connecting Systems - Conformance Requirements v1.5"]
[null,6,"NEHTA-1788:2014","2014-08-12","Clinical Terminology - Use of Medical Nomenclatures in Information Exchange v1.0"]
[null,7,"NEHTA-1850:2015","2015-04-10","Clinical Documents - Common Conformance Profile v1.6"]
[null,8,"NEHTA-1359:2013","2013-06-26","PCEHR Prescription and Dispense View - Presentation Guide v1.0"]
[null,9,"NEHTA-1725:2014","2014-08-18","eHealth Prescription and Dispense View - Conformance Profile v1.3"]
[null,2,"Diagnostic Imaging Report View"]
[null,1,"NEHTA-1299:2012","2012-09-27","PCEHR Connecting Systems - Conformance Test Specification v1.6"]
[null,2,"NEHTA-1294:2012","2012-07-23","PCEHR Connecting Systems - Conformance Assessment Scheme v1.1"]
[null,3,"NEHTA-1297:2012","2012-09-06","PCEHR Connecting Systems - Conformance Requirements v1.5"]
[null,4,"NEHTA-1788:2014","2014-08-12","Clinical Terminology - Use of Medical Nomenclatures in Information Exchange v1.0"]
[null,5,"NEHTA-2161:2015","2015-07-31","eHealth Diagnostic Imaging Report View - PCEHR Conformance Profile v1.0.1"]
[null,6,"NEHTA-2054:2015","2015-07-31","eHealth Diagnostic Imaging Report View - Presentation and Data Usage Guide v1.1"]
[null,3,"Pathology Report View"]
[null,1,"NEHTA-1299:2012","2012-09-27","PCEHR Connecting Systems - Conformance Test Specification v1.6"]
[null,2,"NEHTA-1294:2012","2012-07-23","PCEHR Connecting Systems - Conformance Assessment Scheme v1.1"]
[null,3,"NEHTA-1297:2012","2012-09-06","PCEHR Connecting Systems - Conformance Requirements v1.5"]
[null,4,"NEHTA-1788:2014","2014-08-12","Clinical Terminology - Use of Medical Nomenclatures in Information Exchange v1.0"]
[null,5,"NEHTA-2162:2015","2015-07-31","eHealth Pathology Report View - PCEHR Conformance Profile v1.0.1"]
[null,6,"NEHTA-2055:2015","2015-07-31","eHealth Pathology Report View - Presentation and Data Usage Guide v1.1"]
[null,4,"Health Record Overview"]
[null,1,"NEHTA-1199:2012","2012-03-07","Clinical Documents - CDA Rendering Specification v1.0"]
[null,2,"NEHTA-1330:2012","2012-09-11","Clinical Documents - Conformance Test Specification for CDA Rendering v1.3"]
[null,3,"NEHTA-1299:2012","2012-09-27","PCEHR Connecting Systems - Conformance Test Specification v1.6"]
[null,4,"NEHTA-1294:2012","2012-07-23","PCEHR Connecting Systems - Conformance Assessment Scheme v1.1"]
[null,5,"NEHTA-1297:2012","2012-09-06","PCEHR Connecting Systems - Conformance Requirements v1.5"]
[null,6,"NEHTA-1788:2014","2014-08-12","Clinical Terminology - Use of Medical Nomenclatures in Information Exchange v1.0"]
[null,7,"NEHTA-1975:2014","2014-12-31","Health Record Overview - PCEHR Conformance Profile v1.0"]
[null,8,"NEHTA-2081:2015","2015-07-20"," Health Record Overview - Presentation and Data Usage Guide v1.1"]
[null,5,"Medicare View"]
[null,1,"NEHTA-1199:2012","2012-03-07","Clinical Documents - CDA Rendering Specification v1.0"]
[null,2,"NEHTA-1330:2012","2012-09-11","Clinical Documents - Conformance Test Specification for CDA Rendering v1.3"]
[null,3,"NEHTA-1299:2012","2012-09-27","PCEHR Connecting Systems - Conformance Test Specification v1.6"]
[null,4,"NEHTA-1850:2015","2015-04-10","Clinical Documents - Common Conformance Profile v1.6"]
[null,5,"NEHTA-1797:2014","2014-12-31","Medicare Overview - PCEHR Conformance Profile v1.2"]
[null,6,"Health Check Schedule View"]
[null,1,"NEHTA-1199:2012","2012-03-07","Clinical Documents - CDA Rendering Specification v1.0"]
[null,2,"NEHTA-1330:2012","2012-09-11","Clinical Documents - Conformance Test Specification for CDA Rendering v1.3"]
[null,3,"NEHTA-1299:2012","2012-09-27","PCEHR Connecting Systems - Conformance Test Specification v1.6"]
[null,4,"NEHTA-1850:2015","2015-04-10","Clinical Documents - Common Conformance Profile v1.6"]
[null,5,"NEHTA-1977:2014","2014-12-31","Health Check Schedule View - PCEHR Conformance Profile v1.0"]
[null,7,"Observation View"]
[null,1,"NEHTA-1199:2012","2012-03-07","Clinical Documents - CDA Rendering Specification v1.0"]
[null,2,"NEHTA-1330:2012","2012-09-11","Clinical Documents - Conformance Test Specification for CDA Rendering v1.3"]
[null,3,"NEHTA-1299:2012","2012-09-27","PCEHR Connecting Systems - Conformance Test Specification v1.6"]
[null,4,"NEHTA-1850:2015","2015-04-10","Clinical Documents - Common Conformance Profile v1.6"]
[null,5,"NEHTA-1976:2014","2014-12-31","Observation View - PCEHR Conformance Profile v1.0"]